Workbook

Sheet Cover_sheet
A7: Document ID:
A8: FS84_QFN48EP_OTP_Config
A10: Document Description:
A11: Select OTP configuration
A13: Related Data Sheet:
A14: A0 silicon, FS84_QFN48EP datasheet rev 0.1 and after
A16: Related GUI:
A17: A0 silicon, FS84_QFN48EP GUI rev 1.0 and after
A19: Revision History: | C19: 1.3
B21: Revision | C21: Date | D21: Description of changes
B22: 1.0 | C22: Jun-20 | D22: Version for production release
B23: 1.1 | C23: Jul-20 | D23: Corrected automatic fill in main_reg on Vpre
B24: 1.2 | C24: Mar-21 | D24: Corected Power Sequencing Figure
B25: 1.3 | C25: April-21 | D25: Device family and other feature added
B26: 1.4 | C26: Nov-21 | D26: Updated Macro bug related to Adobe
B29: 1/ Fill in OTP_conf_main_reg sheet with available drop down list configuration for each OTP bit. Read the comments in OTP_conf_main_bits sheet for help
B30: 2/ Fill in OTP_conf_failsafe_reg sheet with available drop down list configuration for each OTP bit. Read the comments in OTP_conf_failsafe_bits sheet for help
B31: 3/ Verify the complete OTP configuration in OTP_conf_summary sheet
B32: 4/ When the OTP configuration is OK, generate the text file that will be used with the EVB GUI
B33: - From OTP_conf_file_generation sheet
B34: - Fill in cells G3 to G10.
A35: Quick User Guide: | B35: - Click on Write_OTP_File_GUI button to generate the text file at the location entered in G7 cell
B36: 5/ The text file will be used with the EVB GUI. Refer to the GUI user guide.

Sheet OTP_Config_Report
J2: Filename: | K2: ="R_" & N5 & "_rev_" & LEFT(OTP_conf_file_generation!G13,1) -> R_PFS8416AMBGJES_rev_B
N5: =OTP_conf_file_generation!G4 -> PFS8416AMBGJES
N6: ="Configuration report for " & LEFT(OTP_conf_file_generation!G3,6) & " OTP program ID: " & LEFT(UPPER(OTP_conf_file_generation!G12),2) & " rev " & LEFT(OTP_conf_file_generation!G13,1) -> Configuration report for FS8416 OTP program ID: GJ rev B
N7: =TODAY() -> 2021-11-22
A12: 1 General description
A15: 2 Features and benefits
A24: 3 Applications
A27: 4 Ordering information
B28: Table 1. Ordering Information
B29: Type number[1] | D29: Package | N29: =OTP_conf_file_generation!G4 -> PFS8416AMBGJES
D30: Name | F30: Description | J30: Version | N30: =OTP_conf_file_generation!G5 -> 0
B31: =OTP_conf_file_generation!G4 -> PFS8416AMBGJES | D31: QFN48EP | F31: FS84 QFN48EP package is a QFN (sawn), thermally enhanced wettable flanks, 7 x 7 x 0.85 mm, 0.5 mm pitch, 48 pins. | J31: SOT619-27(D)
B32: [1] To order parts in tape and reel, add the R2 suffix to the part number.
A35: 5 Power up sequence summary
B58: Note: VBOS is set at 5.1 V and RSTB at 3.2 V or 4.9 V to differentiate from regulators on the graph
N60: ="R_" & OTP_conf_file_generation!G4 -> R_PFS8416AMBGJES
A67: 6 Hardware configuration diagram
N70: =IF(RIGHT(H135,1)=")","SPI",RIGHT(H135,1)) -> 3
N72: =IF(RIGHT(H146,1)=")","SPI",RIGHT(H146,1)) -> 0
N73: =IF(RIGHT(H169,1)=")","SPI",RIGHT(H169,1)) -> 2
N74: =IF(RIGHT(H173,1)=")","SPI",RIGHT(H173,1)) -> 0
N77: =IF(H119="Yes",H120,"Disabled") -> 5.00V
N79: =IF(H137="Yes",H138,"Disabled") -> 2.3V
A91: 7 OTP configuration
B93: Table 2. Main OTP configuration
B94: Functional block | D94: Feature | H94: OTP selection
B95: VPRE | D95: Output voltage | H95: =RIGHT(OTP_conf_main_reg!G5,LEN(OTP_conf_main_reg!G5)-FIND("-",OTP_conf_main_reg!G5,1)) -> 3.3V
D96: Slope compensation | H96: =RIGHT(OTP_conf_main_reg!G7,LEN(OTP_conf_main_reg!G7)-FIND("-",OTP_conf_main_reg!G7,1)) -> 50mV/µs
D97: Current limitation | H97: =RIGHT(OTP_conf_main_reg!E9,LEN(OTP_conf_main_reg!E9)-FIND("-",OTP_conf_main_reg!E9,1)) -> 150mV
D98: High Side slew rate | H98: =RIGHT(OTP_conf_main_reg!K9,LEN(OTP_conf_main_reg!K9)-FIND("-",OTP_conf_main_reg!K9,1)) -> PU/PD/900mA
D99: Low Side slew rate | H99: =RIGHT(OTP_conf_main_reg!I9,LEN(OTP_conf_main_reg!I9)-FIND("-",OTP_conf_main_reg!I9,1)) -> PU/PD/900mA
D100: Switching frequency | H100: =IF(OTP_conf_main_reg!I43="1 - CLK2",RIGHT(OTP_conf_main_reg!J37,LEN(OTP_conf_main_reg!J37)-FIND("=",OTP_conf_main_reg!J37,1)),RIGHT(OTP_conf_main_reg!K43,LEN(OTP_conf_main_reg!K43)-FIND("=",OTP_conf_main_reg!K43,1))) -> 455KHz
D101: Phase shifting | H101: =RIGHT(OTP_conf_main_reg!G37,LEN(OTP_conf_main_reg!G37)-FIND("-",OTP_conf_main_reg!G37,1)) -> delay 0
D102: Turn OFF delay | H102: =RIGHT(OTP_conf_main_reg!H47,LEN(OTP_conf_main_reg!H47)-FIND("-",OTP_conf_main_reg!H47,1)) -> 250µs
D103: VPRE mode | H103: =RIGHT(OTP_conf_main_reg!G11,LEN(OTP_conf_main_reg!G11)-FIND("-",OTP_conf_main_reg!G11,1)) -> Force PWM
B117: Table 2. Main OTP configuration (continued)
B118: Functional block | D118: Feature | H118: OTP selection
B119: VBOOST | D119: Enabled | H119: =IF(RIGHT(OTP_conf_main_reg!E13,LEN(OTP_conf_main_reg!E13)-FIND("-",OTP_conf_main_reg!E13,1))=" enabled", "Yes","No") -> Yes
D120: Output voltage | H120: =RIGHT(OTP_conf_main_reg!I11,LEN(OTP_conf_main_reg!I11)-FIND("-",OTP_conf_main_reg!I11,1)) -> 5.00V
D121: Slope compensation | H121: =RIGHT(OTP_conf_main_reg!H13,LEN(OTP_conf_main_reg!H13)-FIND("-",OTP_conf_main_reg!H13,1)) -> 125mV/µs
D122: Slew rate | H122: =RIGHT(OTP_conf_main_reg!K15,LEN(OTP_conf_main_reg!K15)-FIND("-",OTP_conf_main_reg!K15,1)) -> 500V/µs
D123: Compensation resistor | H123: =RIGHT(OTP_conf_main_reg!E15,LEN(OTP_conf_main_reg!E15)-FIND("-",OTP_conf_main_reg!E15,1)) -> 750kohms
D124: Compensation capacitor | H124: =RIGHT(OTP_conf_main_reg!G15,LEN(OTP_conf_main_reg!G15)-FIND("-",OTP_conf_main_reg!G15,1)) -> 125pF
D125: Switching frequency | H125: =IF(OTP_conf_main_reg!H43="1 - CLK2",RIGHT(OTP_conf_main_reg!J37,LEN(OTP_conf_main_reg!J37)-FIND("=",OTP_conf_main_reg!J37,1)),RIGHT(OTP_conf_main_reg!K43,LEN(OTP_conf_main_reg!K43)-FIND("=",OTP_conf_main_reg!K43,1))) -> 2.22MHz
D126: Phase shifting | H126: =RIGHT(OTP_conf_main_reg!J39,LEN(OTP_conf_main_reg!J39)-FIND("-",OTP_conf_main_reg!J39,1)) -> delay 0
D127: Behavior in case of TSD | H127: =RIGHT(OTP_conf_main_reg!G45,LEN(OTP_conf_main_reg!G45)-FIND("-",OTP_conf_main_reg!G45,1)) -> BOOST Shutdown
B128: BUCK1 | D128: Output voltage | H128: =RIGHT(OTP_conf_main_reg!E17,LEN(OTP_conf_main_reg!E17)-FIND("-",OTP_conf_main_reg!E17,1)) -> 0.825V
D129: Inductor | H129: =RIGHT(OTP_conf_main_reg!H19,LEN(OTP_conf_main_reg!H19)-FIND("-",OTP_conf_main_reg!H19,1)) -> 1µH
D130: Current limitation | H130: =RIGHT(OTP_conf_main_reg!J19,LEN(OTP_conf_main_reg!J19)-FIND("-",OTP_conf_main_reg!J19,1)) -> 4.5A
D131: Compensation network | H131: =RIGHT(OTP_conf_main_reg!H27,LEN(OTP_conf_main_reg!H27)-FIND("-",OTP_conf_main_reg!H27,1)) -> 65 GM
D132: Switching frequency | H132: =IF(OTP_conf_main_reg!G43="1 - CLK2",RIGHT(OTP_conf_main_reg!J37,LEN(OTP_conf_main_reg!J37)-FIND("=",OTP_conf_main_reg!J37,1)),RIGHT(OTP_conf_main_reg!K43,LEN(OTP_conf_main_reg!K43)-FIND("=",OTP_conf_main_reg!K43,1))) -> 2.22MHz
D133: Phase shifting | H133: =RIGHT(OTP_conf_main_reg!G39,LEN(OTP_conf_main_reg!G39)-FIND("-",OTP_conf_main_reg!G39,1)) -> delay 6
D134: Behavior in case of TSD | H134: =RIGHT(OTP_conf_main_reg!H45,LEN(OTP_conf_main_reg!H45)-FIND("-",OTP_conf_main_reg!H45,1)) -> BUCK1 Shutdown
D135: Power sequencing slot | H135: =RIGHT(OTP_conf_main_reg!J31,LEN(OTP_conf_main_reg!J31)-FIND("-",OTP_conf_main_reg!J31,1)) -> Regulator Start and Stop in Slot 3
D136: Soft start ramp | H136: =RIGHT(OTP_conf_main_reg!E35,LEN(OTP_conf_main_reg!E35)-FIND("-",OTP_conf_main_reg!E35,1)) -> 7.81mV/µs
B137: BUCK3 | D137: Enabled | H137: =IF(RIGHT(OTP_conf_main_reg!E25,LEN(OTP_conf_main_reg!E25)-FIND("-",OTP_conf_main_reg!E25,1))=" enabled", "Yes","No") -> Yes
D138: Output voltage | H138: =RIGHT(OTP_conf_main_reg!H25,LEN(OTP_conf_main_reg!H25)-FIND("-",OTP_conf_main_reg!H25,1)) -> 2.3V
D139: Inductor | H139: =RIGHT(OTP_conf_main_reg!F25,LEN(OTP_conf_main_reg!F25)-FIND("-",OTP_conf_main_reg!F25,1)) -> 1µH
D140: Current limitation | H140: =RIGHT(OTP_conf_main_reg!K27,LEN(OTP_conf_main_reg!K27)-FIND("-",OTP_conf_main_reg!K27,1)) -> 4.5A
D141: Compensation resistor | H141: =RIGHT(OTP_conf_main_reg!K23,LEN(OTP_conf_main_reg!K23)-FIND("-",OTP_conf_main_reg!K23,1)) -> Default
D142: Gain control | H142: =RIGHT(OTP_conf_main_reg!L23,LEN(OTP_conf_main_reg!L23)-FIND("-",OTP_conf_main_reg!L23,1)) -> Default
D143: Switching frequency | H143: =IF(OTP_conf_main_reg!E43="1 - CLK2",RIGHT(OTP_conf_main_reg!J37,LEN(OTP_conf_main_reg!J37)-FIND("=",OTP_conf_main_reg!J37,1)),RIGHT(OTP_conf_main_reg!K43,LEN(OTP_conf_main_reg!K43)-FIND("=",OTP_conf_main_reg!K43,1))) -> 2.22MHz
D144: Phase shifting | H144: =RIGHT(OTP_conf_main_reg!G41,LEN(OTP_conf_main_reg!G41)-FIND("-",OTP_conf_main_reg!G41,1)) -> delay 3
D145: Behavior in case of TSD | H145: =RIGHT(OTP_conf_main_reg!J45,LEN(OTP_conf_main_reg!J45)-FIND("-",OTP_conf_main_reg!J45,1)) -> BUCK3 Shutdown
D146: Power sequencing slot | H146: =RIGHT(OTP_conf_main_reg!J35,LEN(OTP_conf_main_reg!J35)-FIND("-",OTP_conf_main_reg!J35,1)) -> Regulator Start and Stop in Slot 0
D147: Soft start ramp | H147: =RIGHT(OTP_conf_main_reg!G35,LEN(OTP_conf_main_reg!G35)-FIND("-",OTP_conf_main_reg!G35,1)) -> 10.4mV/µs
B164: Table 2. Main OTP configuration (continued)
B165: Functional block | D165: Feature | H165: OTP selection
B166: LDO1 | D166: Output voltage | H166: =RIGHT(OTP_conf_main_reg!J29,LEN(OTP_conf_main_reg!J29)-FIND("-",OTP_conf_main_reg!J29,1)) -> 1.8V
D167: Current limitation | H167: =RIGHT(OTP_conf_main_reg!I29,LEN(OTP_conf_main_reg!I29)-FIND("-",OTP_conf_main_reg!I29,1)) -> 400mA
D168: Behavior in case of TSD | H168: =RIGHT(OTP_conf_main_reg!K45,LEN(OTP_conf_main_reg!K45)-FIND("-",OTP_conf_main_reg!K45,1)) -> LDO1 Shutdown
D169: Power sequencing slot | H169: =RIGHT(OTP_conf_main_reg!J33,LEN(OTP_conf_main_reg!J33)-FIND("-",OTP_conf_main_reg!J33,1)) -> Regulator Start and Stop in Slot 2
B170: LDO2 | D170: Output voltage | H170: =RIGHT(OTP_conf_main_reg!F29,LEN(OTP_conf_main_reg!F29)-FIND("-",OTP_conf_main_reg!F29,1)) -> 3.3V
D171: Current limitation | H171: =RIGHT(OTP_conf_main_reg!E29,LEN(OTP_conf_main_reg!E29)-FIND("-",OTP_conf_main_reg!E29,1)) -> 400mA
D172: Behavior in case of TSD | H172: =RIGHT(OTP_conf_main_reg!L45,LEN(OTP_conf_main_reg!L45)-FIND("-",OTP_conf_main_reg!L45,1)) -> LDO2 Shutdown
D173: Power sequencing slot | H173: =RIGHT(OTP_conf_main_reg!G33,LEN(OTP_conf_main_reg!G33)-FIND("-",OTP_conf_main_reg!G33,1)) -> Regulator Start and Stop in Slot 0
B174: Miscellaneous | D174: Power up/down slot duration | H174: =RIGHT(OTP_conf_main_reg!I35,LEN(OTP_conf_main_reg!I35)-FIND("-",OTP_conf_main_reg!I35,1)) -> 1000µs
D175: PSYNC | H175: =IF(OTP_conf_main_reg!L47="1 - Enabled",RIGHT(OTP_conf_main_reg!K47,LEN(OTP_conf_main_reg!K47)-FIND("-",OTP_conf_main_reg!K47,1)),"Disabled") -> 2x FS84_QFN48EP
D176: PLL enabled | H176: =IF(RIGHT(OTP_conf_main_reg!J43,LEN(OTP_conf_main_reg!J43)-FIND("-",OTP_conf_main_reg!J43,1))=" enabled", "Yes","No") -> Yes
D177: Deep Fail Safe (autoretry) | H177: =IF(OTP_conf_main_reg!J47="1 - Enabled",IF(OTP_conf_main_reg!I47="1 - Enabled","Infinite","x15"),"Disabled") -> Infinite
D178: VSUP power-up threshold | H178: =RIGHT(OTP_conf_main_reg!L49,LEN(OTP_conf_main_reg!L49)-FIND("-",OTP_conf_main_reg!L49,1)) -> 4.9V for Vpre < 4.5V
D179: Regulator assigned to VDDIO | H179: =RIGHT(OTP_conf_main_reg!J53,LEN(OTP_conf_main_reg!J53)-FIND("-",OTP_conf_main_reg!J53,1)) -> LDO2
D180: Device ID | H180: =OTP_conf_main_reg!E55 -> 00000001
B182: Table 3. Fail-safe OTP configuration
B183: Functional block | D183: Feature | H183: OTP selection
B184: VCOREMON | D184: Monitoring Voltage | H184: =RIGHT(OTP_conf_failsafe_reg!E5,LEN(OTP_conf_failsafe_reg!E5)-FIND("-",OTP_conf_failsafe_reg!E5,1)) -> 0.825V
D185: OVTH | H185: =RIGHT(OTP_conf_failsafe_reg!I7,LEN(OTP_conf_failsafe_reg!I7)-FIND("-",OTP_conf_failsafe_reg!I7,1)) -> 104.5%
D186: UVTH | H186: =RIGHT(OTP_conf_failsafe_reg!I15,LEN(OTP_conf_failsafe_reg!I15)-FIND("-",OTP_conf_failsafe_reg!I15,1)) -> 95.5%
D187: OV_DGLT | H187: =RIGHT(OTP_conf_failsafe_reg!I29,LEN(OTP_conf_failsafe_reg!I29)-FIND("-",OTP_conf_failsafe_reg!I29,1)) -> 25µs
D188: UV_DGLT | H188: =RIGHT(OTP_conf_failsafe_reg!G29,LEN(OTP_conf_failsafe_reg!G29)-FIND("-",OTP_conf_failsafe_reg!G29,1)) -> 25µs
D189: SVS_CLAMP | H189: =RIGHT(OTP_conf_failsafe_reg!H9,LEN(OTP_conf_failsafe_reg!H9)-FIND("-",OTP_conf_failsafe_reg!H9,1)) -> No SVS
B190: VDDIOMON | D190: Monitoring Voltage | H190: =RIGHT(OTP_conf_failsafe_reg!G9,LEN(OTP_conf_failsafe_reg!G9)-FIND("-",OTP_conf_failsafe_reg!G9,1)) -> 3.3V
D191: OVTH | H191: =RIGHT(OTP_conf_failsafe_reg!E7,LEN(OTP_conf_failsafe_reg!E7)-FIND("-",OTP_conf_failsafe_reg!E7,1)) -> 104.5%
D192: UVTH | H192: =RIGHT(OTP_conf_failsafe_reg!E15,LEN(OTP_conf_failsafe_reg!E15)-FIND("-",OTP_conf_failsafe_reg!E15,1)) -> 95.5%
D193: OV_DGLT | H193: =RIGHT(OTP_conf_failsafe_reg!L29,LEN(OTP_conf_failsafe_reg!L29)-FIND("-",OTP_conf_failsafe_reg!L29,1)) -> 25µs
D194: UV_DGLT | H194: =RIGHT(OTP_conf_failsafe_reg!J29,LEN(OTP_conf_failsafe_reg!J29)-FIND("-",OTP_conf_failsafe_reg!J29,1)) -> 25µs
B195: VMON1 | D195: OVTH | H195: =RIGHT(OTP_conf_failsafe_reg!I11,LEN(OTP_conf_failsafe_reg!I11)-FIND("-",OTP_conf_failsafe_reg!I11,1)) -> 105%
D196: UVTH | H196: =RIGHT(OTP_conf_failsafe_reg!I17,LEN(OTP_conf_failsafe_reg!I17)-FIND("-",OTP_conf_failsafe_reg!I17,1)) -> 95%
D197: OV_DGLT | H197: =RIGHT(OTP_conf_failsafe_reg!L31,LEN(OTP_conf_failsafe_reg!L31)-FIND("-",OTP_conf_failsafe_reg!L31,1)) -> 25µs
D198: UV_DGLT | H198: =RIGHT(OTP_conf_failsafe_reg!J31,LEN(OTP_conf_failsafe_reg!J31)-FIND("-",OTP_conf_failsafe_reg!J31,1)) -> 25µs
B213: Table 3. Fail-safe OTP configuration (continued)
B214: Functional block | D214: Feature | H214: OTP selection
B215: VMON2 | D215: OVTH | H215: =RIGHT(OTP_conf_failsafe_reg!E11,LEN(OTP_conf_failsafe_reg!E11)-FIND("-",OTP_conf_failsafe_reg!E11,1)) -> 104.5%
D216: UVTH | H216: =RIGHT(OTP_conf_failsafe_reg!E17,LEN(OTP_conf_failsafe_reg!E17)-FIND("-",OTP_conf_failsafe_reg!E17,1)) -> 95.5%
D217: OV_DGLT | H217: =RIGHT(OTP_conf_failsafe_reg!L31,LEN(OTP_conf_failsafe_reg!L31)-FIND("-",OTP_conf_failsafe_reg!L31,1)) -> 25µs
D218: UV_DGLT | H218: =RIGHT(OTP_conf_failsafe_reg!J31,LEN(OTP_conf_failsafe_reg!J31)-FIND("-",OTP_conf_failsafe_reg!J31,1)) -> 25µs
B219: VMON3 | D219: OVTH | H219: =RIGHT(OTP_conf_failsafe_reg!I13,LEN(OTP_conf_failsafe_reg!I13)-FIND("-",OTP_conf_failsafe_reg!I13,1)) -> 104.5%
D220: UVTH | H220: =RIGHT(OTP_conf_failsafe_reg!I19,LEN(OTP_conf_failsafe_reg!I19)-FIND("-",OTP_conf_failsafe_reg!I19,1)) -> 95.5%
D221: OV_DGLT | H221: =RIGHT(OTP_conf_failsafe_reg!L31,LEN(OTP_conf_failsafe_reg!L31)-FIND("-",OTP_conf_failsafe_reg!L31,1)) -> 25µs
D222: UV_DGLT | H222: =RIGHT(OTP_conf_failsafe_reg!J31,LEN(OTP_conf_failsafe_reg!J31)-FIND("-",OTP_conf_failsafe_reg!J31,1)) -> 25µs
B223: VMON4 | D223: OVTH | H223: =RIGHT(OTP_conf_failsafe_reg!E13,LEN(OTP_conf_failsafe_reg!E13)-FIND("-",OTP_conf_failsafe_reg!E13,1)) -> 104.5%
D224: UVTH | H224: =RIGHT(OTP_conf_failsafe_reg!E19,LEN(OTP_conf_failsafe_reg!E19)-FIND("-",OTP_conf_failsafe_reg!E19,1)) -> 95.5%
D225: OV_DGLT | H225: =RIGHT(OTP_conf_failsafe_reg!L31,LEN(OTP_conf_failsafe_reg!L31)-FIND("-",OTP_conf_failsafe_reg!L31,1)) -> 25µs
D226: UV_DGLT | H226: =RIGHT(OTP_conf_failsafe_reg!J31,LEN(OTP_conf_failsafe_reg!J31)-FIND("-",OTP_conf_failsafe_reg!J31,1)) -> 25µs
B227: PGOOD | D227: VCOREMON | H227: =IF(RIGHT(OTP_conf_failsafe_reg!L21,LEN(OTP_conf_failsafe_reg!L21)-FIND("-",OTP_conf_failsafe_reg!L21,1))=" Assigned", "Yes","No") -> Yes
D228: VDDIOMON | H228: =IF(RIGHT(OTP_conf_failsafe_reg!K21,LEN(OTP_conf_failsafe_reg!K21)-FIND("-",OTP_conf_failsafe_reg!K21,1))=" Assigned", "Yes","No") -> Yes
D229: VMON1 | H229: =IF(RIGHT(OTP_conf_failsafe_reg!J21,LEN(OTP_conf_failsafe_reg!J21)-FIND("-",OTP_conf_failsafe_reg!J21,1))=" Assigned", "Yes","No") -> Yes
D230: VMON2 | H230: =IF(RIGHT(OTP_conf_failsafe_reg!I21,LEN(OTP_conf_failsafe_reg!I21)-FIND("-",OTP_conf_failsafe_reg!I21,1))=" Assigned", "Yes","No") -> Yes
D231: VMON3 | H231: =IF(RIGHT(OTP_conf_failsafe_reg!H21,LEN(OTP_conf_failsafe_reg!H21)-FIND("-",OTP_conf_failsafe_reg!H21,1))=" Assigned", "Yes","No") -> Yes
D232: VMON4 | H232: =IF(RIGHT(OTP_conf_failsafe_reg!G21,LEN(OTP_conf_failsafe_reg!G21)-FIND("-",OTP_conf_failsafe_reg!G21,1))=" Assigned", "Yes","No") -> Yes
D233: RSTB | H233: =IF(RIGHT(OTP_conf_failsafe_reg!F21,LEN(OTP_conf_failsafe_reg!F21)-FIND("-",OTP_conf_failsafe_reg!F21,1))=" Assigned", "Yes","No") -> No
B234: ABIST1 | D234: VCOREMON | H234: =IF(RIGHT(OTP_conf_failsafe_reg!L23,LEN(OTP_conf_failsafe_reg!L23)-FIND("-",OTP_conf_failsafe_reg!L23,1))=" Assigned", "Yes","No") -> Yes
D235: VDDIOMON | H235: =IF(RIGHT(OTP_conf_failsafe_reg!K23,LEN(OTP_conf_failsafe_reg!K23)-FIND("-",OTP_conf_failsafe_reg!K23,1))=" Assigned", "Yes","No") -> Yes
D236: VMON1 | H236: =IF(RIGHT(OTP_conf_failsafe_reg!J23,LEN(OTP_conf_failsafe_reg!J23)-FIND("-",OTP_conf_failsafe_reg!J23,1))=" Assigned", "Yes","No") -> Yes
D237: VMON2 | H237: =IF(RIGHT(OTP_conf_failsafe_reg!I23,LEN(OTP_conf_failsafe_reg!I23)-FIND("-",OTP_conf_failsafe_reg!I23,1))=" Assigned", "Yes","No") -> Yes
D238: VMON3 | H238: =IF(RIGHT(OTP_conf_failsafe_reg!H23,LEN(OTP_conf_failsafe_reg!H23)-FIND("-",OTP_conf_failsafe_reg!H23,1))=" Assigned", "Yes","No") -> Yes
D239: VMON4 | H239: =IF(RIGHT(OTP_conf_failsafe_reg!G23,LEN(OTP_conf_failsafe_reg!G23)-FIND("-",OTP_conf_failsafe_reg!G23,1))=" Assigned", "Yes","No") -> Yes
B240: Safety enable | D240: VMON1 | H240: =IF(RIGHT(OTP_conf_failsafe_reg!L25,LEN(OTP_conf_failsafe_reg!L25)-FIND("-",OTP_conf_failsafe_reg!L25,1))=" Enabled", "Yes","No") -> Yes
D241: VMON2 | H241: =IF(RIGHT(OTP_conf_failsafe_reg!K25,LEN(OTP_conf_failsafe_reg!K25)-FIND("-",OTP_conf_failsafe_reg!K25,1))=" Enabled", "Yes","No") -> Yes
D242: VMON3 | H242: =IF(RIGHT(OTP_conf_failsafe_reg!J25,LEN(OTP_conf_failsafe_reg!J25)-FIND("-",OTP_conf_failsafe_reg!J25,1))=" Enabled", "Yes","No") -> Yes
D243: VMON4 | H243: =IF(RIGHT(OTP_conf_failsafe_reg!I25,LEN(OTP_conf_failsafe_reg!I25)-FIND("-",OTP_conf_failsafe_reg!I25,1))=" Enabled", "Yes","No") -> Yes
D244: FCCU | H244: =IF(RIGHT(OTP_conf_failsafe_reg!H25,LEN(OTP_conf_failsafe_reg!H25)-FIND("-",OTP_conf_failsafe_reg!H25,1))=" Enabled", "Yes","No") -> Yes
D245: WATCHDOG | H245: =IF(RIGHT(OTP_conf_failsafe_reg!E25,LEN(OTP_conf_failsafe_reg!E25)-FIND("-",OTP_conf_failsafe_reg!E25,1))=" Enabled", RIGHT(OTP_conf_failsafe_reg!F25,LEN(OTP_conf_failsafe_reg!F25)-FIND("-",OTP_conf_failsafe_reg!F25,1)),"No") -> Simple WD
D246: FLT_RECOVERY | H246: =IF(RIGHT(OTP_conf_failsafe_reg!H27,LEN(OTP_conf_failsafe_reg!H27)-FIND("-",OTP_conf_failsafe_reg!H27,1))=" Enabled", "Yes","No") -> Yes
A262: 8 Legal information
A312: Contents
J348: Date of release: | K348: =TODAY() -> 2021-11-22
K349: =_xlfn.CONCAT("Document identifier: ",K2) -> Document identifier: R_PFS8416AMBGJES_rev_B

Sheet Load_OTP_&_Apply (hidden)
Q1: =IFERROR(MID(D5, SEARCH("FS8",D5,1),9),"") ->  | R1: =IFERROR(MID(D5, SEARCH("FS8",D5,1),4),"") -> 
Q2: =IF(Q1="","",IFERROR(MATCH(UPPER(Q1),OTP_conf_file_generation!I11:I24,0),-1)) ->  | R2: =IF(R1="","",IFERROR(MATCH(UPPER(R1),LEFT(OTP_conf_file_generation!I11:I24,4),0),-1)) -> 
Q3: =IFERROR(MID(D5, SEARCH("FS8",D5,1)+9,2),"") ->  | R3: =IFERROR(MID(D5, SEARCH("FS8",D5,1)+6,2),"") -> 
D4: Part Number | F4: Rev | O4: OTP type | P4: Device family | Q4: OTP program ID | R4: Package | S4: OTP ID revision
A5: Silicon & Flavor | B5: C0 | O5: =INDEX(OTP_conf_file_generation!G19:G21,IF(ISNA(O6),1,O6)) -> P - Sampling | P5: =IF(P6="",OTP_conf_file_generation!I18,INDEX(OTP_conf_file_generation!I11:I24,IFERROR(MATCH(UPPER(P6),OTP_conf_file_generation!I11:I24,0),IFERROR(MATCH(UPPER(P6),LEFT(OTP_conf_file_generation!I11:I24,6),0),8)))) -> FS8416AMB | Q5: =IF(OR(Q6="",LEN(Q6)<2),"--",UPPER(Q6)) -> -- | R5: =IF(R6="",OTP_conf_file_generation!G17,INDEX(OTP_conf_file_generation!G16:G17,IFERROR(MATCH(UPPER(R6),LEFT(OTP_conf_file_generation!G16:G17,2),0),2))) -> ES - Step Cut | S5: =IF(S6="","-",IFERROR(UPPER(S6),"-")) -> -
A6: Customer & Application | O6: =MATCH(LEFT(D5,1),LEFT(OTP_conf_file_generation!G19:G21,1),0) ->  | P6: =IFERROR(MID(D5, SEARCH("FS8",D5,1),9),"") ->  | Q6: =IFERROR(IF(Q2>=0,Q3,IF(R2>=0,R3,NaN)),"") ->  | R6: =IFERROR(MID(D5, SEARCH("FS",D5,1)+11,2),"") ->  | S6: =RIGHT(F5,1) -> 
A7: MAIN | O7: Register | P7: Bit7 | Q7: Bit6 | R7: Bit5 | S7: Bit4 | T7: Bit3 | U7: Bit2 | V7: Bit1 | W7: Bit0
A8: 14 | B8: 0F | D8: =HEX2BIN(B8,8) -> 00001111 | F8: =LEFT(D8,1) -> 0 | G8: =MID(D8,2,1) -> 0 | H8: =MID(D8,3,1) -> 0 | I8: =MID(D8,4,1) -> 0 | J8: =MID(D8,5,1) -> 1 | K8: =MID(D8,6,1) -> 1 | L8: =MID(D8,7,1) -> 1 | M8: =RIGHT(D8,1) -> 1 | O8: OTP_CFG_VPRE_1 | P8: 0 | Q8: 0 | R8: =VLOOKUP(_xlfn.CONCAT(H8:M8),OTP_conf_main_bits!B2:C6,2,FALSE) -> 001111 - 3.3V
A9: 15 | B9: 5 | D9: =HEX2BIN(B9,8) -> 00000101 | F9: 0 | G9: 0 | H9: 0 | I9: =MID(D9,4,1) -> 0 | J9: 0 | K9: 1 | L9: 0 | M9: 1 | O9: OTP_CFG_VPRE_2 | P9: 0 | Q9: 0 | R9: =VLOOKUP(_xlfn.CONCAT(H9:M9),OTP_conf_main_bits!B8:C18,2,FALSE) -> 000101 - 50mV/µs
A10: 16 | B10: 6F | D10: 01101111 | F10: 0 | G10: 1 | H10: 1 | I10: 0 | J10: 1 | K10: 1 | L10: 1 | M10: 1 | O10: OTP_CFG_VPRE_3 | P10: =VLOOKUP(_xlfn.CONCAT(F10,G10),OTP_conf_main_bits!B20:C23,2,FALSE) -> 01 - 80mV | R10: =VLOOKUP(_xlfn.CONCAT(H10,I10),OTP_conf_main_bits!B25:C25,2,FALSE) -> 10 - 40ns | T10: 11 - PU/PD/900mA | V10: =VLOOKUP(_xlfn.CONCAT(L10,M10),OTP_conf_main_bits!B29:C32,2,FALSE) -> 11 - PU/PD/900mA
A11: 17 | B11: 6 | D11: 00000110 | F11: 0 | G11: 0 | H11: 0 | I11: 0 | J11: 0 | K11: 1 | L11: 1 | M11: 0 | O11: OTP_CFG_BOOST_1 | P11: 0 | Q11: 0 | R11: =VLOOKUP(H11,OTP_conf_main_bits!B34:C35,2,FALSE) -> 0 - Force PWM | S11: 0 | T11: =VLOOKUP(_xlfn.CONCAT(J11:M11),OTP_conf_main_bits!B37:C38,2,FALSE) -> 0110 - 5.00V
A12: 18 | B12: 8C | D12: 10001100 | F12: 1 | G12: 0 | H12: 0 | I12: 0 | J12: 1 | K12: 1 | L12: 0 | M12: 0 | O12: OTP_CFG_BOOST_2 | P12: =VLOOKUP(F12,OTP_conf_main_bits!B40:C41,2,FALSE) -> 1 - Enabled | Q12: =VLOOKUP(_xlfn.CONCAT(G12,H12),OTP_conf_main_bits!B43:C44,2,FALSE) -> 00 - 60ns | S12: =VLOOKUP(_xlfn.CONCAT(I12:M12),OTP_conf_main_bits!B46:C48,2,FALSE) -> 01100 - 125mV/µs
A13: 19 | B13: 7 | D13: 00000111 | F13: 0 | G13: 0 | H13: 0 | I13: 0 | J13: 0 | K13: 1 | L13: 1 | M13: 1 | O13: OTP_CFG_BOOST_3 | P13: =VLOOKUP(_xlfn.CONCAT(F13,G13),OTP_conf_main_bits!B50:C51,2,FALSE) -> 00 - 750kohms | R13: =VLOOKUP(_xlfn.CONCAT(H13,I13),OTP_conf_main_bits!B53:C53,2,FALSE) -> 00 - 125pF | T13: =VLOOKUP(_xlfn.CONCAT(J13,K13),OTP_conf_main_bits!B55:C55,2,FALSE) -> 01 - 2A | V13: =VLOOKUP(_xlfn.CONCAT(L13,M13),OTP_conf_main_bits!B57:C58,2,FALSE) -> 11 - 500V/µs
A14: 1A | B14: 44 | D14: 01000100 | F14: 0 | G14: 1 | H14: 0 | I14: 0 | J14: 0 | K14: 1 | L14: 0 | M14: 0 | O14: OTP_CFG_BUCK1_1 | P14: =VLOOKUP(_xlfn.CONCAT(F14:M14),OTP_conf_main_bits!B60:C81,2,FALSE) -> 01000100 - 0.825V
A15: 1B | B15: 6 | D15: 00000110 | F15: 0 | G15: 0 | H15: 0 | I15: 0 | J15: 0 | K15: 1 | L15: 1 | M15: 0 | O15: OTP_CFG_BUCK1_2 | P15: 0 | Q15: 0 | R15: 0 | S15: =VLOOKUP(_xlfn.CONCAT(I15:J15),OTP_conf_main_bits!B83:C85,2,FALSE) -> 00 - 1µH | U15: =VLOOKUP(_xlfn.CONCAT(K15:L15),OTP_conf_main_bits!B87:C88,2,FALSE) -> 11 - 4.5A | W15: 0
A16: 1C | B16: B1 | D16: 10110001 | F16: 1 | G16: 0 | H16: 1 | I16: 1 | J16: 0 | K16: 0 | L16: 0 | M16: 1 | O16: OTP_CFG_BUCK2_1 | P16: 00000000
A17: 1D | B17: 4 | D17: 00000100 | F17: 0 | G17: 0 | H17: 0 | I17: 0 | J17: 0 | K17: 1 | L17: 0 | M17: 0 | O17: OTP_CFG_BUCK2_2 | P17: 0 | Q17: 00 | S17: 0 | T17: 00 | V17: =VLOOKUP(L17,OTP_conf_main_bits!B90:C90,2,FALSE) -> 0 - Default | W17: =VLOOKUP(M17,OTP_conf_main_bits!B92:C92,2,FALSE) -> 0 - Default
A18: 1E | B18: 90 | D18: 10010000 | F18: 1 | G18: 0 | H18: 0 | I18: 1 | J18: 0 | K18: 0 | L18: 0 | M18: 0 | O18: OTP_CFG_BUCK3_1 | P18: =VLOOKUP(F18,OTP_conf_main_bits!B94:C95,2,FALSE) -> 1 - Enabled | Q18: =VLOOKUP(_xlfn.CONCAT(G18:H18),OTP_conf_main_bits!B97:C99,2,FALSE) -> 00 - 1µH | S18: =VLOOKUP(_xlfn.CONCAT(I18,J18,K18,L18,M18),OTP_conf_main_bits!B101:C113,2,FALSE) -> 10000 - 2.5V
A19: 1F | B19: 93 | D19: 10010011 | F19: 1 | G19: 0 | H19: 0 | I19: 1 | J19: 0 | K19: 0 | L19: 1 | M19: 1 | O19: OTP_CFG_BUCK3_2 | P19: 000 | S19: =VLOOKUP(_xlfn.CONCAT(I19:K19),OTP_conf_main_bits!B115:C120,2,FALSE) -> 100 - 65 GM | V19: =VLOOKUP(_xlfn.CONCAT(L19:M19),OTP_conf_main_bits!B122:C123,2,FALSE) -> 11 - 4.5A
A20: 20 | B20: 63 | D20: 01100011 | F20: 0 | G20: 1 | H20: 1 | I20: 0 | J20: 0 | K20: 0 | L20: 1 | M20: 1 | O20: OTP_CFG_LDO | P20: =VLOOKUP(F20,OTP_conf_main_bits!B125:C126,2,FALSE) -> 0 - 400mA | Q20: =VLOOKUP(_xlfn.CONCAT(G20:I20),OTP_conf_main_bits!B128:C135,2,FALSE) -> 110 - 3.3V | T20: =VLOOKUP(J20,OTP_conf_main_bits!B137:C138,2,FALSE) -> 0 - 400mA | U20: =VLOOKUP(_xlfn.CONCAT(K20:M20),OTP_conf_main_bits!B140:C147,2,FALSE) -> 011 - 1.8V
A21: 21 | B21: 3 | D21: 00000011 | F21: 0 | G21: 0 | H21: 0 | I21: 0 | J21: 0 | K21: 0 | L21: 1 | M21: 1 | O21: OTP_CFG_SEQ_1 | P21: 0 | Q21: 0 | R21: 000 | U21: =VLOOKUP(_xlfn.CONCAT(K21:M21),OTP_conf_main_bits!B149:C156,2,FALSE) -> 011 - Regulator Start and Stop in Slot 3
A22: 22 | B22: 0A | D22: 00001010 | F22: 0 | G22: 0 | H22: 0 | I22: 0 | J22: 1 | K22: 0 | L22: 1 | M22: 0 | O22: OTP_CFG_SEQ_2 | P22: 0 | Q22: 0 | R22: =VLOOKUP(_xlfn.CONCAT(H22:J22),OTP_conf_main_bits!B158:C165,2,FALSE) -> 001 - Regulator Start and Stop in Slot 1 | U22: =VLOOKUP(_xlfn.CONCAT(K22:M22),OTP_conf_main_bits!B167:C174,2,FALSE) -> 010 - Regulator Start and Stop in Slot 2
A23: 23 | B23: 8 | D23: 00001000 | F23: 0 | G23: 0 | H23: 0 | I23: 0 | J23: 1 | K23: 0 | L23: 0 | M23: 0 | O23: OTP_CFG_SEQ_3 | P23: =VLOOKUP(_xlfn.CONCAT(F23,G23),OTP_conf_main_bits!B185:C188,2,FALSE) -> 00 - 7.81mV/µs | R23: =VLOOKUP(_xlfn.CONCAT(H23,I23),OTP_conf_main_bits!B190:C193,2,FALSE) -> 00 - 10.4mV/µs | T23: =VLOOKUP(J23,OTP_conf_main_bits!B195:C196,2,FALSE) -> 1 - 1000µs | U23: =VLOOKUP(_xlfn.CONCAT(K23:M23),OTP_conf_main_bits!B176:C183,2,FALSE) -> 000 - Regulator Start and Stop in Slot 0
A24: 24 | B24: 4 | D24: 00000100 | F24: 0 | G24: 0 | H24: 0 | I24: 0 | J24: 0 | K24: 1 | L24: 0 | M24: 0 | O24: OTP_CFG_CLOCK_1 | P24: 0 | Q24: 0 | R24: =VLOOKUP(_xlfn.CONCAT(H24:J24),OTP_conf_main_bits!B198:C205,2,FALSE) -> 000 - delay 0 | U24: =VLOOKUP(_xlfn.CONCAT(K24:M24),OTP_conf_main_bits!B207:C214,2,FALSE) -> 100 - divide by 44 - CLK2=455KHz
A25: 25 | B25: 30 | D25: 00110000 | F25: 0 | G25: 0 | H25: 1 | I25: 1 | J25: 0 | K25: 0 | L25: 0 | M25: 0 | O25: OTP_CFG_CLOCK_2 | P25: 0 | Q25: 0 | R25: =VLOOKUP(_xlfn.CONCAT(H25:J25),OTP_conf_main_bits!B216:C223,2,FALSE) -> 110 - delay 6 | U25: =VLOOKUP(_xlfn.CONCAT(K25:M25),OTP_conf_main_bits!B225:C232,2,FALSE) -> 000 - delay 0
A26: 26 | B26: 18 | D26: 00011000 | F26: 0 | G26: 0 | H26: 0 | I26: 1 | J26: 1 | K26: 0 | L26: 0 | M26: 0 | O26: OTP_CFG_CLOCK_3 | P26: 0 | Q26: 0 | R26: =VLOOKUP(_xlfn.CONCAT(H26:J26),OTP_conf_main_bits!B234:C241,2,FALSE) -> 011 - delay 3 | U26: 000
A27: 27 | B27: 0E | D27: 00001110 | F27: 0 | G27: 0 | H27: 0 | I27: 0 | J27: 1 | K27: 1 | L27: 1 | M27: 0 | O27: OTP_CFG_CLOCK_4 | P27: =VLOOKUP(F27,OTP_conf_main_bits!B243:C243,2,FALSE) -> 0 - CLK1 | Q27: 0 | R27: =VLOOKUP(H27,OTP_conf_main_bits!B245:C245,2,FALSE) -> 0 - CLK1 | S27: =VLOOKUP(I27,OTP_conf_main_bits!B247:C247,2,FALSE) -> 0 - CLK1 | T27: =VLOOKUP(J27,OTP_conf_main_bits!B249:C250,2,FALSE) -> 1 - CLK2 | U27: =VLOOKUP(K27,OTP_conf_main_bits!B252:C253,2,FALSE) -> 1 - Enabled | V27: =VLOOKUP(_xlfn.CONCAT(L27:M27),OTP_conf_main_bits!B255:C258,2,FALSE) -> 10 - divide by 9 - CLK1=2.22MHz
A28: 28 | B28: 0 | D28: 00000000 | F28: 0 | G28: 0 | H28: 0 | I28: 0 | J28: 0 | K28: 0 | L28: 0 | M28: 0 | O28: OTP_CFG_SM_1 | P28: 0 | Q28: 0 | R28: =VLOOKUP(H28,OTP_conf_main_bits!B272:C273,2,FALSE) -> 0 - BOOST Shutdown | S28: =VLOOKUP(I28,OTP_conf_main_bits!B269:C270,2,FALSE) -> 0 - BUCK1 Shutdown | T28: 0 | U28: =VLOOKUP(K28,OTP_conf_main_bits!B266:C267,2,FALSE) -> 0 - BUCK3 Shutdown | V28: =VLOOKUP(L28,OTP_conf_main_bits!B263:C264,2,FALSE) -> 0 - LDO1 Shutdown | W28: =VLOOKUP(M28,OTP_conf_main_bits!B260:C261,2,FALSE) -> 0 - LDO2 Shutdown
A29: 29 | B29: 1C | D29: 00011100 | F29: 0 | G29: 0 | H29: 0 | I29: 1 | J29: 1 | K29: 1 | L29: 0 | M29: 0 | O29: OTP_CFG_SM_2 | P29: 0 | Q29: 0 | R29: 0 | S29: =VLOOKUP(I29,OTP_conf_main_bits!B275:C276,2,FALSE) -> 1 - 32ms | T29: =VLOOKUP(J29,OTP_conf_main_bits!B278:C279,2,FALSE) -> 1 - Enabled | U29: =VLOOKUP(K29,OTP_conf_main_bits!B281:C282,2,FALSE) -> 1 - Enabled | V29: =VLOOKUP(L29,OTP_conf_main_bits!B284:C285,2,FALSE) -> 0 - 2x FS84_QFN48EP | W29: =VLOOKUP(M29,OTP_conf_main_bits!B287:C288,2,FALSE) -> 0 - Disabled
A30: 2A | B30: 0 | D30: 00000000 | F30: 0 | G30: 0 | H30: 0 | I30: 0 | J30: 0 | K30: 0 | L30: 0 | M30: 0 | O30: OTP_CFG_VSUP_UV | P30: =_xlfn.CONCAT(F30:L30) -> 0000000 | W30: =VLOOKUP(M30,OTP_conf_main_bits!B290:C291,2,FALSE) -> 0 - 4.9V for Vpre < 4.5V
A31: 2B | B31: 0 | D31: 00000000 | F31: 0 | G31: 0 | H31: 0 | I31: 0 | J31: 0 | K31: 0 | L31: 0 | M31: 0 | O31: OTP_CFG_I2C | P31: 0 | Q31: 0 | R31: 0 | S31: 0 | T31: 0000
A32: 2C | B32: 3 | D32: 00000011 | F32: 0 | G32: 0 | H32: 0 | I32: 0 | J32: 0 | K32: 0 | L32: 1 | M32: 1 | O32: OTP_CFG_OV | P32: 0 | Q32: 0 | R32: 0 | S32: 0 | T32: 0 | U32: =VLOOKUP(_xlfn.CONCAT(K32:M32),OTP_conf_main_bits!B293:C300,2,FALSE) -> 011 - LDO2
A33: 2D | B33: 1 | D33: 00000001 | F33: 0 | G33: 0 | H33: 0 | I33: 0 | J33: 0 | K33: 0 | L33: 0 | M33: 1 | O33: OTP_CFG_DEVID | P33: =_xlfn.CONCAT(F33:M33) -> 00000001
A34: 2E | B34: 0 | D34: 00000000 | F34: 0 | G34: 0 | H34: 0 | I34: 0 | J34: 0 | K34: 0 | L34: 0 | M34: 0 | O34: OTP_M_S1_CRC_LSB | P34: 0 | Q34: 0 | R34: 0 | S34: 0 | T34: 0 | U34: 0 | V34: 0 | W34: 0
A35: 2F | B35: 0 | D35: 00000000 | F35: 0 | G35: 0 | H35: 0 | I35: 0 | J35: 0 | K35: 0 | L35: 0 | M35: 0 | O35: OTP_M_S1_CRC_MSB | P35: 0 | Q35: 0 | R35: 0 | S35: 0 | T35: 0 | U35: 0 | V35: 0 | W35: 0
A36: FAILSAFE | O36: Register | P36: Bit7 | Q36: Bit6 | R36: Bit5 | S36: Bit4 | T36: Bit3 | U36: Bit2 | V36: Bit1 | W36: Bit0
A37: 0A | B37: 44 | D37: 01000100 | F37: =LEFT(D37,1) -> 0 | G37: =MID(D37,2,1) -> 1 | H37: =MID(D37,3,1) -> 0 | I37: 0 | J37: =MID(D37,5,1) -> 0 | K37: =MID(D37,6,1) -> 1 | L37: =MID(D37,7,1) -> 0 | M37: =RIGHT(D37,1) -> 0 | O37: OTP_CFG_UVOV_1 | P37: =P14 -> 01000100 - 0.825V
A38: 0B | B38: 0 | D38: 00000000 | F38: 0 | G38: 0 | H38: 0 | I38: 0 | J38: 0 | K38: 0 | L38: 0 | M38: 0 | O38: OTP_CFG_UVOV_2 | P38: =VLOOKUP(_xlfn.CONCAT(F38:I38),OTP_conf_failsafe_bits!B3:C18,2,FALSE) -> 0000 - 104.5% | T38: =VLOOKUP(_xlfn.CONCAT(J38:M38),OTP_conf_failsafe_bits!B20:C35,2,FALSE) -> 0000 - 104.5%
A39: 0C | B39: 0 | D39: 00000000 | F39: 0 | G39: 0 | H39: 0 | I39: 0 | J39: 0 | K39: 0 | L39: 0 | M39: 0 | O39: OTP_CFG_UVOV_3 | P39: 0 | Q39: 0 | R39: =VLOOKUP(H39,OTP_conf_failsafe_bits!B37:C38,2,FALSE) -> 0 - 3.3V | S39: =VLOOKUP(_xlfn.CONCAT(I39:M39),OTP_conf_failsafe_bits!B40:C44,2,FALSE) -> 00000 - No SVS
A40: 0D | B40: 1 | D40: 00000001 | F40: 0 | G40: 0 | H40: 0 | I40: 0 | J40: 0 | K40: 0 | L40: 0 | M40: 1 | O40: OTP_CFG_UVOV_4 | P40: =VLOOKUP(_xlfn.CONCAT(F40:I40),OTP_conf_failsafe_bits!B46:C61,2,FALSE) -> 0000 - 104.5% | T40: =VLOOKUP(_xlfn.CONCAT(J40:M40),OTP_conf_failsafe_bits!B63:C78,2,FALSE) -> 0001 - 105%
A41: 0E | B41: 0 | D41: 00000000 | F41: 0 | G41: 0 | H41: 0 | I41: 0 | J41: 0 | K41: 0 | L41: 0 | M41: 0 | O41: OTP_CFG_UVOV_5 | P41: =VLOOKUP(_xlfn.CONCAT(F41:I41),OTP_conf_failsafe_bits!B80:C95,2,FALSE) -> 0000 - 104.5% | T41: =VLOOKUP(_xlfn.CONCAT(J41:M41),OTP_conf_failsafe_bits!B97:C112,2,FALSE) -> 0000 - 104.5%
A42: 0F | B42: 0 | D42: 00000000 | F42: 0 | G42: 0 | H42: 0 | I42: 0 | J42: 0 | K42: 0 | L42: 0 | M42: 0 | O42: OTP_CFG_UVOV_6 | P42: =VLOOKUP(_xlfn.CONCAT(F42:I42),OTP_conf_failsafe_bits!B114:C129,2,FALSE) -> 0000 - 95.5% | T42: =VLOOKUP(_xlfn.CONCAT(J42:M42),OTP_conf_failsafe_bits!B131:C146,2,FALSE) -> 0000 - 95.5%
A43: 10 | B43: 1 | D43: 00000001 | F43: 0 | G43: 0 | H43: 0 | I43: 0 | J43: 0 | K43: 0 | L43: 0 | M43: 1 | O43: OTP_CFG_UVOV_7 | P43: =VLOOKUP(_xlfn.CONCAT(F43:I43),OTP_conf_failsafe_bits!B148:C163,2,FALSE) -> 0000 - 95.5% | T43: =VLOOKUP(_xlfn.CONCAT(J43:M43),OTP_conf_failsafe_bits!B165:C180,2,FALSE) -> 0001 - 95%
A44: 11 | B44: 0 | D44: 00000000 | F44: 0 | G44: 0 | H44: 0 | I44: 0 | J44: 0 | K44: 0 | L44: 0 | M44: 0 | O44: OTP_CFG_UVOV_8 | P44: =VLOOKUP(_xlfn.CONCAT(F44:I44),OTP_conf_failsafe_bits!B182:C197,2,FALSE) -> 0000 - 95.5% | T44: =VLOOKUP(_xlfn.CONCAT(J44:M44),OTP_conf_failsafe_bits!B199:C214,2,FALSE) -> 0000 - 95.5%
A45: 12 | B45: 1F | D45: 00011111 | F45: 0 | G45: 0 | H45: 0 | I45: 1 | J45: 1 | K45: 1 | L45: 1 | M45: 1 | O45: OTP_CFG_PGOOD | P45: 0 | Q45: =VLOOKUP(G45,OTP_conf_failsafe_bits!B216:C217,2,FALSE) -> 0 - Not assigned | R45: =VLOOKUP(H45,OTP_conf_failsafe_bits!B219:C220,2,FALSE) -> 0 - Not assigned | S45: =VLOOKUP(I45,OTP_conf_failsafe_bits!B222:C223,2,FALSE) -> 1 - Assigned | T45: =VLOOKUP(J45,OTP_conf_failsafe_bits!B225:C226,2,FALSE) -> 1 - Assigned | U45: =VLOOKUP(K45,OTP_conf_failsafe_bits!B228:C229,2,FALSE) -> 1 - Assigned | V45: =VLOOKUP(L45,OTP_conf_failsafe_bits!B231:C232,2,FALSE) -> 1 - Assigned | W45: =VLOOKUP(M45,OTP_conf_failsafe_bits!B234:C235,2,FALSE) -> 1 - Assigned
A46: 13 | B46: 3F | D46: 00111111 | F46: 0 | G46: 0 | H46: 1 | I46: 1 | J46: 1 | K46: 1 | L46: 1 | M46: 1 | O46: OTP_CFG_ABIST1 | P46: 00 | R46: =VLOOKUP(H46,OTP_conf_failsafe_bits!B237:C238,2,FALSE) -> 1 - Assigned | S46: =VLOOKUP(I46,OTP_conf_failsafe_bits!B240:C241,2,FALSE) -> 1 - Assigned | T46: =VLOOKUP(J46,OTP_conf_failsafe_bits!B243:C244,2,FALSE) -> 1 - Assigned | U46: =VLOOKUP(K46,OTP_conf_failsafe_bits!B246:C247,2,FALSE) -> 1 - Assigned | V46: =VLOOKUP(L46,OTP_conf_failsafe_bits!B249:C250,2,FALSE) -> 1 - Assigned | W46: =VLOOKUP(M46,OTP_conf_failsafe_bits!B252:C253,2,FALSE) -> 1 - Assigned
A47: 14 | B47: 1F | D47: 00011111 | F47: 0 | G47: 0 | H47: 0 | I47: 1 | J47: 1 | K47: 1 | L47: 1 | M47: 1 | O47: OTP_CFG_ASIL | P47: =VLOOKUP(F47,OTP_conf_failsafe_bits!B255:C256,2,FALSE) -> 0 - Enabled | Q47: 0 - Simple WD | R47: 0 | S47: =VLOOKUP(I47,OTP_conf_failsafe_bits!B261:C262,2,FALSE) -> 1 - Enabled | T47: =VLOOKUP(J47,OTP_conf_failsafe_bits!B264:C265,2,FALSE) -> 1 - Enabled | U47: =VLOOKUP(K47,OTP_conf_failsafe_bits!B267:C268,2,FALSE) -> 1 - Enabled | V47: =VLOOKUP(L47,OTP_conf_failsafe_bits!B270:C271,2,FALSE) -> 1 - Enabled | W47: =VLOOKUP(M47,OTP_conf_failsafe_bits!B273:C274,2,FALSE) -> 1 - Enabled
A48: 15 | B48: 10 | D48: 00010000 | F48: 0 | G48: 0 | H48: 0 | I48: 1 | J48: 0 | K48: 0 | L48: 0 | M48: 0 | O48: OTP_CFG_I2C | P48: 000 | S48: =VLOOKUP(I48,OTP_conf_failsafe_bits!B276:C277,2,FALSE) -> 1 - Enabled | T48: =_xlfn.CONCAT(J48:M48) -> 0000
A49: 16 | B49: 24 | D49: 00100100 | F49: 0 | G49: 0 | H49: 1 | I49: 0 | J49: 0 | K49: 1 | L49: 0 | M49: 0 | O49: OTP_CFG_DGLT_DUR_1 | P49: 00 | R49: =VLOOKUP(_xlfn.CONCAT(H49:I49),OTP_conf_failsafe_bits!B279:C282,2,FALSE) -> 10 - 25µs | T49: =VLOOKUP(J49,OTP_conf_failsafe_bits!B284:C285,2,FALSE) -> 0 - 25µs | U49: =VLOOKUP(_xlfn.CONCAT(K49:L49),OTP_conf_failsafe_bits!B287:C290,2,FALSE) -> 10 - 25µs | W49: =VLOOKUP(M49,OTP_conf_failsafe_bits!B292:C293,2,FALSE) -> 0 - 25µs
A50: 17 | B50: 4 | D50: 00000100 | F50: 0 | G50: 0 | H50: 0 | I50: 0 | J50: 0 | K50: 1 | L50: 0 | M50: 0 | O50: OTP_CFG_DGLT_DUR_2 | P50: 00000 | U50: =VLOOKUP(_xlfn.CONCAT(K50:L50),OTP_conf_failsafe_bits!B295:C298,2,FALSE) -> 10 - 25µs | W50: =VLOOKUP(M50,OTP_conf_failsafe_bits!B300:C301,2,FALSE) -> 0 - 25µs
A51: 18 | B51: 0 | D51: 00000000 | F51: 0 | G51: 0 | H51: 0 | I51: 0 | J51: 0 | K51: 0 | L51: 0 | M51: 0 | O51: OTP_FS_S1_CRC_LSB | P51: 0 | Q51: 0 | R51: 0 | S51: 0 | T51: 0 | U51: 0 | V51: 0 | W51: 0
A52: 19 | B52: 0 | D52: 00000000 | F52: 0 | G52: 0 | H52: 0 | I52: 0 | J52: 0 | K52: 0 | L52: 0 | M52: 0 | O52: OTP_FS_S1_CRC_MSB | P52: 0 | Q52: 0 | R52: 0 | S52: 0 | T52: 0 | U52: 0 | V52: 0 | W52: 0

Sheet OTP_conf_file_generation
A1: Logic | B1: Register Name | C1: Register Address | D1: Data
A3: Main | B3: OTP_CFG_VPRE_1 | C3: 14 | D3: =OTP_conf_main_reg!N5 -> 0x0F | F3: Device family | G3: FS8416AMB | H3: Silicon | I3: C0
A4: Main | B4: OTP_CFG_VPRE_2 | C4: 15 | D4: =OTP_conf_main_reg!N7 -> 0x05 | F4: Part Number: | G4: =LEFT(G10,1)&G3&LEFT(UPPER(G12),2)&LEFT(G11,2) -> PFS8416AMBGJES | H4: Flavor | I4: =G4 & ", Rev " & G13 -> PFS8416AMBGJES, Rev B
A5: Main | B5: OTP_CFG_VPRE_3 | C5: 16 | D5: =OTP_conf_main_reg!N9 -> 0xEF | F5: Customer: | H5: Customer:
A6: Main | B6: OTP_CFG_BOOST_1 | C6: 17 | D6: =OTP_conf_main_reg!N11 -> 0x06 | F6: Author: | H6: Application
A7: Main | B7: OTP_CFG_BOOST_2 | C7: 18 | D7: =OTP_conf_main_reg!N13 -> 0x8C | F7: File revision: | G7: 1.4 | H7: File repository: | I7: C:\
A8: Main | B8: OTP_CFG_BOOST_3 | C8: 19 | D8: =OTP_conf_main_reg!N15 -> 0x07 | F8: File repository: | G8: C:\Users\nxf32138\Documents\aaatest2.txt | H8: File name: | I8: =I3&"_"&G4&"_Rev"&G13&"_"&I5&"_"&I6&"_ATE.txt" -> C0_PFS8416AMBGJES_RevB___ATE.txt
A9: Main | B9: OTP_CFG_BUCK1_1 | C9: 1A | D9: =OTP_conf_main_reg!N17 -> 0x44
A10: Main | B10: OTP_CFG_BUCK1_2 | C10: 1B | D10: =OTP_conf_main_reg!N19 -> 0x06 | F10: OTP type | G10: P - Sampling | I10: Device options | J10: BUCK3 | K10: LDO2 | L10: Psync | M10: Ipre max | N10: VMONx | O10: FCCU | P10: ABIST | Q10: ASIL
A11: Main | B11: OTP_CFG_BUCK2_1 | C11: 1C | D11: =OTP_conf_main_reg!N21 -> 0x00 | F11: Package | G11: ES - Step Cut | I11: FS8401AMM | J11: No | K11: No | L11: No | M11: 5A | N11: 0 | O11: No | P11: No | Q11: QM
A12: Main | B12: OTP_CFG_BUCK2_2 | C12: 1D | D12: =OTP_conf_main_reg!N23 -> 0x00 | F12: OTP program ID | G12: GJ | I12: FS8401AMB | J12: No | K12: No | L12: No | M12: 5A | N12: up to 2 | O12: Yes | P12: Yes | Q12: B
A13: Main | B13: OTP_CFG_BUCK3_1 | C13: 1E | D13: =OTP_conf_main_reg!N25 -> 0x8E | F13: OTP ID revision | G13: B | I13: FS8402AMB | J13: No | K13: Yes | L13: Yes | M13: 5A | N13: up to 4 | O13: Yes | P13: Yes | Q13: B
A14: Main | B14: OTP_CFG_BUCK3_2 | C14: 1F | D14: =OTP_conf_main_reg!N27 -> 0x13 | I14: FS8406AMB | J14: No | K14: Yes | L14: Yes | M14: 10A | N14: up to 4 | O14: Yes | P14: Yes | Q14: B
A15: Main | B15: OTP_CFG_LDO | C15: 20 | D15: =OTP_conf_main_reg!N29 -> 0x63 | I15: FS8411AMM | J15: Yes | K15: No | L15: No | M15: 5A | N15: 0 | O15: No | P15: No | Q15: QM
A16: Main | B16: OTP_CFG_SEQ_1 | C16: 21 | D16: =OTP_conf_main_reg!N31 -> 0x03 | F16: KS - Dimple | I16: FS8411AMB | J16: Yes | K16: No | L16: No | M16: 5A | N16: up to 2 | O16: Yes | P16: Yes | Q16: B
A17: Main | B17: OTP_CFG_SEQ_2 | C17: 22 | D17: =OTP_conf_main_reg!N33 -> 0x02 | G17: ES - Step Cut | I17: FS8412AMB | J17: Yes | K17: Yes | L17: Yes | M17: 5A | N17: up to 4 | O17: Yes | P17: Yes | Q17: B
A18: Main | B18: OTP_CFG_SEQ_3 | C18: 23 | D18: =OTP_conf_main_reg!N35 -> 0x08 | I18: FS8416AMB | J18: Yes | K18: Yes | L18: Yes | M18: 10A | N18: up to 4 | O18: Yes | P18: Yes | Q18: B
A19: Main | B19: OTP_CFG_CLOCK_1 | C19: 24 | D19: =OTP_conf_main_reg!N37 -> 0x04 | G19: P - Sampling | I19: FS8401AMC | J19: No | K19: No | L19: No | M19: 5A | N19: up to 2 | O19: Yes | P19: Yes | Q19: C
A20: Main | B20: OTP_CFG_CLOCK_2 | C20: 25 | D20: =OTP_conf_main_reg!N39 -> 0x30 | G20: S - Custom Production | I20: FS8402AMC | J20: No | K20: Yes | L20: Yes | M20: 5A | N20: up to 4 | O20: Yes | P20: Yes | Q20: C
A21: Main | B21: OTP_CFG_CLOCK_3 | C21: 26 | D21: =OTP_conf_main_reg!N41 -> 0x18 | G21: M - Standard Production | I21: FS8406AMC | J21: No | K21: Yes | L21: Yes | M21: 10A | N21: up to 4 | O21: Yes | P21: Yes | Q21: C
A22: Main | B22: OTP_CFG_CLOCK_4 | C22: 27 | D22: =OTP_conf_main_reg!N43 -> 0x0E | I22: FS8411AMC | J22: Yes | K22: No | L22: No | M22: 5A | N22: up to 2 | O22: Yes | P22: Yes | Q22: C
A23: Main | B23: OTP_CFG_SM_1 | C23: 28 | D23: =OTP_conf_main_reg!N45 -> 0x00 | G23: A | I23: FS8412AMC | J23: Yes | K23: Yes | L23: Yes | M23: 5A | N23: up to 4 | O23: Yes | P23: Yes | Q23: C
A24: Main | B24: OTP_CFG_SM_2 | C24: 29 | D24: =OTP_conf_main_reg!N47 -> 0x0D | G24: B | I24: FS8416AMC | J24: Yes | K24: Yes | L24: Yes | M24: 10A | N24: up to 4 | O24: Yes | P24: Yes | Q24: C
A25: Main | B25: OTP_CFG_VSUP_UV | C25: 2A | D25: =OTP_conf_main_reg!N49 -> 0x00 | G25: C
A26: Main | B26: OTP_CFG_I2C | C26: 2B | D26: =OTP_conf_main_reg!N51 -> 0x00 | G26: D
A27: Main | B27: OTP_CFG_OV | C27: 2C | D27: =OTP_conf_main_reg!N53 -> 0x03 | G27: E
A28: Main | B28: OTP_CFG_DEVID | C28: 2D | D28: =OTP_conf_main_reg!N55 -> 0x01 | G28: F | I28: =MATCH(G3,I11:I24,) -> 8 | J28: =INDEX(J11:J24,$I$28) -> Yes | K28: =INDEX(K11:K24,$I$28) -> Yes | L28: =INDEX(L11:L24,$I$28) -> Yes | M28: =INDEX(M11:M24,$I$28) -> 10A | N28: =INDEX(N11:N24,$I$28) -> up to 4 | O28: =INDEX(O11:O24,$I$28) -> Yes | P28: =INDEX(P11:P24,$I$28) -> Yes | Q28: =INDEX(Q11:Q24,$I$28) -> B
A29: Main | B29: OTP_M_S1_CRC_LSB | C29: 2E | D29: =OTP_conf_main_reg!N57 -> 0x00 | J29: Yes | K29: Yes | L29: Yes | M29: 10A | N29: up to 4 | O29: Yes | P29: Yes | Q29: B
A30: Main | B30: OTP_M_S1_CRC_MSB | C30: 2F | D30: =OTP_conf_main_reg!N59 -> 0x00
A31: FailSafe | B31: OTP_CFG_UVOV_1 | C31: 0A | D31: =OTP_conf_failsafe_reg!N5 -> 0x44
A32: FailSafe | B32: OTP_CFG_UVOV_2 | C32: 0B | D32: =OTP_conf_failsafe_reg!N7 -> 0x00
A33: FailSafe | B33: OTP_CFG_UVOV_3 | C33: 0C | D33: =OTP_conf_failsafe_reg!N9 -> 0x00
A34: FailSafe | B34: OTP_CFG_UVOV_4 | C34: 0D | D34: =OTP_conf_failsafe_reg!N11 -> 0x01
A35: FailSafe | B35: OTP_CFG_UVOV_5 | C35: 0E | D35: =OTP_conf_failsafe_reg!N13 -> 0x00
A36: FailSafe | B36: OTP_CFG_UVOV_6 | C36: 0F | D36: =OTP_conf_failsafe_reg!N15 -> 0x00
A37: FailSafe | B37: OTP_CFG_UVOV_7 | C37: 10 | D37: =OTP_conf_failsafe_reg!N17 -> 0x01
A38: FailSafe | B38: OTP_CFG_UVOV_8 | C38: 11 | D38: =OTP_conf_failsafe_reg!N19 -> 0x00
A39: FailSafe | B39: OTP_CFG_PGOOD | C39: 12 | D39: =OTP_conf_failsafe_reg!N21 -> 0x3F
A40: FailSafe | B40: OTP_CFG_ABIST1 | C40: 13 | D40: =OTP_conf_failsafe_reg!N23 -> 0x3F
A41: FailSafe | B41: OTP_CFG_ASIL | C41: 14 | D41: =OTP_conf_failsafe_reg!N25 -> 0x1F
A42: FailSafe | B42: OTP_CFG_I2C | C42: 15 | D42: =OTP_conf_failsafe_reg!N27 -> 0x10
A43: FailSafe | B43: OTP_CFG_DGLT_DUR_1 | C43: 16 | D43: =OTP_conf_failsafe_reg!N29 -> 0x24
A44: FailSafe | B44: OTP_CFG_DGLT_DUR_2 | C44: 17 | D44: =OTP_conf_failsafe_reg!N31 -> 0x04
A45: FailSafe | B45: OTP_FS_S1_CRC_LSB | C45: 18 | D45: =OTP_conf_failsafe_reg!N33 -> 0x00
A46: FailSafe | B46: OTP_FS_S1_CRC_MSB | C46: 19 | D46: =OTP_conf_failsafe_reg!N35 -> 0x00

Sheet OTP_conf_summary
G1: dt | H1: =(LEFT($B$65,LEN($B$65)-2)/10000) -> 0.1 | L1: =B40 -> Regulator Start and Stop in Slot 3 | M1: =B52 -> Regulator Start and Stop in Slot 0 | N1: =B58 -> Regulator Start and Stop in Slot 2 | O1: =B63 -> Regulator Start and Stop in Slot 0 | U1: EXT. | V1: by SPI
M2: =B43 -> Yes | N2: Yes | O2: Yes | U2: VPRE | V2: EXT.
H3: V OTP | J3: =B13 -> 3.3V | K3: =B24 -> 5.00V | L3: =B33 -> 0.825V | M3: =B44 -> 2.3V | N3: =B55 -> 1.8V | O3: =B60 -> 3.3V | U3: BUCK3 | V3: VPRE
H4: V after config (enable/slot) | J4: =J3 -> 3.3V | K4: =IF(EXACT($B$23,"Yes"),K3,J3) -> 5.00V | L4: =SUBSTITUTE(L3,"V","") -> 0.825 | M4: =IF(AND(EXACT(M2,"Yes"),M7<=6),M3,"0V") -> 2.3V | N4: =IF(AND(EXACT(N2,"Yes"),N7<=6),N3,"0V") -> 1.8V | O4: 3.3V | Q4: =J15 -> 3.3V | R4: 1.6 | U4: LDO1
H5: V Number | J5: =ROUND(VALUE(SUBSTITUTE(J4,"V","")),1) -> 3.3 | K5: =ROUND(VALUE(SUBSTITUTE(K4,"V","")),1) -> 5 | L5: =ROUND(VALUE(SUBSTITUTE(L4,"V","")),1) -> 0.8 | M5: =ROUND(VALUE(SUBSTITUTE(M4,"V","")),1) -> 2.3 | N5: 1.8 | O5: 3.3 | Q5: =ROUND(VALUE(SUBSTITUTE(Q4,"V","")),1) -> 3.3 | R5: =ROUND(VALUE(SUBSTITUTE(R4,"V","")),1) -> 1.6 | U5: LDO2
H6: SR | L6: =VALUE(LEFT($B$41,5)) -> 7.81 | M6: =VALUE(LEFT(B53,5)) -> 10.4 | N6: =N8/1 -> 1.8 | O6: =O8/1 -> 3.2
H7: Slot | J7: p | K7: b | L7: =IF(ISNUMBER(VALUE(RIGHT(L1,1))),VALUE(RIGHT(L1,1)),10) -> 3 | M7: =IF(ISNUMBER(VALUE(RIGHT(M1,1))),VALUE(RIGHT(M1,1)),10) -> 0 | N7: =IF(ISNUMBER(VALUE(RIGHT(N1,1))),VALUE(RIGHT(N1,1)),10) -> 2 | O7: =IF(ISNUMBER(VALUE(RIGHT(O1,1))),VALUE(RIGHT(O1,1)),10) -> 0
H8: V final | J8: =J5 -> 3.3 | K8: =IF(K5=0,0,K5-0.1*COUNTIF($J$5:J5,K5)-0.1*COUNTIF($J$8:J8,K5-0.1*COUNTIF($J$5:J5,K5))) -> 5 | L8: =IF(L5=0,0,L5-0.1*COUNTIF($J$5:K5,L5)-0.1*COUNTIF($J$8:K8,L5-0.1*COUNTIF($J$5:K5,L5))) -> 0.8 | M8: =IF(M5=0,0,M5-0.1*COUNTIF($J$5:L5,M5)-0.1*COUNTIF($J$8:L8,M5-0.1*COUNTIF($J$5:L5,M5))) -> 2.3 | N8: =IF(N5=0,0,N5-0.1*COUNTIF($J$5:M5,N5)-0.1*COUNTIF($J$8:M8,N5-0.1*COUNTIF($J$5:M5,N5))) -> 1.8 | O8: =IF(O5=0,0,O5-0.1*COUNTIF($J$5:N5,O5)-0.1*COUNTIF($J$8:N8,O5-0.1*COUNTIF($J$5:N5,O5))) -> 3.2 | Q8: =IF(Q5=0,0,Q5-0.1*COUNTIF($J$5:O5,Q5)-0.1*COUNTIF($J$8:O8,Q5-0.1*COUNTIF($J$5:O5,Q5))) -> 3.1 | R8: =IF(R5=0,0,R5-0.1*COUNTIF($J$5:O5,R5)-0.1*COUNTIF($J$8:O8,R5-0.1*COUNTIF($J$5:O5,R5))) -> 1.6
H9: SR adjusted | L9: =IFERROR(L6*L8/L5,1) -> 7.81 | M9: =IFERROR(M6*M8/M5,1) -> 10.4 | N9: =IFERROR(N6*N8/N5,1) -> 1.8 | O9: =IFERROR(O6*O8/O5,1) -> 3.103030303
L10: =SUBSTITUTE(RIGHT(LEFT(L1,45),7),")","") -> Slot 3 | M10: =SUBSTITUTE(RIGHT(LEFT(M1,45),7),")","") -> Slot 0 | N10: Slot 2 | O10: Slot 0
A11: MAIN | D11: FAIL SAFE | G11: Power sequencing
A12: VPRE | D12: VCOREMON | AE12: nb ABIST | AF12: =COUNTIF(L14:M19,"ABIST1_Yes") -> 6
A13: Output voltage | B13: =RIGHT(OTP_conf_main_reg!G5,LEN(OTP_conf_main_reg!G5)-FIND("-",OTP_conf_main_reg!G5,1)) -> 3.3V | D13: Monitoring Voltage | E13: =RIGHT(OTP_conf_failsafe_reg!E5,LEN(OTP_conf_failsafe_reg!E5)-FIND("-",OTP_conf_failsafe_reg!E5,1)) -> 0.825V
A14: Slope compensation | B14: =RIGHT(OTP_conf_main_reg!G7,LEN(OTP_conf_main_reg!G7)-FIND("-",OTP_conf_main_reg!G7,1)) -> 50mV/µs | D14: OVTH | E14: =RIGHT(OTP_conf_failsafe_reg!I7,LEN(OTP_conf_failsafe_reg!I7)-FIND("-",OTP_conf_failsafe_reg!I7,1)) -> 104.5% | H14: VCOREMON | I14: BUCK1 | J14: =B33 -> 0.825V | K14: =IF(COUNTIF($U$1:$U$2,I14),"NA",INDEX($L$10:$O$10,MATCH(I14,$L$21:$O$21,0))) -> Slot 3 | L14: ="ABIST1_"&E54 -> ABIST1_Yes | O14: Notes: - VBOS is set @5.1V to differentiate from regulators on the graph - BUCK1/3, LDO1/2 and RSTB may have -0.1V offset to differentiate from other regulators on the graph - Timing representation may not be 100% accurate
A15: Current limitation | B15: =RIGHT(OTP_conf_main_reg!E9,LEN(OTP_conf_main_reg!E9)-FIND("-",OTP_conf_main_reg!E9,1)) -> 150mV | D15: UVTH | E15: =RIGHT(OTP_conf_failsafe_reg!I15,LEN(OTP_conf_failsafe_reg!I15)-FIND("-",OTP_conf_failsafe_reg!I15,1)) -> 95.5% | H15: VDDIOMON | I15: =IF(COUNTIF($U$2:$U$5,B70),B70,U1) -> LDO2 | J15: =IF(I15="EXT.","0.8V",OFFSET($I$3,0,MATCH(I15,$J$21:$O$21,0))) -> 3.3V | K15: Slot 0 | L15: ABIST1_Yes
A16: High Side slew rate | B16: =RIGHT(OTP_conf_main_reg!K9,LEN(OTP_conf_main_reg!K9)-FIND("-",OTP_conf_main_reg!K9,1)) -> PU/PD/900mA | D16: OV_DGLT | E16: =RIGHT(OTP_conf_failsafe_reg!I29,LEN(OTP_conf_failsafe_reg!I29)-FIND("-",OTP_conf_failsafe_reg!I29,1)) -> 25µs | H16: VMON1 | I16: BUCK3 | J16: =IF(I16="EXT.","0.8V",OFFSET($I$3,0,MATCH(I16,$J$21:$O$21,0))) -> 2.3V | K16: Slot 0 | L16: ABIST1_Yes
A17: Low Side slew rate | B17: =RIGHT(OTP_conf_main_reg!I9,LEN(OTP_conf_main_reg!I9)-FIND("-",OTP_conf_main_reg!I9,1)) -> PU/PD/900mA | D17: UV_DGLT | E17: =RIGHT(OTP_conf_failsafe_reg!G29,LEN(OTP_conf_failsafe_reg!G29)-FIND("-",OTP_conf_failsafe_reg!G29,1)) -> 25µs | H17: VMON2 | I17: VPRE | J17: 3.3V | K17: NA | L17: ABIST1_Yes | U17: =L14 -> ABIST1_Yes | V17: =L15 -> ABIST1_Yes | W17: =L16 -> ABIST1_Yes | X17: =L17 -> ABIST1_Yes | Y17: =L18 -> ABIST1_Yes | Z17: =L19 -> ABIST1_Yes
A18: Switching frequency | B18: =IF(OTP_conf_main_reg!I43="1 - CLK2",RIGHT(OTP_conf_main_reg!J37,LEN(OTP_conf_main_reg!J37)-FIND("=",OTP_conf_main_reg!J37,1)),RIGHT(OTP_conf_main_reg!K43,LEN(OTP_conf_main_reg!K43)-FIND("=",OTP_conf_main_reg!K43,1))) -> 455KHz | D18: SVS_CLAMP | E18: =RIGHT(OTP_conf_failsafe_reg!H9,LEN(OTP_conf_failsafe_reg!H9)-FIND("-",OTP_conf_failsafe_reg!H9,1)) -> No SVS | H18: VMON3 | I18: LDO1 | J18: 1.8V | K18: Slot 2 | L18: ABIST1_Yes | U18: =I14 -> BUCK1 | V18: =I15 -> LDO2 | W18: =I16 -> BUCK3 | X18: =I17 -> VPRE | Y18: =I18 -> LDO1 | Z18: =I19 -> EXT.
A19: Phase shifting | B19: =RIGHT(OTP_conf_main_reg!G37,LEN(OTP_conf_main_reg!G37)-FIND("-",OTP_conf_main_reg!G37,1)) -> delay 0 | D19: VDDIOMON | H19: VMON4 | I19: EXT. | J19: 0.8V | K19: NA | L19: ABIST1_Yes | U19: =IFERROR(INDEX($J$8:$O$8,MATCH(U18,$J$21:$O$21,0)),0) -> 0.8 | V19: 3.2 | W19: 2.3 | X19: 3.3 | Y19: 1.8 | Z19: 0
A20: Turn OFF delay | B20: =RIGHT(OTP_conf_main_reg!H47,LEN(OTP_conf_main_reg!H47)-FIND("-",OTP_conf_main_reg!H47,1)) -> 250µs | D20: Monitoring Voltage | E20: =RIGHT(OTP_conf_failsafe_reg!G9,LEN(OTP_conf_failsafe_reg!G9)-FIND("-",OTP_conf_failsafe_reg!G9,1)) -> 3.3V | U20: =IFERROR(INDEX($L$10:$O$10,MATCH(U18,$L$21:$O$21,0)),"NA") -> Slot 3 | V20: =IFERROR(INDEX($L$10:$O$10,MATCH(V18,$L$21:$O$21,0)),"NA") -> Slot 0 | W20: Slot 0 | X20: NA | Y20: Slot 2 | Z20: NA
A21: VPRE mode | B21: =RIGHT(OTP_conf_main_reg!G11,LEN(OTP_conf_main_reg!G11)-FIND("-",OTP_conf_main_reg!G11,1)) -> Force PWM | D21: OVTH | E21: =RIGHT(OTP_conf_failsafe_reg!E7,LEN(OTP_conf_failsafe_reg!E7)-FIND("-",OTP_conf_failsafe_reg!E7,1)) -> 104.5% | G21: Time | H21: VSUP | I21: VBOS | J21: VPRE | K21: VBOOST | L21: BUCK1 | M21: BUCK3 | N21: LDO1 | O21: LDO2 | P21: LBIST | Q21: RSTB | R21: ABIST | T21: ABIST_Temp | U21: RSTB_VCORE | V21: RSTB_VDDIO | W21: RSTB_VMON1 | X21: RSTB_VMON2 | Y21: RSTB_VMON3 | Z21: RSTB_VMON4
A22: VBOOST | D22: UVTH | E22: =RIGHT(OTP_conf_failsafe_reg!E15,LEN(OTP_conf_failsafe_reg!E15)-FIND("-",OTP_conf_failsafe_reg!E15,1)) -> 95.5% | G22: 0 | H22: 0 | I22: 0 | J22: 0 | K22: 0 | L22: 0 | M22: 0 | N22: 0 | O22: 0 | P22: 0 | Q22: =IF(T22>=0.2+$AF$12/6+$H$1,$Q$8,0) -> 0 | R22: =IF(AND(T22>0,T22<0.2+$AF$12/6),$R$8,0) -> 0 | T22: 0 | U22: =IF(OR(U$17="ABIST1_No",COUNTIF($V$2,U$18)),1,IF(AND(U$19<>0,OFFSET($I22,0,MATCH(U$18,$J$21:$O$21,0))=U$19),1,0)) -> 0 | V22: =IF(OR(V$17="ABIST1_No",COUNTIF($V$2,V$18)),1,IF(AND(V$19<>0,OFFSET($I22,0,MATCH(V$18,$J$21:$O$21,0))=V$19),1,0)) -> 0 | W22: 0 | X22: 0 | Y22: 0 | Z22: 1
A23: Enabled | B23: =IF(RIGHT(OTP_conf_main_reg!E13,LEN(OTP_conf_main_reg!E13)-FIND("-",OTP_conf_main_reg!E13,1))=" enabled", "Yes","No") -> Yes | D23: OV_DGLT | E23: =RIGHT(OTP_conf_failsafe_reg!L29,LEN(OTP_conf_failsafe_reg!L29)-FIND("-",OTP_conf_failsafe_reg!L29,1)) -> 25µs | G23: =G22+0.05 -> 0.05 | H23: =H24/2 -> 2.45 | I23: 0 | J23: 0 | K23: 0 | L23: 0 | M23: 0 | N23: 0 | O23: 0 | P23: 0 | Q23: =IF(T23>=0.2+$AF$12/6+$H$1,$Q$8,0) -> 0 | R23: 0 | T23: =T22+IF(INT(AND(U23:Z23,P22="DONE"))=0,0,G23-G22) -> 0 | U23: =IF(OR(U$17="ABIST1_No",COUNTIF($V$2,U$18)),1,IF(AND(U$19<>0,OFFSET($I23,0,MATCH(U$18,$J$21:$O$21,0))=U$19),1,0)) -> 0 | V23: 0 | W23: 0 | X23: 0 | Y23: 0 | Z23: 1
A24: Output voltage | B24: =RIGHT(OTP_conf_main_reg!I11,LEN(OTP_conf_main_reg!I11)-FIND("-",OTP_conf_main_reg!I11,1)) -> 5.00V | D24: UV_DGLT | E24: =RIGHT(OTP_conf_failsafe_reg!J29,LEN(OTP_conf_failsafe_reg!J29)-FIND("-",OTP_conf_failsafe_reg!J29,1)) -> 25µs | G24: =G23+0.05 -> 0.1 | H24: =VALUE((LEFT(B69,4))) -> 4.9 | I24: =$I$44/21 -> 0.2428571429 | J24: 0 | K24: 0 | L24: 0 | M24: 0 | N24: 0 | O24: 0 | P24: 0 | Q24: 0 | R24: 0 | T24: =T23+IF(INT(AND(U24:Z24,P23="DONE"))=0,0,G24-G23) -> 0 | U24: 0 | V24: 0 | W24: 0 | X24: 0 | Y24: 0 | Z24: 1
A25: Slope compensation | B25: =RIGHT(OTP_conf_main_reg!H13,LEN(OTP_conf_main_reg!H13)-FIND("-",OTP_conf_main_reg!H13,1)) -> 125mV/µs | D25: VMON1 | G25: 0.15 | H25: =H24*1.5 -> 7.35 | I25: =$I$44/21+I24 -> 0.4857142857 | J25: 0 | K25: 0 | L25: 0 | M25: 0 | N25: 0 | O25: 0 | P25: 0 | Q25: 0 | R25: 0 | T25: 0 | U25: 0 | V25: 0 | W25: 0 | X25: 0 | Y25: 0 | Z25: 1
A26: Slew rate | B26: =RIGHT(OTP_conf_main_reg!K15,LEN(OTP_conf_main_reg!K15)-FIND("-",OTP_conf_main_reg!K15,1)) -> 500V/µs | D26: OVTH | E26: =RIGHT(OTP_conf_failsafe_reg!I11,LEN(OTP_conf_failsafe_reg!I11)-FIND("-",OTP_conf_failsafe_reg!I11,1)) -> 105% | G26: 0.2 | H26: =IF(H25+H23<12,H25+H23,12) -> 9.8 | I26: 0.7285714286 | J26: 0 | K26: 0 | L26: 0 | M26: 0 | N26: 0 | O26: 0 | P26: 0 | Q26: 0 | R26: 0 | T26: 0 | U26: 0 | V26: 0 | W26: 0 | X26: 0 | Y26: 0 | Z26: 1
A27: Compensation resistor | B27: =RIGHT(OTP_conf_main_reg!E15,LEN(OTP_conf_main_reg!E15)-FIND("-",OTP_conf_main_reg!E15,1)) -> 750kohms | D27: UVTH | E27: =RIGHT(OTP_conf_failsafe_reg!I17,LEN(OTP_conf_failsafe_reg!I17)-FIND("-",OTP_conf_failsafe_reg!I17,1)) -> 95% | G27: 0.25 | H27: 12 | I27: 0.9714285714 | J27: 0 | K27: 0 | L27: 0 | M27: 0 | N27: 0 | O27: 0 | P27: 0 | Q27: 0 | R27: 0 | T27: 0 | U27: 0 | V27: 0 | W27: 0 | X27: 0 | Y27: 0 | Z27: 1
A28: Compensation capacitor | B28: =RIGHT(OTP_conf_main_reg!G15,LEN(OTP_conf_main_reg!G15)-FIND("-",OTP_conf_main_reg!G15,1)) -> 125pF | D28: OV_DGLT | E28: =RIGHT(OTP_conf_failsafe_reg!L31,LEN(OTP_conf_failsafe_reg!L31)-FIND("-",OTP_conf_failsafe_reg!L31,1)) -> 25µs | G28: 0.3 | H28: =H27 -> 12 | I28: 1.214285714 | J28: 0 | K28: 0 | L28: 0 | M28: 0 | N28: 0 | O28: 0 | P28: 0 | Q28: 0 | R28: 0 | T28: 0 | U28: 0 | V28: 0 | W28: 0 | X28: 0 | Y28: 0 | Z28: 1
A29: Switching frequency | B29: =IF(OTP_conf_main_reg!H43="1 - CLK2",RIGHT(OTP_conf_main_reg!J37,LEN(OTP_conf_main_reg!J37)-FIND("=",OTP_conf_main_reg!J37,1)),RIGHT(OTP_conf_main_reg!K43,LEN(OTP_conf_main_reg!K43)-FIND("=",OTP_conf_main_reg!K43,1))) -> 2.22MHz | D29: UV_DGLT | E29: =RIGHT(OTP_conf_failsafe_reg!J31,LEN(OTP_conf_failsafe_reg!J31)-FIND("-",OTP_conf_failsafe_reg!J31,1)) -> 25µs | G29: 0.35 | H29: =H28 -> 12 | I29: 1.457142857 | J29: 0 | K29: 0 | L29: 0 | M29: 0 | N29: 0 | O29: 0 | P29: 0 | Q29: 0 | R29: 0 | T29: 0 | U29: 0 | V29: 0 | W29: 0 | X29: 0 | Y29: 0 | Z29: 1
A30: Phase shifting | B30: =RIGHT(OTP_conf_main_reg!J39,LEN(OTP_conf_main_reg!J39)-FIND("-",OTP_conf_main_reg!J39,1)) -> delay 0 | D30: VMON2 | G30: 0.4 | H30: 12 | I30: 1.7 | J30: 0 | K30: 0 | L30: 0 | M30: 0 | N30: 0 | O30: 0 | P30: 0 | Q30: 0 | R30: 0 | T30: 0 | U30: 0 | V30: 0 | W30: 0 | X30: 0 | Y30: 0 | Z30: 1
A31: Behavior in case of TSD | B31: =RIGHT(OTP_conf_main_reg!G45,LEN(OTP_conf_main_reg!G45)-FIND("-",OTP_conf_main_reg!G45,1)) -> BOOST Shutdown | D31: OVTH | E31: =RIGHT(OTP_conf_failsafe_reg!E11,LEN(OTP_conf_failsafe_reg!E11)-FIND("-",OTP_conf_failsafe_reg!E11,1)) -> 104.5% | G31: 0.45 | H31: 12 | I31: 1.942857143 | J31: 0 | K31: 0 | L31: 0 | M31: 0 | N31: 0 | O31: 0 | P31: 0 | Q31: 0 | R31: 0 | T31: 0 | U31: 0 | V31: 0 | W31: 0 | X31: 0 | Y31: 0 | Z31: 1
A32: BUCK1 | D32: UVTH | E32: =RIGHT(OTP_conf_failsafe_reg!E17,LEN(OTP_conf_failsafe_reg!E17)-FIND("-",OTP_conf_failsafe_reg!E17,1)) -> 95.5% | G32: 0.5 | H32: 12 | I32: 2.185714286 | J32: 0 | K32: 0 | L32: 0 | M32: 0 | N32: 0 | O32: 0 | P32: 0 | Q32: 0 | R32: 0 | T32: 0 | U32: 0 | V32: 0 | W32: 0 | X32: 0 | Y32: 0 | Z32: 1
A33: Output voltage | B33: =RIGHT(OTP_conf_main_reg!E17,LEN(OTP_conf_main_reg!E17)-FIND("-",OTP_conf_main_reg!E17,1)) -> 0.825V | D33: OV_DGLT | E33: =RIGHT(OTP_conf_failsafe_reg!L31,LEN(OTP_conf_failsafe_reg!L31)-FIND("-",OTP_conf_failsafe_reg!L31,1)) -> 25µs | G33: 0.55 | H33: 12 | I33: 2.428571429 | J33: 0 | K33: 0 | L33: 0 | M33: 0 | N33: 0 | O33: 0 | P33: 0 | Q33: 0 | R33: 0 | T33: 0 | U33: 0 | V33: 0 | W33: 0 | X33: 0 | Y33: 0 | Z33: 1
A34: Inductor | B34: =RIGHT(OTP_conf_main_reg!H19,LEN(OTP_conf_main_reg!H19)-FIND("-",OTP_conf_main_reg!H19,1)) -> 1µH | D34: UV_DGLT | E34: =RIGHT(OTP_conf_failsafe_reg!J31,LEN(OTP_conf_failsafe_reg!J31)-FIND("-",OTP_conf_failsafe_reg!J31,1)) -> 25µs | G34: 0.6 | H34: 12 | I34: 2.671428571 | J34: 0 | K34: 0 | L34: 0 | M34: 0 | N34: 0 | O34: 0 | P34: 1.6 | Q34: 0 | R34: 0 | T34: 0 | U34: 0 | V34: 0 | W34: 0 | X34: 0 | Y34: 0 | Z34: 1
A35: Current limitation | B35: =RIGHT(OTP_conf_main_reg!J19,LEN(OTP_conf_main_reg!J19)-FIND("-",OTP_conf_main_reg!J19,1)) -> 4.5A | D35: VMON3 | G35: 0.65 | H35: 12 | I35: 2.914285714 | J35: 0 | K35: 0 | L35: 0 | M35: 0 | N35: 0 | O35: 0 | P35: 1.6 | Q35: 0 | R35: 0 | T35: 0 | U35: 0 | V35: 0 | W35: 0 | X35: 0 | Y35: 0 | Z35: 1
A36: Compensation network | B36: =RIGHT(OTP_conf_main_reg!H27,LEN(OTP_conf_main_reg!H27)-FIND("-",OTP_conf_main_reg!H27,1)) -> 65 GM | D36: OVTH | E36: =RIGHT(OTP_conf_failsafe_reg!I13,LEN(OTP_conf_failsafe_reg!I13)-FIND("-",OTP_conf_failsafe_reg!I13,1)) -> 104.5% | G36: 0.7 | H36: 12 | I36: 3.157142857 | J36: 0 | K36: 0 | L36: 0 | M36: 0 | N36: 0 | O36: 0 | P36: 1.6 | Q36: 0 | R36: 0 | T36: 0 | U36: 0 | V36: 0 | W36: 0 | X36: 0 | Y36: 0 | Z36: 1
A37: Switching frequency | B37: =IF(OTP_conf_main_reg!G43="1 - CLK2",RIGHT(OTP_conf_main_reg!J37,LEN(OTP_conf_main_reg!J37)-FIND("=",OTP_conf_main_reg!J37,1)),RIGHT(OTP_conf_main_reg!K43,LEN(OTP_conf_main_reg!K43)-FIND("=",OTP_conf_main_reg!K43,1))) -> 2.22MHz | D37: UVTH | E37: =RIGHT(OTP_conf_failsafe_reg!I19,LEN(OTP_conf_failsafe_reg!I19)-FIND("-",OTP_conf_failsafe_reg!I19,1)) -> 95.5% | G37: 0.75 | H37: 12 | I37: 3.4 | J37: 0 | K37: 0 | L37: 0 | M37: 0 | N37: 0 | O37: 0 | P37: 1.6 | Q37: 0 | R37: 0 | T37: 0 | U37: 0 | V37: 0 | W37: 0 | X37: 0 | Y37: 0 | Z37: 1
A38: Phase shifting | B38: =RIGHT(OTP_conf_main_reg!G39,LEN(OTP_conf_main_reg!G39)-FIND("-",OTP_conf_main_reg!G39,1)) -> delay 6 | D38: OV_DGLT | E38: =RIGHT(OTP_conf_failsafe_reg!L31,LEN(OTP_conf_failsafe_reg!L31)-FIND("-",OTP_conf_failsafe_reg!L31,1)) -> 25µs | G38: 0.8 | H38: 12 | I38: 3.642857143 | J38: 0 | K38: 0 | L38: 0 | M38: 0 | N38: 0 | O38: 0 | P38: 1.6 | Q38: 0 | R38: 0 | T38: 0 | U38: 0 | V38: 0 | W38: 0 | X38: 0 | Y38: 0 | Z38: 1
A39: Behavior in case of TSD | B39: =RIGHT(OTP_conf_main_reg!H45,LEN(OTP_conf_main_reg!H45)-FIND("-",OTP_conf_main_reg!H45,1)) -> BUCK1 Shutdown | D39: UV_DGLT | E39: =RIGHT(OTP_conf_failsafe_reg!J31,LEN(OTP_conf_failsafe_reg!J31)-FIND("-",OTP_conf_failsafe_reg!J31,1)) -> 25µs | G39: 0.85 | H39: 12 | I39: 3.885714286 | J39: 0 | K39: 0 | L39: 0 | M39: 0 | N39: 0 | O39: 0 | P39: 1.6 | Q39: 0 | R39: 0 | T39: 0 | U39: 0 | V39: 0 | W39: 0 | X39: 0 | Y39: 0 | Z39: 1
A40: Power sequencing slot | B40: =RIGHT(OTP_conf_main_reg!J31,LEN(OTP_conf_main_reg!J31)-FIND("-",OTP_conf_main_reg!J31,1)) -> Regulator Start and Stop in Slot 3 | D40: VMON4 | G40: 0.9 | H40: 12 | I40: 4.128571429 | J40: 0 | K40: 0 | L40: 0 | M40: 0 | N40: 0 | O40: 0 | P40: 1.6 | Q40: 0 | R40: 0 | T40: 0 | U40: 0 | V40: 0 | W40: 0 | X40: 0 | Y40: 0 | Z40: 1
A41: Soft start ramp | B41: =RIGHT(OTP_conf_main_reg!E35,LEN(OTP_conf_main_reg!E35)-FIND("-",OTP_conf_main_reg!E35,1)) -> 7.81mV/µs | D41: OVTH | E41: =RIGHT(OTP_conf_failsafe_reg!E13,LEN(OTP_conf_failsafe_reg!E13)-FIND("-",OTP_conf_failsafe_reg!E13,1)) -> 104.5% | G41: 0.95 | H41: 12 | I41: 4.371428571 | J41: 0 | K41: 0 | L41: 0 | M41: 0 | N41: 0 | O41: 0 | P41: 1.6 | Q41: 0 | R41: 0 | T41: 0 | U41: 0 | V41: 0 | W41: 0 | X41: 0 | Y41: 0 | Z41: 1
A42: BUCK3 | D42: UVTH | E42: =RIGHT(OTP_conf_failsafe_reg!E19,LEN(OTP_conf_failsafe_reg!E19)-FIND("-",OTP_conf_failsafe_reg!E19,1)) -> 95.5% | G42: 1 | H42: =H40 -> 12 | I42: 4.614285714 | J42: 0 | K42: 0 | L42: 0 | M42: 0 | N42: 0 | O42: 0 | P42: 1.6 | Q42: 0 | R42: 0 | T42: 0 | U42: 0 | V42: 0 | W42: 0 | X42: 0 | Y42: 0 | Z42: 1
A43: Enabled | B43: =IF(RIGHT(OTP_conf_main_reg!E25,LEN(OTP_conf_main_reg!E25)-FIND("-",OTP_conf_main_reg!E25,1))=" enabled", "Yes","No") -> Yes | D43: OV_DGLT | E43: =RIGHT(OTP_conf_failsafe_reg!L31,LEN(OTP_conf_failsafe_reg!L31)-FIND("-",OTP_conf_failsafe_reg!L31,1)) -> 25µs | G43: 1.05 | H43: =H41 -> 12 | I43: 4.857142857 | J43: 0 | K43: 0 | L43: 0 | M43: 0 | N43: 0 | O43: 0 | P43: 1.6 | Q43: 0 | R43: 0 | T43: 0 | U43: 0 | V43: 0 | W43: 0 | X43: 0 | Y43: 0 | Z43: 1
A44: Output voltage | B44: =RIGHT(OTP_conf_main_reg!H25,LEN(OTP_conf_main_reg!H25)-FIND("-",OTP_conf_main_reg!H25,1)) -> 2.3V | D44: UV_DGLT | E44: =RIGHT(OTP_conf_failsafe_reg!J31,LEN(OTP_conf_failsafe_reg!J31)-FIND("-",OTP_conf_failsafe_reg!J31,1)) -> 25µs | G44: 1.1 | H44: =H43 -> 12 | I44: 5.1 | J44: 0 | K44: 0 | L44: 0 | M44: 0 | N44: 0 | O44: 0 | P44: 1.6 | Q44: 0 | R44: 0 | T44: 0 | U44: 0 | V44: 0 | W44: 0 | X44: 0 | Y44: 0 | Z44: 1
A45: Inductor | B45: =RIGHT(OTP_conf_main_reg!F25,LEN(OTP_conf_main_reg!F25)-FIND("-",OTP_conf_main_reg!F25,1)) -> 1µH | D45: PGOOD | G45: 1.15 | H45: 12 | I45: =I44 -> 5.1 | J45: 0 | K45: 0 | L45: 0 | M45: 0 | N45: 0 | O45: 0 | P45: 1.6 | Q45: 0 | R45: 0 | T45: 0 | U45: 0 | V45: 0 | W45: 0 | X45: 0 | Y45: 0 | Z45: 1
A46: Current limitation | B46: =RIGHT(OTP_conf_main_reg!K27,LEN(OTP_conf_main_reg!K27)-FIND("-",OTP_conf_main_reg!K27,1)) -> 4.5A | D46: VCOREMON | E46: =IF(RIGHT(OTP_conf_failsafe_reg!L21,LEN(OTP_conf_failsafe_reg!L21)-FIND("-",OTP_conf_failsafe_reg!L21,1))=" Assigned", "Yes","No") -> Yes | G46: 1.2 | H46: 12 | I46: 5.1 | J46: 0 | K46: 0 | L46: 0 | M46: 0 | N46: 0 | O46: 0 | P46: 1.6 | Q46: 0 | R46: 0 | T46: 0 | U46: 0 | V46: 0 | W46: 0 | X46: 0 | Y46: 0 | Z46: 1
A47: Compensation resistor | B47: =RIGHT(OTP_conf_main_reg!K23,LEN(OTP_conf_main_reg!K23)-FIND("-",OTP_conf_main_reg!K23,1)) -> Default | D47: VDDIOMON | E47: =IF(RIGHT(OTP_conf_failsafe_reg!K21,LEN(OTP_conf_failsafe_reg!K21)-FIND("-",OTP_conf_failsafe_reg!K21,1))=" Assigned", "Yes","No") -> Yes | G47: 1.25 | H47: 12 | I47: 5.1 | J47: 0 | K47: 0 | L47: 0 | M47: 0 | N47: 0 | O47: 0 | P47: 1.6 | Q47: 0 | R47: 0 | T47: 0 | U47: 0 | V47: 0 | W47: 0 | X47: 0 | Y47: 0 | Z47: 1
A48: Gain control | B48: =RIGHT(OTP_conf_main_reg!L23,LEN(OTP_conf_main_reg!L23)-FIND("-",OTP_conf_main_reg!L23,1)) -> Default | D48: VMON1 | E48: =IF(RIGHT(OTP_conf_failsafe_reg!J21,LEN(OTP_conf_failsafe_reg!J21)-FIND("-",OTP_conf_failsafe_reg!J21,1))=" Assigned", "Yes","No") -> Yes | G48: 1.3 | H48: 12 | I48: 5.1 | J48: 0 | K48: 0 | L48: 0 | M48: 0 | N48: 0 | O48: 0 | P48: 1.6 | Q48: 0 | R48: 0 | T48: 0 | U48: 0 | V48: 0 | W48: 0 | X48: 0 | Y48: 0 | Z48: 1
A49: Switching frequency | B49: =IF(OTP_conf_main_reg!E43="1 - CLK2",RIGHT(OTP_conf_main_reg!J37,LEN(OTP_conf_main_reg!J37)-FIND("=",OTP_conf_main_reg!J37,1)),RIGHT(OTP_conf_main_reg!K43,LEN(OTP_conf_main_reg!K43)-FIND("=",OTP_conf_main_reg!K43,1))) -> 2.22MHz | D49: VMON2 | E49: =IF(RIGHT(OTP_conf_failsafe_reg!I21,LEN(OTP_conf_failsafe_reg!I21)-FIND("-",OTP_conf_failsafe_reg!I21,1))=" Assigned", "Yes","No") -> Yes | G49: 1.35 | H49: 12 | I49: 5.1 | J49: 0 | K49: 0 | L49: 0 | M49: 0 | N49: 0 | O49: 0 | P49: 1.6 | Q49: 0 | R49: 0 | T49: 0 | U49: 0 | V49: 0 | W49: 0 | X49: 0 | Y49: 0 | Z49: 1
A50: Phase shifting | B50: =RIGHT(OTP_conf_main_reg!G41,LEN(OTP_conf_main_reg!G41)-FIND("-",OTP_conf_main_reg!G41,1)) -> delay 3 | D50: VMON3 | E50: =IF(RIGHT(OTP_conf_failsafe_reg!H21,LEN(OTP_conf_failsafe_reg!H21)-FIND("-",OTP_conf_failsafe_reg!H21,1))=" Assigned", "Yes","No") -> Yes | G50: 1.4 | H50: 12 | I50: 5.1 | J50: 0 | K50: 0 | L50: 0 | M50: 0 | N50: 0 | O50: 0 | P50: 1.6 | Q50: 0 | R50: 0 | T50: 0 | U50: 0 | V50: 0 | W50: 0 | X50: 0 | Y50: 0 | Z50: 1
A51: Behavior in case of TSD | B51: =RIGHT(OTP_conf_main_reg!J45,LEN(OTP_conf_main_reg!J45)-FIND("-",OTP_conf_main_reg!J45,1)) -> BUCK3 Shutdown | D51: VMON4 | E51: =IF(RIGHT(OTP_conf_failsafe_reg!G21,LEN(OTP_conf_failsafe_reg!G21)-FIND("-",OTP_conf_failsafe_reg!G21,1))=" Assigned", "Yes","No") -> Yes | G51: 1.45 | H51: 12 | I51: 5.1 | J51: 0 | K51: 0 | L51: 0 | M51: 0 | N51: 0 | O51: 0 | P51: 1.6 | Q51: 0 | R51: 0 | T51: 0 | U51: 0 | V51: 0 | W51: 0 | X51: 0 | Y51: 0 | Z51: 1
A52: Power sequencing slot | B52: =RIGHT(OTP_conf_main_reg!J35,LEN(OTP_conf_main_reg!J35)-FIND("-",OTP_conf_main_reg!J35,1)) -> Regulator Start and Stop in Slot 0 | D52: RSTB | E52: =IF(RIGHT(OTP_conf_failsafe_reg!F21,LEN(OTP_conf_failsafe_reg!F21)-FIND("-",OTP_conf_failsafe_reg!F21,1))=" Assigned", "Yes","No") -> No | G52: 1.5 | H52: 12 | I52: 5.1 | J52: 0 | K52: 0 | L52: 0 | M52: 0 | N52: 0 | O52: 0 | P52: 1.6 | Q52: 0 | R52: 0 | T52: 0 | U52: 0 | V52: 0 | W52: 0 | X52: 0 | Y52: 0 | Z52: 1
A53: Soft start ramp | B53: =RIGHT(OTP_conf_main_reg!G35,LEN(OTP_conf_main_reg!G35)-FIND("-",OTP_conf_main_reg!G35,1)) -> 10.4mV/µs | D53: ABIST1 | G53: 1.55 | H53: 12 | I53: 5.1 | J53: 0 | K53: 0 | L53: 0 | M53: 0 | N53: 0 | O53: 0 | P53: 1.6 | Q53: 0 | R53: 0 | T53: 0 | U53: 0 | V53: 0 | W53: 0 | X53: 0 | Y53: 0 | Z53: 1
A54: LDO1 | D54: VCOREMON | E54: =IF(RIGHT(OTP_conf_failsafe_reg!L23,LEN(OTP_conf_failsafe_reg!L23)-FIND("-",OTP_conf_failsafe_reg!L23,1))=" Assigned", "Yes","No") -> Yes | G54: 1.6 | H54: 12 | I54: 5.1 | J54: 0 | K54: 0 | L54: 0 | M54: 0 | N54: 0 | O54: 0 | P54: 1.6 | Q54: 0 | R54: 0 | T54: 0 | U54: 0 | V54: 0 | W54: 0 | X54: 0 | Y54: 0 | Z54: 1
A55: Output voltage | B55: =RIGHT(OTP_conf_main_reg!J29,LEN(OTP_conf_main_reg!J29)-FIND("-",OTP_conf_main_reg!J29,1)) -> 1.8V | D55: VDDIOMON | E55: =IF(RIGHT(OTP_conf_failsafe_reg!K23,LEN(OTP_conf_failsafe_reg!K23)-FIND("-",OTP_conf_failsafe_reg!K23,1))=" Assigned", "Yes","No") -> Yes | G55: 1.65 | H55: 12 | I55: 5.1 | J55: 0 | K55: 0 | L55: 0 | M55: 0 | N55: 0 | O55: 0 | P55: 1.6 | Q55: 0 | R55: 0 | T55: 0 | U55: 0 | V55: 0 | W55: 0 | X55: 0 | Y55: 0 | Z55: 1
A56: Current limitation | B56: =RIGHT(OTP_conf_main_reg!I29,LEN(OTP_conf_main_reg!I29)-FIND("-",OTP_conf_main_reg!I29,1)) -> 400mA | D56: VMON1 | E56: =IF(RIGHT(OTP_conf_failsafe_reg!J23,LEN(OTP_conf_failsafe_reg!J23)-FIND("-",OTP_conf_failsafe_reg!J23,1))=" Assigned", "Yes","No") -> Yes | G56: 1.7 | H56: 12 | I56: 5.1 | J56: 0 | K56: 0 | L56: 0 | M56: 0 | N56: 0 | O56: 0 | P56: 1.6 | Q56: 0 | R56: 0 | T56: 0 | U56: 0 | V56: 0 | W56: 0 | X56: 0 | Y56: 0 | Z56: 1
A57: Behavior in case of TSD | B57: =RIGHT(OTP_conf_main_reg!K45,LEN(OTP_conf_main_reg!K45)-FIND("-",OTP_conf_main_reg!K45,1)) -> LDO1 Shutdown | D57: VMON2 | E57: =IF(RIGHT(OTP_conf_failsafe_reg!I23,LEN(OTP_conf_failsafe_reg!I23)-FIND("-",OTP_conf_failsafe_reg!I23,1))=" Assigned", "Yes","No") -> Yes | G57: 1.75 | H57: 12 | I57: 5.1 | J57: 0 | K57: 0 | L57: 0 | M57: 0 | N57: 0 | O57: 0 | P57: 1.6 | Q57: 0 | R57: 0 | T57: 0 | U57: 0 | V57: 0 | W57: 0 | X57: 0 | Y57: 0 | Z57: 1
A58: Power sequencing slot | B58: =RIGHT(OTP_conf_main_reg!J33,LEN(OTP_conf_main_reg!J33)-FIND("-",OTP_conf_main_reg!J33,1)) -> Regulator Start and Stop in Slot 2 | D58: VMON3 | E58: =IF(RIGHT(OTP_conf_failsafe_reg!H23,LEN(OTP_conf_failsafe_reg!H23)-FIND("-",OTP_conf_failsafe_reg!H23,1))=" Assigned", "Yes","No") -> Yes | G58: 1.8 | H58: 12 | I58: 5.1 | J58: 0 | K58: 0 | L58: 0 | M58: 0 | N58: 0 | O58: 0 | P58: 1.6 | Q58: 0 | R58: 0 | T58: 0 | U58: 0 | V58: 0 | W58: 0 | X58: 0 | Y58: 0 | Z58: 1
A59: LDO2 | D59: VMON4 | E59: =IF(RIGHT(OTP_conf_failsafe_reg!G23,LEN(OTP_conf_failsafe_reg!G23)-FIND("-",OTP_conf_failsafe_reg!G23,1))=" Assigned", "Yes","No") -> Yes | G59: 1.85 | H59: 12 | I59: 5.1 | J59: 0 | K59: 0 | L59: 0 | M59: 0 | N59: 0 | O59: 0 | P59: 1.6 | Q59: 0 | R59: 0 | T59: 0 | U59: 0 | V59: 0 | W59: 0 | X59: 0 | Y59: 0 | Z59: 1
A60: Output voltage | B60: =RIGHT(OTP_conf_main_reg!F29,LEN(OTP_conf_main_reg!F29)-FIND("-",OTP_conf_main_reg!F29,1)) -> 3.3V | D60: Safety enable | G60: 1.9 | H60: 12 | I60: 5.1 | J60: 0 | K60: 0 | L60: 0 | M60: 0 | N60: 0 | O60: 0 | P60: 1.6 | Q60: 0 | R60: 0 | T60: 0 | U60: 0 | V60: 0 | W60: 0 | X60: 0 | Y60: 0 | Z60: 1
A61: Current limitation | B61: =RIGHT(OTP_conf_main_reg!E29,LEN(OTP_conf_main_reg!E29)-FIND("-",OTP_conf_main_reg!E29,1)) -> 400mA | D61: VMON1 | E61: =IF(RIGHT(OTP_conf_failsafe_reg!L25,LEN(OTP_conf_failsafe_reg!L25)-FIND("-",OTP_conf_failsafe_reg!L25,1))=" Enabled", "Yes","No") -> Yes | G61: 1.95 | H61: 12 | I61: 5.1 | J61: 0 | K61: 0 | L61: 0 | M61: 0 | N61: 0 | O61: 0 | P61: 1.6 | Q61: 0 | R61: 0 | T61: 0 | U61: 0 | V61: 0 | W61: 0 | X61: 0 | Y61: 0 | Z61: 1
A62: Behavior in case of TSD | B62: =RIGHT(OTP_conf_main_reg!L45,LEN(OTP_conf_main_reg!L45)-FIND("-",OTP_conf_main_reg!L45,1)) -> LDO2 Shutdown | D62: VMON2 | E62: =IF(RIGHT(OTP_conf_failsafe_reg!K25,LEN(OTP_conf_failsafe_reg!K25)-FIND("-",OTP_conf_failsafe_reg!K25,1))=" Enabled", "Yes","No") -> Yes | G62: 2 | H62: 12 | I62: 5.1 | J62: 0 | K62: 0 | L62: 0 | M62: 0 | N62: 0 | O62: 0 | P62: 1.6 | Q62: 0 | R62: 0 | T62: 0 | U62: 0 | V62: 0 | W62: 0 | X62: 0 | Y62: 0 | Z62: 1
A63: Power sequencing slot | B63: =RIGHT(OTP_conf_main_reg!G33,LEN(OTP_conf_main_reg!G33)-FIND("-",OTP_conf_main_reg!G33,1)) -> Regulator Start and Stop in Slot 0 | D63: VMON3 | E63: =IF(RIGHT(OTP_conf_failsafe_reg!J25,LEN(OTP_conf_failsafe_reg!J25)-FIND("-",OTP_conf_failsafe_reg!J25,1))=" Enabled", "Yes","No") -> Yes | G63: 2.05 | H63: 12 | I63: 5.1 | J63: 0 | K63: 0 | L63: 0 | M63: 0 | N63: 0 | O63: 0 | P63: 1.6 | Q63: 0 | R63: 0 | T63: 0 | U63: 0 | V63: 0 | W63: 0 | X63: 0 | Y63: 0 | Z63: 1
A64: Other | D64: VMON4 | E64: =IF(RIGHT(OTP_conf_failsafe_reg!I25,LEN(OTP_conf_failsafe_reg!I25)-FIND("-",OTP_conf_failsafe_reg!I25,1))=" Enabled", "Yes","No") -> Yes | G64: 2.1 | H64: 12 | I64: 5.1 | J64: 0 | K64: 0 | L64: 0 | M64: 0 | N64: 0 | O64: 0 | P64: 1.6 | Q64: 0 | R64: 0 | T64: 0 | U64: 0 | V64: 0 | W64: 0 | X64: 0 | Y64: 0 | Z64: 1
A65: Power up/down slot duration | B65: =RIGHT(OTP_conf_main_reg!I35,LEN(OTP_conf_main_reg!I35)-FIND("-",OTP_conf_main_reg!I35,1)) -> 1000µs | D65: FCCU | E65: =IF(RIGHT(OTP_conf_failsafe_reg!H25,LEN(OTP_conf_failsafe_reg!H25)-FIND("-",OTP_conf_failsafe_reg!H25,1))=" Enabled", "Yes","No") -> Yes | G65: 2.15 | H65: 12 | I65: 5.1 | J65: 0 | K65: 0 | L65: 0 | M65: 0 | N65: 0 | O65: 0 | P65: 1.6 | Q65: 0 | R65: 0 | T65: 0 | U65: 0 | V65: 0 | W65: 0 | X65: 0 | Y65: 0 | Z65: 1
A66: PSYNC | B66: =IF(OTP_conf_main_reg!L47="1 - Enabled",RIGHT(OTP_conf_main_reg!K47,LEN(OTP_conf_main_reg!K47)-FIND("-",OTP_conf_main_reg!K47,1)),"Disabled") -> 2x FS84_QFN48EP | D66: WATCHDOG | E66: =IF(RIGHT(OTP_conf_failsafe_reg!E25,LEN(OTP_conf_failsafe_reg!E25)-FIND("-",OTP_conf_failsafe_reg!E25,1))=" Enabled", RIGHT(OTP_conf_failsafe_reg!F25,LEN(OTP_conf_failsafe_reg!F25)-FIND("-",OTP_conf_failsafe_reg!F25,1)),"No") -> Simple WD | G66: 2.2 | H66: 12 | I66: 5.1 | J66: 0 | K66: 0 | L66: 0 | M66: 0 | N66: 0 | O66: 0 | P66: 1.6 | Q66: 0 | R66: 0 | T66: 0 | U66: 0 | V66: 0 | W66: 0 | X66: 0 | Y66: 0 | Z66: 1
A67: PLL enabled | B67: =IF(RIGHT(OTP_conf_main_reg!J43,LEN(OTP_conf_main_reg!J43)-FIND("-",OTP_conf_main_reg!J43,1))=" enabled", "Yes","No") -> Yes | D67: FLT_RECOVERY | E67: =IF(RIGHT(OTP_conf_failsafe_reg!H27,LEN(OTP_conf_failsafe_reg!H27)-FIND("-",OTP_conf_failsafe_reg!H27,1))=" Enabled", "Yes","No") -> Yes | G67: 2.25 | H67: 12 | I67: 5.1 | J67: 0 | K67: 0 | L67: 0 | M67: 0 | N67: 0 | O67: 0 | P67: 1.6 | Q67: 0 | R67: 0 | T67: 0 | U67: 0 | V67: 0 | W67: 0 | X67: 0 | Y67: 0 | Z67: 1
A68: Deep Fail Safe (autoretry) | B68: =IF(OTP_conf_main_reg!J47="1 - Enabled",IF(OTP_conf_main_reg!I47="1 - Enabled","Infinite","x15"),"Disabled") -> Infinite | G68: 2.3 | H68: 12 | I68: 5.1 | J68: 0 | K68: 0 | L68: 0 | M68: 0 | N68: 0 | O68: 0 | P68: 1.6 | Q68: 0 | R68: 0 | T68: 0 | U68: 0 | V68: 0 | W68: 0 | X68: 0 | Y68: 0 | Z68: 1
A69: VSUP power-up threshold | B69: =RIGHT(OTP_conf_main_reg!L49,LEN(OTP_conf_main_reg!L49)-FIND("-",OTP_conf_main_reg!L49,1)) -> 4.9V for Vpre < 4.5V | G69: 2.35 | H69: 12 | I69: 5.1 | J69: 0 | K69: 0 | L69: 0 | M69: 0 | N69: 0 | O69: 0 | P69: 1.6 | Q69: 0 | R69: 0 | T69: 0 | U69: 0 | V69: 0 | W69: 0 | X69: 0 | Y69: 0 | Z69: 1
A70: Regulator assigned to VDDIO | B70: =RIGHT(OTP_conf_main_reg!J53,LEN(OTP_conf_main_reg!J53)-6) -> LDO2 | G70: 2.4 | H70: 12 | I70: 5.1 | J70: 0 | K70: 0 | L70: 0 | M70: 0 | N70: 0 | O70: 0 | P70: 1.6 | Q70: 0 | R70: 0 | T70: 0 | U70: 0 | V70: 0 | W70: 0 | X70: 0 | Y70: 0 | Z70: 1
A71: Device ID | B71: =OTP_conf_main_reg!E55 -> 00000001 | G71: 2.45 | H71: 12 | I71: 5.1 | J71: 0 | K71: 0 | L71: 0 | M71: 0 | N71: 0 | O71: 0 | P71: 1.6 | Q71: 0 | R71: 0 | T71: 0 | U71: 0 | V71: 0 | W71: 0 | X71: 0 | Y71: 0 | Z71: 1
G72: 2.5 | H72: 12 | I72: 5.1 | J72: 0 | K72: 0 | L72: 0 | M72: 0 | N72: 0 | O72: 0 | P72: 1.6 | Q72: 0 | R72: 0 | T72: 0 | U72: 0 | V72: 0 | W72: 0 | X72: 0 | Y72: 0 | Z72: 1
G73: 2.55 | H73: 12 | I73: 5.1 | J73: 0 | K73: 0 | L73: 0 | M73: 0 | N73: 0 | O73: 0 | P73: 1.6 | Q73: 0 | R73: 0 | T73: 0 | U73: 0 | V73: 0 | W73: 0 | X73: 0 | Y73: 0 | Z73: 1
G74: 2.6 | H74: =H73 -> 12 | I74: =I73 -> 5.1 | J74: 0 | K74: 0 | L74: 0 | M74: 0 | N74: 0 | O74: 0 | P74: 1.6 | Q74: 0 | R74: 0 | T74: 0 | U74: 0 | V74: 0 | W74: 0 | X74: 0 | Y74: 0 | Z74: 1
G75: 2.65 | H75: 12 | I75: 5.1 | J75: 0 | K75: 0 | L75: 0 | M75: 0 | N75: 0 | O75: 0 | P75: 1.6 | Q75: 0 | R75: 0 | T75: 0 | U75: 0 | V75: 0 | W75: 0 | X75: 0 | Y75: 0 | Z75: 1
G76: 2.7 | H76: 12 | I76: 5.1 | J76: 0 | K76: 0 | L76: 0 | M76: 0 | N76: 0 | O76: 0 | P76: 1.6 | Q76: 0 | R76: 0 | T76: 0 | U76: 0 | V76: 0 | W76: 0 | X76: 0 | Y76: 0 | Z76: 1
G77: 2.75 | H77: 12 | I77: 5.1 | J77: 0 | K77: 0 | L77: 0 | M77: 0 | N77: 0 | O77: 0 | P77: 1.6 | Q77: 0 | R77: 0 | T77: 0 | U77: 0 | V77: 0 | W77: 0 | X77: 0 | Y77: 0 | Z77: 1
G78: 2.8 | H78: 12 | I78: 5.1 | J78: 0 | K78: 0 | L78: 0 | M78: 0 | N78: 0 | O78: 0 | P78: 1.6 | Q78: 0 | R78: 0 | T78: 0 | U78: =IF(OR(U$17="ABIST1_No",COUNTIF($V$2,U$18)),1,IF(AND(U$19<>0,OFFSET($I78,0,MATCH(U$18,$J$21:$O$21,0))=U$19),1,0)) -> 0 | V78: 0 | W78: 0 | X78: 0 | Y78: 0 | Z78: 1
G79: 2.85 | H79: 12 | I79: 5.1 | J79: 0 | K79: 0 | L79: 0 | M79: 0 | N79: 0 | O79: 0 | P79: 1.6 | Q79: 0 | R79: 0 | T79: 0 | U79: 0 | V79: 0 | W79: 0 | X79: 0 | Y79: 0 | Z79: 1
G80: 2.9 | H80: 12 | I80: 5.1 | J80: 0 | K80: 0 | L80: 0 | M80: 0 | N80: 0 | O80: 0 | P80: 1.6 | Q80: 0 | R80: 0 | T80: 0 | U80: 0 | V80: 0 | W80: 0 | X80: 0 | Y80: 0 | Z80: 1
G81: 2.95 | H81: 12 | I81: 5.1 | J81: 0 | K81: 0 | L81: 0 | M81: 0 | N81: 0 | O81: 0 | P81: 1.6 | Q81: 0 | R81: 0 | T81: 0 | U81: 0 | V81: 0 | W81: 0 | X81: 0 | Y81: 0 | Z81: 1
G82: 3 | H82: 12 | I82: 5.1 | J82: 0 | K82: 0 | L82: 0 | M82: 0 | N82: 0 | O82: 0 | P82: 1.6 | Q82: 0 | R82: 0 | T82: 0 | U82: 0 | V82: 0 | W82: 0 | X82: 0 | Y82: 0 | Z82: 1
G83: 3.05 | H83: 12 | I83: 5.1 | J83: 0 | K83: 0 | L83: 0 | M83: 0 | N83: 0 | O83: 0 | P83: 1.6 | Q83: 0 | R83: 0 | T83: 0 | U83: 0 | V83: 0 | W83: 0 | X83: 0 | Y83: 0 | Z83: 1
G84: 3.1 | H84: 12 | I84: 5.1 | J84: 0 | K84: 0 | L84: 0 | M84: 0 | N84: 0 | O84: 0 | P84: 1.6 | Q84: 0 | R84: 0 | T84: 0 | U84: 0 | V84: 0 | W84: 0 | X84: 0 | Y84: 0 | Z84: 1
G85: 3.15 | H85: 12 | I85: 5.1 | J85: 0 | K85: 0 | L85: 0 | M85: 0 | N85: 0 | O85: 0 | P85: 1.6 | Q85: 0 | R85: 0 | T85: 0 | U85: 0 | V85: 0 | W85: 0 | X85: 0 | Y85: 0 | Z85: 1
G86: 3.2 | H86: 12 | I86: 5.1 | J86: 0 | K86: 0 | L86: 0 | M86: 0 | N86: 0 | O86: 0 | P86: 1.6 | Q86: 0 | R86: =IF(AND(T86>0,T86<0.2+$AF$12/6),$R$8,0) -> 0 | T86: 0 | U86: 0 | V86: 0 | W86: 0 | X86: 0 | Y86: 0 | Z86: 1
G87: 3.25 | H87: 12 | I87: 5.1 | J87: 0 | K87: 0 | L87: 0 | M87: 0 | N87: 0 | O87: 0 | P87: 1.6 | Q87: =IF(T87>=0.2+$AF$12/6+$H$1,$Q$8,0) -> 0 | R87: 0 | T87: 0 | U87: 0 | V87: 0 | W87: 0 | X87: 0 | Y87: 0 | Z87: 1
G88: =G87+0.05 -> 3.3 | H88: 12 | I88: 5.1 | J88: 0 | K88: 0 | L88: 0 | M88: 0 | N88: 0 | O88: 0 | P88: 1.6 | Q88: 0 | R88: 0 | T88: =T87+IF(INT(AND(U88:Z88,P87="DONE"))=0,0,G88-G87) -> 0 | U88: 0 | V88: 0 | W88: 0 | X88: 0 | Y88: 0 | Z88: 1
G89: 3.35 | H89: 12 | I89: 5.1 | J89: 0 | K89: 0 | L89: 0 | M89: 0 | N89: 0 | O89: 0 | P89: 1.6 | Q89: 0 | R89: 0 | T89: 0 | U89: 0 | V89: 0 | W89: 0 | X89: 0 | Y89: 0 | Z89: 1
G90: 3.4 | H90: 12 | I90: 5.1 | J90: 0 | K90: 0 | L90: 0 | M90: 0 | N90: 0 | O90: 0 | P90: 1.6 | Q90: 0 | R90: 0 | T90: 0 | U90: 0 | V90: 0 | W90: 0 | X90: 0 | Y90: 0 | Z90: 1
G91: =G90+0.05 -> 3.45 | H91: 12 | I91: 5.1 | J91: 0 | K91: 0 | L91: 0 | M91: 0 | N91: 0 | O91: 0 | P91: 1.6 | Q91: 0 | R91: 0 | T91: 0 | U91: 0 | V91: 0 | W91: 0 | X91: 0 | Y91: 0 | Z91: 1
G92: 3.5 | H92: 12 | I92: 5.1 | J92: 0 | K92: 0 | L92: 0 | M92: 0 | N92: 0 | O92: 0 | P92: 1.6 | Q92: 0 | R92: 0 | T92: 0 | U92: 0 | V92: 0 | W92: 0 | X92: 0 | Y92: 0 | Z92: 1
G93: 3.55 | H93: 12 | I93: 5.1 | J93: 0 | K93: 0 | L93: 0 | M93: 0 | N93: 0 | O93: 0 | P93: 1.6 | Q93: 0 | R93: 0 | T93: 0 | U93: 0 | V93: 0 | W93: 0 | X93: 0 | Y93: 0 | Z93: 1
G94: 3.6 | H94: 12 | I94: 5.1 | J94: 0 | K94: 0 | L94: 0 | M94: 0 | N94: 0 | O94: 0 | P94: 1.6 | Q94: 0 | R94: 0 | T94: 0 | U94: 0 | V94: 0 | W94: 0 | X94: 0 | Y94: 0 | Z94: 1
G95: 3.65 | H95: 12 | I95: 5.1 | J95: 0 | K95: 0 | L95: 0 | M95: 0 | N95: 0 | O95: 0 | P95: 1.6 | Q95: 0 | R95: 0 | T95: 0 | U95: 0 | V95: 0 | W95: 0 | X95: 0 | Y95: 0 | Z95: 1
G96: 3.7 | H96: 12 | I96: 5.1 | J96: 0 | K96: 0 | L96: 0 | M96: 0 | N96: 0 | O96: 0 | P96: 1.6 | Q96: 0 | R96: 0 | T96: 0 | U96: 0 | V96: 0 | W96: 0 | X96: 0 | Y96: 0 | Z96: 1
G97: 3.75 | H97: 12 | I97: 5.1 | J97: 0 | K97: 0 | L97: 0 | M97: 0 | N97: 0 | O97: 0 | P97: 1.6 | Q97: 0 | R97: 0 | T97: 0 | U97: 0 | V97: 0 | W97: 0 | X97: 0 | Y97: 0 | Z97: 1
G98: 3.8 | H98: 12 | I98: 5.1 | J98: 0 | K98: 0 | L98: 0 | M98: 0 | N98: 0 | O98: 0 | P98: 1.6 | Q98: 0 | R98: 0 | T98: 0 | U98: 0 | V98: 0 | W98: 0 | X98: 0 | Y98: 0 | Z98: 1
G99: 3.85 | H99: 12 | I99: 5.1 | J99: 0 | K99: 0 | L99: 0 | M99: 0 | N99: 0 | O99: 0 | P99: 1.6 | Q99: 0 | R99: 0 | T99: 0 | U99: 0 | V99: 0 | W99: 0 | X99: 0 | Y99: 0 | Z99: 1
G100: 3.9 | H100: 12 | I100: 5.1 | J100: 0 | K100: 0 | L100: 0 | M100: 0 | N100: 0 | O100: 0 | P100: 1.6 | Q100: 0 | R100: 0 | T100: 0 | U100: 0 | V100: 0 | W100: 0 | X100: 0 | Y100: 0 | Z100: 1
G101: 3.95 | H101: 12 | I101: 5.1 | J101: 0 | K101: 0 | L101: 0 | M101: 0 | N101: 0 | O101: 0 | P101: 1.6 | Q101: 0 | R101: 0 | T101: 0 | U101: 0 | V101: 0 | W101: 0 | X101: 0 | Y101: 0 | Z101: 1
G102: 4 | H102: 12 | I102: 5.1 | J102: 0 | K102: 0 | L102: 0 | M102: 0 | N102: 0 | O102: 0 | P102: 1.6 | Q102: 0 | R102: 0 | T102: 0 | U102: 0 | V102: 0 | W102: 0 | X102: 0 | Y102: 0 | Z102: 1
G103: 4.05 | H103: 12 | I103: 5.1 | J103: 0 | K103: 0 | L103: 0 | M103: 0 | N103: 0 | O103: 0 | P103: 1.6 | Q103: 0 | R103: 0 | T103: 0 | U103: 0 | V103: 0 | W103: 0 | X103: 0 | Y103: 0 | Z103: 1
G104: 4.1 | H104: 12 | I104: 5.1 | J104: 0 | K104: 0 | L104: 0 | M104: 0 | N104: 0 | O104: 0 | P104: 1.6 | Q104: 0 | R104: 0 | T104: 0 | U104: 0 | V104: 0 | W104: 0 | X104: 0 | Y104: 0 | Z104: 1
G105: 4.15 | H105: 12 | I105: 5.1 | J105: 0 | K105: 0 | L105: 0 | M105: 0 | N105: 0 | O105: 0 | P105: 1.6 | Q105: 0 | R105: 0 | T105: 0 | U105: 0 | V105: 0 | W105: 0 | X105: 0 | Y105: 0 | Z105: 1
G106: 4.2 | H106: 12 | I106: 5.1 | J106: 0 | K106: 0 | L106: 0 | M106: 0 | N106: 0 | O106: 0 | P106: 1.6 | Q106: 0 | R106: 0 | T106: 0 | U106: 0 | V106: 0 | W106: 0 | X106: 0 | Y106: 0 | Z106: 1
G107: 4.25 | H107: 12 | I107: 5.1 | J107: 0 | K107: 0 | L107: 0 | M107: 0 | N107: 0 | O107: 0 | P107: 1.6 | Q107: 0 | R107: 0 | T107: 0 | U107: 0 | V107: 0 | W107: 0 | X107: 0 | Y107: 0 | Z107: 1
G108: 4.3 | H108: =H107 -> 12 | I108: 5.1 | J108: 0 | K108: 0 | L108: 0 | M108: 0 | N108: 0 | O108: 0 | P108: 1.6 | Q108: 0 | R108: 0 | T108: 0 | U108: 0 | V108: 0 | W108: 0 | X108: 0 | Y108: 0 | Z108: 1
G109: 4.35 | H109: 12 | I109: 5.1 | J109: 0 | K109: 0 | L109: 0 | M109: 0 | N109: 0 | O109: 0 | P109: 1.6 | Q109: 0 | R109: 0 | T109: 0 | U109: 0 | V109: 0 | W109: 0 | X109: 0 | Y109: 0 | Z109: 1
G110: 4.4 | H110: 12 | I110: 5.1 | J110: 0 | K110: 0 | L110: 0 | M110: 0 | N110: 0 | O110: 0 | P110: 1.6 | Q110: 0 | R110: 0 | T110: 0 | U110: 0 | V110: 0 | W110: 0 | X110: 0 | Y110: 0 | Z110: 1
G111: 4.45 | H111: 12 | I111: 5.1 | J111: 0 | K111: 0 | L111: 0 | M111: 0 | N111: 0 | O111: 0 | P111: 1.6 | Q111: 0 | R111: 0 | T111: 0 | U111: 0 | V111: 0 | W111: 0 | X111: 0 | Y111: 0 | Z111: 1
G112: 4.5 | H112: 12 | I112: 5.1 | J112: 0 | K112: 0 | L112: 0 | M112: 0 | N112: 0 | O112: 0 | P112: 1.6 | Q112: 0 | R112: 0 | T112: 0 | U112: 0 | V112: 0 | W112: 0 | X112: 0 | Y112: 0 | Z112: 1
G113: 4.55 | H113: 12 | I113: 5.1 | J113: 0 | K113: 0 | L113: 0 | M113: 0 | N113: 0 | O113: 0 | P113: 1.6 | Q113: 0 | R113: 0 | T113: 0 | U113: 0 | V113: 0 | W113: 0 | X113: 0 | Y113: 0 | Z113: 1
G114: 4.6 | H114: 12 | I114: 5.1 | J114: 0 | K114: 0 | L114: 0 | M114: 0 | N114: 0 | O114: 0 | P114: DONE | Q114: 0 | R114: 0 | T114: 0 | U114: 0 | V114: 0 | W114: 0 | X114: 0 | Y114: 0 | Z114: 1
F115: p | G115: 4.65 | H115: 12 | I115: 5.1 | J115: =MIN($J$8,$J$8/10+J114) -> 0.33 | K115: 0 | L115: 0 | M115: 0 | N115: 0 | O115: 0 | P115: DONE | Q115: 0 | R115: 0 | T115: 0 | U115: 0 | V115: 0 | W115: 0 | X115: 0 | Y115: 0 | Z115: 1
F116: p | G116: 4.7 | H116: 12 | I116: 5.1 | J116: 0.66 | K116: =IF(EXACT($B$23,"No"),J116-0.5,J116-0.6) -> 0.06 | L116: 0 | M116: 0 | N116: 0 | O116: 0 | P116: DONE | Q116: 0 | R116: 0 | T116: 0 | U116: 0 | V116: 0 | W116: 0 | X116: 0 | Y116: 0 | Z116: 1
F117: p | G117: 4.75 | H117: 12 | I117: 5.1 | J117: 0.99 | K117: =IF(EXACT($B$23,"No"),J117-0.5,J117-0.6) -> 0.39 | L117: 0 | M117: 0 | N117: 0 | O117: 0 | P117: DONE | Q117: 0 | R117: 0 | T117: 0 | U117: 0 | V117: 0 | W117: 0 | X117: 0 | Y117: 0 | Z117: 1
F118: p | G118: 4.8 | H118: 12 | I118: 5.1 | J118: 1.32 | K118: 0.72 | L118: 0 | M118: 0 | N118: 0 | O118: 0 | P118: DONE | Q118: 0 | R118: 0 | T118: 0 | U118: 0 | V118: 0 | W118: 0 | X118: 0 | Y118: 0 | Z118: 1
F119: p | G119: 4.85 | H119: 12 | I119: 5.1 | J119: 1.65 | K119: 1.05 | L119: 0 | M119: 0 | N119: 0 | O119: 0 | P119: DONE | Q119: 0 | R119: 0 | T119: 0 | U119: 0 | V119: 0 | W119: 0 | X119: 0 | Y119: 0 | Z119: 1
F120: p | G120: 4.9 | H120: 12 | I120: 5.1 | J120: 1.98 | K120: 1.38 | L120: 0 | M120: 0 | N120: 0 | O120: 0 | P120: DONE | Q120: 0 | R120: 0 | T120: 0 | U120: 0 | V120: 0 | W120: 0 | X120: =IF(OR(X$17="ABIST1_No",COUNTIF($V$2,X$18)),1,IF(AND(X$19<>0,OFFSET($I120,0,MATCH(X$18,$J$21:$O$21,0))=X$19),1,0)) -> 0 | Y120: 0 | Z120: 1
F121: p | G121: 4.95 | H121: 12 | I121: 5.1 | J121: 2.31 | K121: 1.71 | L121: 0 | M121: 0 | N121: 0 | O121: 0 | P121: DONE | Q121: 0 | R121: 0 | T121: 0 | U121: =IF(OR(U$17="ABIST1_No",COUNTIF($V$2,U$18)),1,IF(AND(U$19<>0,OFFSET($I121,0,MATCH(U$18,$J$21:$O$21,0))=U$19),1,0)) -> 0 | V121: 0 | W121: 0 | X121: 0 | Y121: 0 | Z121: 1
F122: p | G122: 5 | H122: 12 | I122: 5.1 | J122: 2.64 | K122: 2.04 | L122: 0 | M122: 0 | N122: 0 | O122: 0 | P122: DONE | Q122: 0 | R122: 0 | T122: 0 | U122: 0 | V122: 0 | W122: 0 | X122: 0 | Y122: 0 | Z122: 1
F123: p | G123: 5.05 | H123: 12 | I123: 5.1 | J123: 2.97 | K123: 2.37 | L123: 0 | M123: 0 | N123: 0 | O123: 0 | P123: DONE | Q123: 0 | R123: 0 | T123: 0 | U123: 0 | V123: 0 | W123: 0 | X123: 0 | Y123: 0 | Z123: 1
E124: 0 | F124: p | G124: 5.1 | H124: 12 | I124: 5.1 | J124: 3.3 | K124: =MAX(K123,J124-0.5) -> 2.8 | L124: 0 | M124: 0 | N124: 0 | O124: 0 | P124: DONE | Q124: 0 | R124: 0 | T124: 0 | U124: 0 | V124: 0 | W124: 0 | X124: 1 | Y124: 0 | Z124: 1
E125: =E124+$K$8/10 -> 0.5 | F125: b | G125: =G124+0.05 -> 5.15 | H125: 12 | I125: 5.1 | J125: 3.3 | K125: =IF(EXACT($B$23,"No"),J124-0.1,MAX(K124,E125)) -> 2.8 | L125: 0 | M125: 0 | N125: 0 | O125: 0 | P125: DONE | Q125: 0 | R125: 0 | T125: 0 | U125: 0 | V125: 0 | W125: 0 | X125: 1 | Y125: 0 | Z125: 1
E126: =E125+$K$8/10 -> 1 | F126: b | G126: =G125+0.05*EXACT($B$23,"Yes") -> 5.2 | H126: 12 | I126: 5.1 | J126: 3.3 | K126: =IF(EXACT($B$23,"No"),J125-0.1,MAX(K125,E126)) -> 2.8 | L126: 0 | M126: 0 | N126: 0 | O126: 0 | P126: DONE | Q126: 0 | R126: 0 | T126: 0 | U126: 0 | V126: 0 | W126: 0 | X126: 1 | Y126: 0 | Z126: 1
E127: 1.5 | F127: b | G127: 5.25 | H127: 12 | I127: 5.1 | J127: 3.3 | K127: 2.8 | L127: 0 | M127: 0 | N127: 0 | O127: 0 | P127: DONE | Q127: 0 | R127: 0 | T127: 0 | U127: 0 | V127: 0 | W127: 0 | X127: 1 | Y127: 0 | Z127: 1
E128: 2 | F128: b | G128: 5.3 | H128: 12 | I128: 5.1 | J128: 3.3 | K128: 2.8 | L128: 0 | M128: 0 | N128: 0 | O128: 0 | P128: DONE | Q128: 0 | R128: 0 | T128: 0 | U128: 0 | V128: 0 | W128: 0 | X128: 1 | Y128: 0 | Z128: 1
E129: 2.5 | F129: b | G129: 5.35 | H129: 12 | I129: 5.1 | J129: 3.3 | K129: 2.8 | L129: 0 | M129: 0 | N129: 0 | O129: 0 | P129: DONE | Q129: 0 | R129: 0 | T129: 0 | U129: 0 | V129: 0 | W129: 0 | X129: 1 | Y129: 0 | Z129: 1
E130: 3 | F130: b | G130: 5.4 | H130: 12 | I130: 5.1 | J130: 3.3 | K130: 3 | L130: 0 | M130: 0 | N130: 0 | O130: 0 | P130: DONE | Q130: 0 | R130: 0 | T130: 0 | U130: 0 | V130: 0 | W130: 0 | X130: 1 | Y130: 0 | Z130: 1
E131: 3.5 | F131: b | G131: 5.45 | H131: 12 | I131: 5.1 | J131: 3.3 | K131: 3.5 | L131: 0 | M131: 0 | N131: 0 | O131: 0 | P131: DONE | Q131: 0 | R131: 0 | T131: 0 | U131: 0 | V131: 0 | W131: 0 | X131: 1 | Y131: 0 | Z131: 1
E132: 4 | F132: b | G132: 5.5 | H132: 12 | I132: 5.1 | J132: 3.3 | K132: 4 | L132: 0 | M132: 0 | N132: 0 | O132: 0 | P132: DONE | Q132: 0 | R132: 0 | T132: 0 | U132: 0 | V132: 0 | W132: 0 | X132: 1 | Y132: 0 | Z132: 1
E133: 4.5 | F133: b | G133: 5.55 | H133: 12 | I133: 5.1 | J133: 3.3 | K133: =IF(EXACT($B$23,"No"),J132-0.1,MAX(K132,E133)) -> 4.5 | L133: 0 | M133: 0 | N133: 0 | O133: 0 | P133: DONE | Q133: 0 | R133: 0 | T133: 0 | U133: 0 | V133: 0 | W133: 0 | X133: 1 | Y133: 0 | Z133: 1
E134: 5 | F134: b | G134: 5.6 | H134: 12 | I134: 5.1 | J134: 3.3 | K134: 5 | L134: 0 | M134: 0 | N134: 0 | O134: 0 | P134: DONE | Q134: 0 | R134: 0 | T134: 0 | U134: 0 | V134: 0 | W134: 0 | X134: 1 | Y134: 0 | Z134: 1
F135: 0 | G135: =G134+$H$1 -> 5.7 | H135: =H134 -> 12 | I135: 5.1 | J135: 3.3 | K135: 5 | L135: =IF(L$7<=$F135,MIN(L$8,L134+L$8/MAX(1,ROUND(L$8/$H$1/L$9,0))),L134) -> 0 | M135: =IF(M$7<=$F135,MIN(M$8,M134+M$8/MAX(1,ROUND(M$8/$H$1/M$9,0))),M134) -> 1.15 | N135: =IF(N$7<=$F135,MIN(N$8,N134+N$8/MAX(1,ROUND(N$8/$H$1/N$9,0))),N134) -> 0 | O135: =IF(O$7<=$F135,MIN(O$8,O134+O$8/MAX(1,ROUND(O$8/$H$1/O$9,0))),O134) -> 0.32 | P135: DONE | Q135: 0 | R135: 0 | T135: 0 | U135: 0 | V135: 0 | W135: 0 | X135: 1 | Y135: 0 | Z135: 1
F136: 0 | G136: =G135+$H$1 -> 5.8 | H136: 12 | I136: 5.1 | J136: =J135 -> 3.3 | K136: 5 | L136: 0 | M136: 2.3 | N136: 0 | O136: 0.64 | P136: DONE | Q136: 0 | R136: 0 | T136: 0 | U136: 0 | V136: 0 | W136: 1 | X136: 1 | Y136: 0 | Z136: 1
F137: 0 | G137: 5.9 | H137: =H136 -> 12 | I137: 5.1 | J137: 3.3 | K137: 5 | L137: 0 | M137: 2.3 | N137: 0 | O137: 0.96 | P137: DONE | Q137: 0 | R137: 0 | T137: 0 | U137: 0 | V137: 0 | W137: 1 | X137: 1 | Y137: 0 | Z137: 1
F138: 0 | G138: 6 | H138: =H137 -> 12 | I138: 5.1 | J138: 3.3 | K138: 5 | L138: 0 | M138: 2.3 | N138: 0 | O138: 1.28 | P138: DONE | Q138: 0 | R138: 0 | T138: 0 | U138: 0 | V138: 0 | W138: 1 | X138: 1 | Y138: 0 | Z138: 1
F139: 0 | G139: 6.1 | H139: =H138 -> 12 | I139: =I138 -> 5.1 | J139: =J138 -> 3.3 | K139: 5 | L139: 0 | M139: 2.3 | N139: 0 | O139: 1.6 | P139: DONE | Q139: 0 | R139: 0 | T139: 0 | U139: 0 | V139: 0 | W139: 1 | X139: 1 | Y139: 0 | Z139: 1
F140: 0 | G140: 6.2 | H140: =H139 -> 12 | I140: 5.1 | J140: 3.3 | K140: 5 | L140: 0 | M140: 2.3 | N140: 0 | O140: 1.92 | P140: DONE | Q140: 0 | R140: 0 | T140: 0 | U140: 0 | V140: 0 | W140: 1 | X140: 1 | Y140: 0 | Z140: 1
F141: 0 | G141: 6.3 | H141: =H140 -> 12 | I141: 5.1 | J141: 3.3 | K141: 5 | L141: 0 | M141: 2.3 | N141: 0 | O141: 2.24 | P141: DONE | Q141: 0 | R141: 0 | T141: 0 | U141: 0 | V141: 0 | W141: 1 | X141: 1 | Y141: 0 | Z141: 1
F142: 0 | G142: 6.4 | H142: =H141 -> 12 | I142: 5.1 | J142: 3.3 | K142: 5 | L142: 0 | M142: 2.3 | N142: 0 | O142: 2.56 | P142: DONE | Q142: 0 | R142: 0 | T142: 0 | U142: 0 | V142: 0 | W142: 1 | X142: 1 | Y142: 0 | Z142: 1
F143: 0 | G143: 6.5 | H143: =H142 -> 12 | I143: 5.1 | J143: 3.3 | K143: 5 | L143: 0 | M143: 2.3 | N143: 0 | O143: 2.88 | P143: DONE | Q143: 0 | R143: 0 | T143: 0 | U143: 0 | V143: 0 | W143: 1 | X143: 1 | Y143: 0 | Z143: 1
F144: 0 | G144: 6.6 | H144: =H143 -> 12 | I144: 5.1 | J144: 3.3 | K144: 5 | L144: 0 | M144: 2.3 | N144: 0 | O144: 3.2 | P144: DONE | Q144: 0 | R144: 0 | T144: 0 | U144: 0 | V144: 1 | W144: 1 | X144: 1 | Y144: 0 | Z144: 1
F145: 1 | G145: 6.7 | H145: =H144 -> 12 | I145: 5.1 | J145: 3.3 | K145: 5 | L145: 0 | M145: 2.3 | N145: 0 | O145: 3.2 | P145: DONE | Q145: 0 | R145: 0 | T145: 0 | U145: 0 | V145: 1 | W145: 1 | X145: 1 | Y145: 0 | Z145: 1
F146: 1 | G146: 6.8 | H146: =H145 -> 12 | I146: 5.1 | J146: 3.3 | K146: 5 | L146: 0 | M146: 2.3 | N146: 0 | O146: 3.2 | P146: DONE | Q146: 0 | R146: 0 | T146: 0 | U146: 0 | V146: 1 | W146: 1 | X146: 1 | Y146: 0 | Z146: 1
F147: 1 | G147: 6.9 | H147: =H146 -> 12 | I147: 5.1 | J147: 3.3 | K147: 5 | L147: 0 | M147: 2.3 | N147: 0 | O147: 3.2 | P147: DONE | Q147: 0 | R147: 0 | T147: 0 | U147: 0 | V147: 1 | W147: 1 | X147: 1 | Y147: 0 | Z147: 1
F148: 1 | G148: 7 | H148: =H147 -> 12 | I148: 5.1 | J148: 3.3 | K148: 5 | L148: 0 | M148: 2.3 | N148: 0 | O148: 3.2 | P148: DONE | Q148: 0 | R148: 0 | T148: 0 | U148: 0 | V148: 1 | W148: 1 | X148: 1 | Y148: 0 | Z148: 1
F149: 1 | G149: 7.1 | H149: =H148 -> 12 | I149: 5.1 | J149: 3.3 | K149: 5 | L149: 0 | M149: 2.3 | N149: 0 | O149: 3.2 | P149: DONE | Q149: 0 | R149: 0 | T149: 0 | U149: 0 | V149: 1 | W149: 1 | X149: 1 | Y149: 0 | Z149: 1
F150: 1 | G150: 7.2 | H150: =H149 -> 12 | I150: 5.1 | J150: 3.3 | K150: 5 | L150: 0 | M150: 2.3 | N150: 0 | O150: 3.2 | P150: DONE | Q150: 0 | R150: =IF(AND(T150>0,T150<0.2+$AF$12/6),$R$8,0) -> 0 | T150: 0 | U150: 0 | V150: 1 | W150: 1 | X150: 1 | Y150: 0 | Z150: 1
F151: 1 | G151: 7.3 | H151: =H150 -> 12 | I151: 5.1 | J151: 3.3 | K151: 5 | L151: 0 | M151: 2.3 | N151: 0 | O151: 3.2 | P151: DONE | Q151: =IF(T151>=0.2+$AF$12/6+$H$1,$Q$8,0) -> 0 | R151: 0 | T151: 0 | U151: 0 | V151: 1 | W151: 1 | X151: 1 | Y151: 0 | Z151: 1
F152: 1 | G152: 7.4 | H152: =H151 -> 12 | I152: 5.1 | J152: 3.3 | K152: 5 | L152: 0 | M152: 2.3 | N152: 0 | O152: 3.2 | P152: DONE | Q152: 0 | R152: 0 | T152: =T151+IF(INT(AND(U152:Z152,P151="DONE"))=0,0,G152-G151) -> 0 | U152: 0 | V152: 1 | W152: 1 | X152: 1 | Y152: 0 | Z152: 1
F153: 1 | G153: 7.5 | H153: =H152 -> 12 | I153: 5.1 | J153: 3.3 | K153: 5 | L153: 0 | M153: 2.3 | N153: 0 | O153: 3.2 | P153: DONE | Q153: 0 | R153: 0 | T153: 0 | U153: 0 | V153: 1 | W153: 1 | X153: 1 | Y153: 0 | Z153: 1
F154: 1 | G154: 7.6 | H154: =H153 -> 12 | I154: 5.1 | J154: 3.3 | K154: =K153 -> 5 | L154: 0 | M154: 2.3 | N154: 0 | O154: 3.2 | P154: DONE | Q154: 0 | R154: 0 | T154: 0 | U154: 0 | V154: 1 | W154: 1 | X154: 1 | Y154: 0 | Z154: 1
F155: 2 | G155: 7.7 | H155: =H154 -> 12 | I155: 5.1 | J155: 3.3 | K155: 5 | L155: 0 | M155: 2.3 | N155: 0.18 | O155: 3.2 | P155: DONE | Q155: 0 | R155: 0 | T155: 0 | U155: 0 | V155: 1 | W155: 1 | X155: 1 | Y155: 0 | Z155: 1
F156: 2 | G156: 7.8 | H156: =H155 -> 12 | I156: 5.1 | J156: 3.3 | K156: 5 | L156: 0 | M156: 2.3 | N156: 0.36 | O156: 3.2 | P156: DONE | Q156: 0 | R156: 0 | T156: 0 | U156: 0 | V156: 1 | W156: 1 | X156: 1 | Y156: 0 | Z156: 1
F157: 2 | G157: 7.9 | H157: =H156 -> 12 | I157: 5.1 | J157: 3.3 | K157: 5 | L157: 0 | M157: 2.3 | N157: 0.54 | O157: 3.2 | P157: DONE | Q157: 0 | R157: 0 | T157: 0 | U157: 0 | V157: 1 | W157: 1 | X157: 1 | Y157: 0 | Z157: 1
F158: 2 | G158: 8 | H158: =H157 -> 12 | I158: 5.1 | J158: 3.3 | K158: 5 | L158: 0 | M158: 2.3 | N158: 0.72 | O158: 3.2 | P158: DONE | Q158: 0 | R158: 0 | T158: 0 | U158: 0 | V158: 1 | W158: 1 | X158: 1 | Y158: 0 | Z158: 1
F159: 2 | G159: 8.1 | H159: =H158 -> 12 | I159: 5.1 | J159: 3.3 | K159: 5 | L159: 0 | M159: 2.3 | N159: 0.9 | O159: 3.2 | P159: DONE | Q159: 0 | R159: 0 | T159: 0 | U159: 0 | V159: 1 | W159: 1 | X159: 1 | Y159: 0 | Z159: 1
F160: 2 | G160: 8.2 | H160: =H159 -> 12 | I160: 5.1 | J160: 3.3 | K160: 5 | L160: 0 | M160: 2.3 | N160: 1.08 | O160: 3.2 | P160: DONE | Q160: 0 | R160: 0 | T160: 0 | U160: 0 | V160: 1 | W160: 1 | X160: 1 | Y160: 0 | Z160: 1
F161: 2 | G161: 8.3 | H161: =H160 -> 12 | I161: 5.1 | J161: 3.3 | K161: 5 | L161: 0 | M161: 2.3 | N161: 1.26 | O161: 3.2 | P161: DONE | Q161: 0 | R161: 0 | T161: 0 | U161: 0 | V161: 1 | W161: 1 | X161: 1 | Y161: 0 | Z161: 1
F162: 2 | G162: 8.4 | H162: =H161 -> 12 | I162: 5.1 | J162: 3.3 | K162: 5 | L162: 0 | M162: 2.3 | N162: 1.44 | O162: 3.2 | P162: DONE | Q162: 0 | R162: 0 | T162: 0 | U162: 0 | V162: 1 | W162: 1 | X162: 1 | Y162: 0 | Z162: 1
F163: 2 | G163: 8.5 | H163: =H162 -> 12 | I163: 5.1 | J163: 3.3 | K163: 5 | L163: 0 | M163: 2.3 | N163: 1.62 | O163: 3.2 | P163: DONE | Q163: 0 | R163: 0 | T163: 0 | U163: 0 | V163: 1 | W163: 1 | X163: 1 | Y163: 0 | Z163: 1
F164: 2 | G164: 8.6 | H164: =H163 -> 12 | I164: 5.1 | J164: 3.3 | K164: 5 | L164: 0 | M164: 2.3 | N164: 1.8 | O164: 3.2 | P164: DONE | Q164: 0 | R164: 0 | T164: 0 | U164: 0 | V164: 1 | W164: 1 | X164: 1 | Y164: 1 | Z164: 1
F165: 3 | G165: 8.7 | H165: =H164 -> 12 | I165: 5.1 | J165: 3.3 | K165: 5 | L165: 0.8 | M165: 2.3 | N165: 1.8 | O165: 3.2 | P165: DONE | Q165: 0 | R165: 1.6 | T165: 0.1 | U165: 1 | V165: 1 | W165: 1 | X165: 1 | Y165: 1 | Z165: 1
F166: 3 | G166: 8.8 | H166: =H165 -> 12 | I166: 5.1 | J166: 3.3 | K166: 5 | L166: 0.8 | M166: 2.3 | N166: 1.8 | O166: 3.2 | P166: DONE | Q166: 0 | R166: 1.6 | T166: 0.2 | U166: 1 | V166: 1 | W166: 1 | X166: 1 | Y166: 1 | Z166: 1
F167: 3 | G167: 8.9 | H167: =H166 -> 12 | I167: 5.1 | J167: 3.3 | K167: 5 | L167: =IF(L$7<=$F167,MIN(L$8,L166+L$8/MAX(1,ROUND(L$8/$H$1/L$9,0))),L166) -> 0.8 | M167: =IF(M$7<=$F167,MIN(M$8,M166+M$8/MAX(1,ROUND(M$8/$H$1/M$9,0))),M166) -> 2.3 | N167: =IF(N$7<=$F167,MIN(N$8,N166+N$8/MAX(1,ROUND(N$8/$H$1/N$9,0))),N166) -> 1.8 | O167: =IF(O$7<=$F167,MIN(O$8,O166+O$8/MAX(1,ROUND(O$8/$H$1/O$9,0))),O166) -> 3.2 | P167: DONE | Q167: 0 | R167: 1.6 | T167: 0.3 | U167: 1 | V167: 1 | W167: 1 | X167: 1 | Y167: 1 | Z167: 1
F168: 3 | G168: 9 | H168: =H167 -> 12 | I168: 5.1 | J168: 3.3 | K168: 5 | L168: 0.8 | M168: 2.3 | N168: 1.8 | O168: 3.2 | P168: DONE | Q168: 0 | R168: 1.6 | T168: 0.4 | U168: 1 | V168: 1 | W168: 1 | X168: 1 | Y168: 1 | Z168: 1
F169: 3 | G169: 9.1 | H169: =H168 -> 12 | I169: 5.1 | J169: 3.3 | K169: 5 | L169: 0.8 | M169: 2.3 | N169: 1.8 | O169: 3.2 | P169: DONE | Q169: 0 | R169: 1.6 | T169: 0.5 | U169: 1 | V169: 1 | W169: 1 | X169: 1 | Y169: 1 | Z169: 1
F170: 3 | G170: 9.2 | H170: =H169 -> 12 | I170: 5.1 | J170: 3.3 | K170: =K169 -> 5 | L170: 0.8 | M170: 2.3 | N170: 1.8 | O170: 3.2 | P170: DONE | Q170: 0 | R170: 1.6 | T170: 0.6 | U170: 1 | V170: 1 | W170: 1 | X170: 1 | Y170: 1 | Z170: 1
F171: 3 | G171: 9.3 | H171: =H170 -> 12 | I171: 5.1 | J171: 3.3 | K171: =K170 -> 5 | L171: 0.8 | M171: 2.3 | N171: 1.8 | O171: 3.2 | P171: DONE | Q171: 0 | R171: 1.6 | T171: 0.7 | U171: 1 | V171: 1 | W171: 1 | X171: =IF(OR(X$17="ABIST1_No",COUNTIF($V$2,X$18)),1,IF(AND(X$19<>0,OFFSET($I171,0,MATCH(X$18,$J$21:$O$21,0))=X$19),1,0)) -> 1 | Y171: 1 | Z171: 1
F172: 3 | G172: 9.4 | H172: =H171 -> 12 | I172: 5.1 | J172: 3.3 | K172: 5 | L172: 0.8 | M172: 2.3 | N172: 1.8 | O172: 3.2 | P172: DONE | Q172: 0 | R172: 1.6 | T172: 0.8 | U172: 1 | V172: 1 | W172: 1 | X172: 1 | Y172: 1 | Z172: 1
F173: 3 | G173: 9.5 | H173: =H172 -> 12 | I173: 5.1 | J173: 3.3 | K173: 5 | L173: 0.8 | M173: 2.3 | N173: 1.8 | O173: 3.2 | P173: DONE | Q173: 0 | R173: 1.6 | T173: 0.9 | U173: 1 | V173: 1 | W173: 1 | X173: 1 | Y173: 1 | Z173: 1
F174: 3 | G174: 9.6 | H174: =H173 -> 12 | I174: 5.1 | J174: 3.3 | K174: 5 | L174: 0.8 | M174: 2.3 | N174: 1.8 | O174: 3.2 | P174: DONE | Q174: 0 | R174: 1.6 | T174: 1 | U174: 1 | V174: 1 | W174: 1 | X174: 1 | Y174: 1 | Z174: 1
F175: 4 | G175: 9.7 | H175: =H174 -> 12 | I175: 5.1 | J175: 3.3 | K175: 5 | L175: 0.8 | M175: 2.3 | N175: 1.8 | O175: 3.2 | P175: DONE | Q175: 0 | R175: 1.6 | T175: 1.1 | U175: 1 | V175: 1 | W175: 1 | X175: 1 | Y175: 1 | Z175: 1
F176: 4 | G176: 9.8 | H176: =H175 -> 12 | I176: 5.1 | J176: 3.3 | K176: 5 | L176: 0.8 | M176: 2.3 | N176: 1.8 | O176: 3.2 | P176: DONE | Q176: 0 | R176: 0 | T176: 1.2 | U176: 1 | V176: 1 | W176: 1 | X176: 1 | Y176: 1 | Z176: 1
F177: 4 | G177: 9.9 | H177: =H176 -> 12 | I177: 5.1 | J177: 3.3 | K177: 5 | L177: 0.8 | M177: 2.3 | N177: 1.8 | O177: 3.2 | P177: DONE | Q177: 3.1 | R177: 0 | T177: 1.3 | U177: 1 | V177: 1 | W177: 1 | X177: 1 | Y177: 1 | Z177: 1
F178: 4 | G178: 10 | H178: =H177 -> 12 | I178: 5.1 | J178: 3.3 | K178: 5 | L178: 0.8 | M178: 2.3 | N178: 1.8 | O178: 3.2 | P178: DONE | Q178: 3.1 | R178: 0 | T178: 1.4 | U178: 1 | V178: 1 | W178: 1 | X178: 1 | Y178: 1 | Z178: 1
F179: 4 | G179: 10.1 | H179: =H178 -> 12 | I179: 5.1 | J179: 3.3 | K179: 5 | L179: 0.8 | M179: 2.3 | N179: 1.8 | O179: 3.2 | P179: DONE | Q179: 3.1 | R179: 0 | T179: 1.5 | U179: 1 | V179: 1 | W179: 1 | X179: 1 | Y179: 1 | Z179: 1
F180: 4 | G180: 10.2 | H180: 12 | I180: 5.1 | J180: 3.3 | K180: =K179 -> 5 | L180: 0.8 | M180: 2.3 | N180: 1.8 | O180: 3.2 | P180: DONE | Q180: 3.1 | R180: 0 | T180: 1.6 | U180: 1 | V180: 1 | W180: 1 | X180: 1 | Y180: 1 | Z180: 1
F181: 4 | G181: 10.3 | H181: 12 | I181: 5.1 | J181: 3.3 | K181: 5 | L181: 0.8 | M181: 2.3 | N181: 1.8 | O181: 3.2 | P181: DONE | Q181: 3.1 | R181: 0 | T181: 1.7 | U181: 1 | V181: 1 | W181: 1 | X181: 1 | Y181: 1 | Z181: 1
F182: 4 | G182: 10.4 | H182: 12 | I182: 5.1 | J182: 3.3 | K182: 5 | L182: 0.8 | M182: 2.3 | N182: 1.8 | O182: 3.2 | P182: DONE | Q182: 3.1 | R182: 0 | T182: 1.8 | U182: 1 | V182: 1 | W182: 1 | X182: 1 | Y182: 1 | Z182: 1
F183: 4 | G183: 10.5 | H183: 12 | I183: 5.1 | J183: 3.3 | K183: 5 | L183: 0.8 | M183: 2.3 | N183: 1.8 | O183: 3.2 | P183: DONE | Q183: 3.1 | R183: 0 | T183: 1.9 | U183: 1 | V183: 1 | W183: 1 | X183: 1 | Y183: 1 | Z183: 1
F184: 4 | G184: 10.6 | H184: 12 | I184: 5.1 | J184: 3.3 | K184: 5 | L184: 0.8 | M184: 2.3 | N184: 1.8 | O184: 3.2 | P184: DONE | Q184: 3.1 | R184: 0 | T184: 2 | U184: 1 | V184: 1 | W184: 1 | X184: 1 | Y184: 1 | Z184: 1
F185: 5 | G185: 10.7 | H185: 12 | I185: 5.1 | J185: 3.3 | K185: 5 | L185: 0.8 | M185: 2.3 | N185: 1.8 | O185: 3.2 | P185: DONE | Q185: 3.1 | R185: 0 | T185: 2.1 | U185: =IF(OR(U$17="ABIST1_No",COUNTIF($V$2,U$18)),1,IF(AND(U$19<>0,OFFSET($I185,0,MATCH(U$18,$J$21:$O$21,0))=U$19),1,0)) -> 1 | V185: 1 | W185: 1 | X185: 1 | Y185: 1 | Z185: 1
F186: 5 | G186: 10.8 | H186: 12 | I186: 5.1 | J186: 3.3 | K186: 5 | L186: 0.8 | M186: 2.3 | N186: 1.8 | O186: 3.2 | P186: DONE | Q186: 3.1 | R186: 0 | T186: 2.2 | U186: 1 | V186: 1 | W186: 1 | X186: 1 | Y186: 1 | Z186: 1
F187: 5 | G187: 10.9 | H187: 12 | I187: 5.1 | J187: 3.3 | K187: 5 | L187: 0.8 | M187: 2.3 | N187: 1.8 | O187: 3.2 | P187: DONE | Q187: 3.1 | R187: 0 | T187: 2.3 | U187: 1 | V187: 1 | W187: 1 | X187: 1 | Y187: 1 | Z187: 1
F188: 5 | G188: 11 | H188: 12 | I188: 5.1 | J188: 3.3 | K188: 5 | L188: 0.8 | M188: 2.3 | N188: 1.8 | O188: 3.2 | P188: DONE | Q188: 3.1 | R188: 0 | T188: 2.4 | U188: 1 | V188: 1 | W188: 1 | X188: 1 | Y188: 1 | Z188: 1
F189: 5 | G189: 11.1 | H189: 12 | I189: 5.1 | J189: 3.3 | K189: 5 | L189: 0.8 | M189: 2.3 | N189: 1.8 | O189: 3.2 | P189: DONE | Q189: 3.1 | R189: 0 | T189: 2.5 | U189: 1 | V189: 1 | W189: 1 | X189: 1 | Y189: 1 | Z189: 1
F190: 5 | G190: 11.2 | H190: 12 | I190: 5.1 | J190: 3.3 | K190: 5 | L190: 0.8 | M190: 2.3 | N190: 1.8 | O190: 3.2 | P190: DONE | Q190: 3.1 | R190: 0 | T190: 2.6 | U190: 1 | V190: 1 | W190: 1 | X190: 1 | Y190: 1 | Z190: 1
F191: 5 | G191: 11.3 | H191: 12 | I191: 5.1 | J191: 3.3 | K191: 5 | L191: 0.8 | M191: 2.3 | N191: 1.8 | O191: 3.2 | P191: DONE | Q191: 3.1 | R191: 0 | T191: 2.7 | U191: 1 | V191: 1 | W191: 1 | X191: 1 | Y191: 1 | Z191: 1
F192: 5 | G192: 11.4 | H192: 12 | I192: 5.1 | J192: 3.3 | K192: 5 | L192: 0.8 | M192: 2.3 | N192: 1.8 | O192: 3.2 | P192: DONE | Q192: 3.1 | R192: 0 | T192: 2.8 | U192: 1 | V192: 1 | W192: 1 | X192: 1 | Y192: 1 | Z192: 1
F193: 5 | G193: 11.5 | H193: 12 | I193: 5.1 | J193: 3.3 | K193: 5 | L193: 0.8 | M193: 2.3 | N193: 1.8 | O193: 3.2 | P193: DONE | Q193: 3.1 | R193: 0 | T193: 2.9 | U193: 1 | V193: 1 | W193: 1 | X193: 1 | Y193: 1 | Z193: 1
F194: 5 | G194: 11.6 | H194: 12 | I194: 5.1 | J194: 3.3 | K194: 5 | L194: 0.8 | M194: 2.3 | N194: 1.8 | O194: 3.2 | P194: DONE | Q194: 3.1 | R194: 0 | T194: 3 | U194: 1 | V194: 1 | W194: 1 | X194: 1 | Y194: 1 | Z194: 1
F195: 6 | G195: 11.7 | H195: 12 | I195: 5.1 | J195: 3.3 | K195: 5 | L195: 0.8 | M195: 2.3 | N195: 1.8 | O195: 3.2 | P195: DONE | Q195: 3.1 | R195: 0 | T195: 3.1 | U195: 1 | V195: 1 | W195: 1 | X195: 1 | Y195: 1 | Z195: 1
F196: 6 | G196: 11.8 | H196: 12 | I196: 5.1 | J196: 3.3 | K196: 5 | L196: 0.8 | M196: 2.3 | N196: 1.8 | O196: 3.2 | P196: DONE | Q196: 3.1 | R196: 0 | T196: 3.2 | U196: 1 | V196: 1 | W196: 1 | X196: 1 | Y196: 1 | Z196: 1
F197: 6 | G197: 11.9 | H197: 12 | I197: 5.1 | J197: 3.3 | K197: 5 | L197: 0.8 | M197: 2.3 | N197: 1.8 | O197: 3.2 | P197: DONE | Q197: 3.1 | R197: 0 | T197: 3.3 | U197: 1 | V197: 1 | W197: 1 | X197: 1 | Y197: 1 | Z197: 1
F198: 6 | G198: 12 | H198: 12 | I198: 5.1 | J198: 3.3 | K198: 5 | L198: 0.8 | M198: 2.3 | N198: 1.8 | O198: 3.2 | P198: DONE | Q198: 3.1 | R198: 0 | T198: 3.4 | U198: 1 | V198: 1 | W198: 1 | X198: 1 | Y198: 1 | Z198: 1
F199: 6 | G199: 12.1 | H199: 12 | I199: 5.1 | J199: 3.3 | K199: 5 | L199: =IF(L$7<=$F199,MIN(L$8,L198+L$8/MAX(1,ROUND(L$8/$H$1/L$9,0))),L198) -> 0.8 | M199: =IF(M$7<=$F199,MIN(M$8,M198+M$8/MAX(1,ROUND(M$8/$H$1/M$9,0))),M198) -> 2.3 | N199: =IF(N$7<=$F199,MIN(N$8,N198+N$8/MAX(1,ROUND(N$8/$H$1/N$9,0))),N198) -> 1.8 | O199: =IF(O$7<=$F199,MIN(O$8,O198+O$8/MAX(1,ROUND(O$8/$H$1/O$9,0))),O198) -> 3.2 | P199: DONE | Q199: 3.1 | R199: 0 | T199: 3.5 | U199: 1 | V199: 1 | W199: 1 | X199: 1 | Y199: 1 | Z199: 1
F200: 6 | G200: =G199+$H$1 -> 12.2 | H200: 12 | I200: 5.1 | J200: 3.3 | K200: 5 | L200: 0.8 | M200: 2.3 | N200: 1.8 | O200: 3.2 | P200: DONE | Q200: 3.1 | R200: 0 | T200: 3.6 | U200: 1 | V200: 1 | W200: 1 | X200: 1 | Y200: 1 | Z200: 1
... 172 more rows

Sheet OTP_conf_main_reg
A2: MAIN OTP_REGISTERS
A3: Register Name | B3: ADDRESS | C3: R/W | D3: Default | E3: BIT7 | F3: BIT6 | G3: BIT5 | H3: BIT4 | I3: BIT3 | J3: BIT2 | K3: BIT1 | L3: BIT0 | M3: Data_Bin | N3: Data_Hex | P3: in red font, don't touch
A4: OTP_CFG_VPRE_1 | B4: 14 | C4: RW | D4: 0000_0000 | E4: - | F4: - | G4: VPREV[5:0]
E5: 0 | F5: 0 | G5: 001111 - 3.3V | M5: =CONCATENATE(LEFT(E5,1),LEFT(F5,1),LEFT(G5,6)) -> 00001111 | N5: ="0x"&BIN2HEX(M5,2) -> 0x0F
A6: OTP_CFG_VPRE_2 | B6: 15 | C6: RW | D6: 0000_0000 | E6: - | F6: - | G6: VPRESC[5:0]
E7: 0 | F7: 0 | G7: 000101 - 50mV/µs | M7: =CONCATENATE(E7,F7,LEFT(G7,6)) -> 00000101 | N7: ="0x"&BIN2HEX(M7,2) -> 0x05
A8: OTP_CFG_VPRE_3 | B8: 16 | C8: RW | D8: 0000_0000 | E8: VPREILIM[1:0] | G8: VPRETOFF[1:0] | I8: VPRESRLS[1:0] | K8: VPRESRHS[1:0]
E9: 11 - 150mV | G9: 10 - 40ns | I9: 11 - PU/PD/900mA | K9: 11 - PU/PD/900mA | M9: =CONCATENATE(LEFT(E9,2),LEFT(G9,2),LEFT(I9,2),LEFT(K9,2)) -> 11101111 | N9: ="0x"&BIN2HEX(M9,2) -> 0xEF
A10: OTP_CFG_BOOST_1 | B10: 17 | C10: RW | D10: 0000_0000 | E10: - | F10: - | G10: VPRE_MODE | H10: Reserved | I10: VBSTV[3:0]
E11: 0 | F11: 0 | G11: 0 - Force PWM | H11: 0 | I11: 0110 - 5.00V | M11: =CONCATENATE(E11,F11,LEFT(G11,1),H11,LEFT(I11,4)) -> 00000110 | N11: ="0x"&BIN2HEX(M11,2) -> 0x06
A12: OTP_CFG_BOOST_2 | B12: 18 | C12: RW | D12: 0000_0000 | E12: BOOSTEN | F12: VBSTTONTIME[1:0] | H12: VBSTSC[4:0]
E13: 1 - Enabled | F13: 00 - 60ns | H13: 01100 - 125mV/µs | M13: =CONCATENATE(LEFT(E13,1),LEFT(F13,2),LEFT(H13,5)) -> 10001100 | N13: ="0x"&BIN2HEX(M13,2) -> 0x8C
A14: OTP_CFG_BOOST_3 | B14: 19 | C14: RW | D14: 0000_0000 | E14: VBSTRCOMP[1:0] | G14: VBSTCCOMP[1:0] | I14: VBSTILIM[1:0] | K14: VBSTSR[1:0]
E15: 00 - 750kohms | G15: 00 - 125pF | I15: 01 - 2A | K15: 11 - 500V/µs | M15: =CONCATENATE(LEFT(E15,2),LEFT(G15,2),LEFT(I15,2),LEFT(K15,2)) -> 00000111 | N15: ="0x"&BIN2HEX(M15,2) -> 0x07
A16: OTP_CFG_BUCK1_1 | B16: 1A | C16: RW | D16: 0000_0000 | E16: VB1V[7:0]
E17: 01000100 - 0.825V | M17: =LEFT(E17,8) -> 01000100 | N17: ="0x"&BIN2HEX(M17,2) -> 0x44
A18: OTP_CFG_BUCK1_2 | B18: 1B | C18: RW | D18: 0000_0000 | E18: otp_SPARE0[2:0] | H18: VB1INDOPT[1:0] | J18: VB1SWILIM[1:0] | L18: -
E19: 000 | H19: 00 - 1µH | J19: 11 - 4.5A | L19: 0 | M19: =CONCATENATE(E19,LEFT(H19,2),LEFT(J19,2),LEFT(L19,1)) -> 00000110 | N19: ="0x"&BIN2HEX(M19,2) -> 0x06
A20: OTP_CFG_BUCK2_1 | B20: 1C | C20: RW | D20: 0000_0000 | E20: VB2V[7:0]
E21: 00000000 | M21: =LEFT(E21,8) -> 00000000 | N21: ="0x"&BIN2HEX(M21,2) -> 0x00
A22: OTP_CFG_BUCK2_2 | B22: 1D | C22: RW | D22: 0000_0000 | E22: - | F22: VB2INDOPT[1:0] | H22: - | I22: VB2SWILIM[1:0] | K22: VB3_CTRL_RC | L22: VB3_CTRL_GM
E23: 0 | F23: 00 | H23: 0 | I23: 00 | K23: 0 - Default | L23: 0 - Default | M23: =CONCATENATE(E23,LEFT(F23,2),LEFT(H23,1),LEFT(I23,2),LEFT(K23,1),LEFT(L23,1)) -> 00000000 | N23: ="0x"&BIN2HEX(M23,2) -> 0x00
A24: OTP_CFG_BUCK3_1 | B24: 1E | C24: RW | D24: 0000_0000 | E24: BUCK3EN | F24: VB3INDOPT[1:0] | H24: VB3V[4:0]
E25: 1 - Enabled | F25: 00 - 1µH | H25: 01110 - 2.3V | M25: =CONCATENATE(LEFT(E25,1),LEFT(F25,2),LEFT(H25,5)) -> 10001110 | N25: ="0x"&BIN2HEX(M25,2) -> 0x8E
A26: OTP_CFG_BUCK3_2 | B26: 1F | C26: RW | D26: 0000_0000 | E26: - | H26: VB1GMCOMP[2:0] | K26: VB3SWILIM[1:0]
E27: 000 | H27: 100 - 65 GM | K27: 11 - 4.5A | M27: =CONCATENATE(LEFT(E27,3),LEFT(H27,3),LEFT(K27,2)) -> 00010011 | N27: ="0x"&BIN2HEX(M27,2) -> 0x13
A28: OTP_CFG_LDO | B28: 20 | C28: RW | D28: 0000_0000 | E28: LDO2ILIM | F28: LDO2V[2:0] | I28: LDO1ILIM | J28: LDO1V[2:0]
E29: 0 - 400mA | F29: 110 - 3.3V | I29: 0 - 400mA | J29: 011 - 1.8V | M29: =CONCATENATE(LEFT(E29,1),LEFT(F29,3),LEFT(I29,1),LEFT(J29,3)) -> 01100011 | N29: ="0x"&BIN2HEX(M29,2) -> 0x63
A30: OTP_CFG_SEQ_1 | B30: 21 | C30: RW | D30: 0000_0000 | E30: - | F30: - | G30: - | J30: VB1S[2:0]
E31: 0 | F31: 0 | G31: 000 | J31: 011 - Regulator Start and Stop in Slot 3 | M31: =CONCATENATE(E31,F31,LEFT(G31,3),LEFT(J31,3)) -> 00000011 | N31: ="0x"&BIN2HEX(M31,2) -> 0x03
A32: OTP_CFG_SEQ_2 | B32: 22 | C32: RW | D32: 0000_0000 | E32: - | F32: - | G32: LDO2S[2:0] | J32: LDO1S[2:0]
E33: 0 | F33: 0 | G33: 000 - Regulator Start and Stop in Slot 0 | J33: 010 - Regulator Start and Stop in Slot 2 | M33: =CONCATENATE(E33,F33,LEFT(G33,3),LEFT(J33,3)) -> 00000010 | N33: ="0x"&BIN2HEX(M33,2) -> 0x02
A34: OTP_CFG_SEQ_3 | B34: 23 | C34: RW | D34: 0000_0000 | E34: DVS_BUCK1[1:0] | G34: DVS_BUCK3[1:0] | I34: Tslot | J34: VB3S[2:0]
E35: 00 - 7.81mV/µs | G35: 00 - 10.4mV/µs | I35: 1 - 1000µs | J35: 000 - Regulator Start and Stop in Slot 0 | M35: =CONCATENATE(,LEFT(E35,2),LEFT(G35,2),,LEFT(I35,1),LEFT(J35,3)) -> 00001000 | N35: ="0x"&BIN2HEX(M35,2) -> 0x08
A36: OTP_CFG_CLOCK_1 | B36: 24 | C36: RW | D36: 0000_0000 | E36: - | F36: - | G36: VPRE_ph[2:0] | J36: CLK_DIV2[2:0]
E37: 0 | F37: 0 | G37: 000 - delay 0 | J37: 100 - divide by 44 - CLK2=455KHz | M37: =CONCATENATE(E37,F37,LEFT(G37,3),LEFT(J37,3)) -> 00000100 | N37: ="0x"&BIN2HEX(M37,2) -> 0x04
A38: OTP_CFG_CLOCK_2 | B38: 25 | C38: RW | D38: 0000_0000 | E38: - | F38: - | G38: BUCK1_ph[2:0] | J38: VBST_ph[2:0]
E39: 0 | F39: 0 | G39: 110 - delay 6 | J39: 000 - delay 0 | M39: =CONCATENATE(E39,F39,LEFT(G39,3),LEFT(J39,3)) -> 00110000 | N39: ="0x"&BIN2HEX(M39,2) -> 0x30
A40: OTP_CFG_CLOCK_3 | B40: 26 | C40: RW | D40: 0000_0000 | E40: - | F40: - | G40: BUCK3_ph[2:0] | J40: -
E41: 0 | F41: 0 | G41: 011 - delay 3 | J41: 000 | M41: =CONCATENATE(E41,F41,LEFT(G41,3),LEFT(J41,3)) -> 00011000 | N41: ="0x"&BIN2HEX(M41,2) -> 0x18
A42: OTP_CFG_CLOCK_4 | B42: 27 | C42: RW | D42: 0000_0000 | E42: BUCK3_clk_sel | F42: - | G42: BUCK1_clk_sel | H42: VBST_clk_sel | I42: VPRE_clk_sel | J42: PLL_sel | K42: CLK_DIV1[1:0]
E43: 0 - CLK1 | F43: 0 | G43: 0 - CLK1 | H43: 0 - CLK1 | I43: 1 - CLK2 | J43: 1 - Enabled | K43: 10 - divide by 9 - CLK1=2.22MHz | M43: =CONCATENATE(LEFT(E43,1),LEFT(F43,1),LEFT(G43,1),LEFT(H43,1),LEFT(I43,1),LEFT(J43,1),LEFT(K43,2)) -> 00001110 | N43: ="0x"&BIN2HEX(M43,2) -> 0x0E
A44: OTP_CFG_SM_1 | B44: 28 | C44: RW | D44: 0000_0000 | E44: - | F44: - | G44: conf_tsd[5:0]
E45: 0 | F45: 0 | G45: 0 - BOOST Shutdown | H45: 0 - BUCK1 Shutdown | I45: 0 | J45: 0 - BUCK3 Shutdown | K45: 0 - LDO1 Shutdown | L45: 0 - LDO2 Shutdown | M45: =CONCATENATE(E45,F45,LEFT(G45,1),LEFT(H45,1),LEFT(I45,1),LEFT(J45,1),LEFT(K45,1),LEFT(L45,1)) -> 00000000 | N45: ="0x"&BIN2HEX(M45,2) -> 0x00
A46: OTP_CFG_SM_2 | B46: 29 | C46: RW | D46: 0000_0000 | E46: otp_SPARE1[2:0 | H46: VPRE_off_dly | I46: Autoretry_infinite | J46: Autoretry_en | K46: PSYNC_CFG | L46: PSYNC_EN
E47: 000 | H47: 0 - 250µs | I47: 1 - Enabled | J47: 1 - Enabled | K47: 0 - 2x FS84_QFN48EP | L47: 1 - Enabled | M47: =CONCATENATE(E47,LEFT(H47,1),LEFT(I47,1),LEFT(J47,1),LEFT(K47,1),LEFT(L47,1)) -> 00001101 | N47: ="0x"&BIN2HEX(M47,2) -> 0x0D
A48: OTP_CFG_VSUP_UV | B48: 2A | C48: RW | D48: 0000_0000 | E48: otp_SPARE2[6:0] | L48: VSUPCFG
E49: 0000000 | L49: 0 - 4.9V for Vpre < 4.5V | M49: =CONCATENATE(E49,LEFT(L49,1)) -> 00000000 | N49: ="0x"&BIN2HEX(M49,2) -> 0x00
A50: OTP_CFG_I2C | B50: 2B | C50: RW | D50: 0000_0000 | E50: - | F50: - | G50: - | H50: - | I50: -
E51: 0 | F51: 0 | G51: 0 | H51: 0 | I51: 0000 | M51: =CONCATENATE(E51,F51,G51,H51,LEFT(I51,4)) -> 00000000 | N51: ="0x"&BIN2HEX(M51,2) -> 0x00
A52: OTP_CFG_OV | B52: 2C | C52: RW | D52: 0000_0000 | E52: - | F52: - | G52: - | H52: - | I52: - | J52: VDDIO_REG_ASSIGN[2:0]
E53: 0 | F53: 0 | G53: 0 | H53: 0 | I53: 0 | J53: 011 - LDO2 | M53: =CONCATENATE(E53,F53,G53,H53,I53,LEFT(J53,3)) -> 00000011 | N53: ="0x"&BIN2HEX(M53,2) -> 0x03
A54: OTP_CFG_DEVID | B54: 2D | C54: RW | D54: 0000_0000 | E54: DeviceID[7:0]
E55: 00000001 | M55: =E55 -> 00000001 | N55: ="0x"&BIN2HEX(M55,2) -> 0x01
A56: OTP_M_S1_CRC_LSB | B56: 2E | C56: RW | D56: 0000_0000 | E56: OTP_M_S1_CRC_LSB[7:0]
E57: Automatically filled in by Sidence IP | M57: 00000000 | N57: ="0x"&BIN2HEX(M57,2) -> 0x00
A58: OTP_M_S1_CRC_MSB | B58: 2F | C58: RW | D58: 0000_0000 | E58: OTP_M_S1_CRC_MSB[7:0]
E59: Automatically filled in by Sidence IP | M59: 00000000 | N59: ="0x"&BIN2HEX(M59,2) -> 0x00

Sheet OTP_conf_main_bits
A1: Bit name | C1: Bit description | D1: Comments
A2: VpreV[5:0] | C2: VPRE output voltage
B3: =LEFT(C3,LEN(C3)-(LEN(C3)-FIND("-",C3,1))-2) -> 001111 | C3: 001111 - 3.3V
B4: =LEFT(C4,LEN(C4)-(LEN(C4)-FIND("-",C4,1))-2) -> 010100 | C4: 010100 - 3.8V
B5: 010111 | C5: 010111 - 4.1V
B6: 100000 | C6: 100000 - 5.0V
A7: VPRESC[5:0] | C7: VPRE slope compensation
B8: 000100 | C8: 000100 - 40mV/µs
B9: 000101 | C9: 000101 - 50mV/µs
B10: 000110 | C10: 000110 - 60mV/µs
B11: 000111 | C11: 000111 - 70mV/µs
B12: 001000 | C12: 001000 - 80mV/µs
B13: 001001 | C13: 001001 - 90mV/µs
B14: 001010 | C14: 001010 - 100mV/µs
B15: 001110 | C15: 001110 - 140mV/µs
B16: 010001 | C16: 010001 - 170mV/µs
B17: 010100 | C17: 010100 - 200mV/µs
B18: 011000 | C18: 011000 - 240mV/µs
A19: VPREILIM[1:0] | C19: VPRE current limitation threshold
B20: 00 | C20: 00 - 50mV
B21: 01 | C21: 01 - 80mV
B22: 10 | C22: 10 - 120mV
B23: 11 | C23: 11 - 150mV
A24: VPRETOFF[1:0] | C24: VPRE minimum OFF time
B25: 10 | C25: 10 - 40ns
A26: VPRESRLS[1:0] | C26: VPRE Low Side slew rate control
B27: 11 | C27: 11 - PU/PD/900mA
A28: VPRESRHS[1:0] | C28: VPRE High Side slew rate control
B29: 00 | C29: 00 - PU/PD/130mA
B30: 01 | C30: 01 - PU/PD/260mA
B31: 10 | C31: 10 - PU/PD/520mA
B32: 11 | C32: 11 - PU/PD/900mA
A33: VPRE_MODE | C33: VPRE mode
B34: =LEFT(C34,LEN(C34)-(LEN(C34)-FIND("-",C34,1))-2) -> 0 | C34: 0 - Force PWM | D34: Force PWM for 455kHz
B35: 1 | C35: 1 - APS | D35: Automatic Pulse Skipping for 2.2MHz
A36: VBSTV[3:0] | C36: VBOOST output voltage
B37: 0110 | C37: 0110 - 5.00V
B38: 1101 | C38: 1101 - 5.74V
A39: BOOSTEN | C39: BOOST enable
B40: 0 | C40: 0 - Disabled
B41: 1 | C41: 1 - Enabled
A42: VBSTTONTIME[1:0] | C42: BOOST minimum ON time
B43: 00 | C43: 00 - 60ns
B44: 01 | C44: 01 - 50ns
A45: VBSTSC[4:0] | C45: VBOOST slope compensation
B46: 00110 | C46: 00110 - 160mV/µs
B47: 01100 | C47: 01100 - 125mV/µs
B48: 01110 | C48: 01110 - 79mV/µs
A49: VBSTRCOMP[1:0] | C49: VBOOST Compensation Network Resistor Rcomp
B50: 00 | C50: 00 - 750kohms | D50: Default value recommended
B51: 01 | C51: 01 - 500Kohms
A52: VBSTCCOMP[1:0] | C52: VBOOST Compensation Network Capacitor Ccomp
B53: 00 | C53: 00 - 125pF
A54: VBSTILIM[1:0] | C54: VBOOST current limitation
B55: 01 | C55: 01 - 2A
A56: VBSTSR[1:0] | C56: VBOOST Low Side slew rate control
B57: 10 | C57: 10 - 300V/µs
B58: 11 | C58: 11 - 500V/µs
A59: VB1V[7:0] | C59: VBUCK1 output voltage
B60: 01000000 | C60: 01000000 - 0.8V
B61: 01000100 | C61: 01000100 - 0.825V
B62: =LEFT(C62,LEN(C62)-(LEN(C62)-FIND("-",C62,1))-2) -> 01001000 | C62: 01001000 - 0.85V
B63: 01010000 | C63: 01010000 - 0.9V
B64: 01011000 | C64: 01011000 - 0.95V
B65: =LEFT(C65,LEN(C65)-(LEN(C65)-FIND("-",C65,1))-2) -> 01011100 | C65: 01011100 - 0.975V
B66: 01100000 | C66: 01100000 - 1.0V
B67: 01100100 | C67: 01100100 - 1.025V
B68: 01100101 | C68: 01100101 - 1.03125V
B69: 01101100 | C69: 01101100 - 1.075V
B70: 01101110 | C70: 01101110 - 1.0875V
B71: 01101111 | C71: 01101111 - 1.09375V
B72: 01110000 | C72: 01110000 - 1.1V
B73: =LEFT(C73,LEN(C73)-(LEN(C73)-FIND("-",C73,1))-2) -> 01110011 | C73: 01110011 - 1.11875V
B74: 01110110 | C74: 01110110 - 1.1375V
B75: 10000000 | C75: 10000000 - 1.2V
B76: 10001000 | C76: 10001000 - 1.25V
B77: =LEFT(C77,LEN(C77)-(LEN(C77)-FIND("-",C77,1))-2) -> 10010000 | C77: 10010000 - 1.3V
B78: 10011000 | C78: 10011000 - 1.35V
B79: 10100000 | C79: 10100000 - 1.4V
B80: 10110000 | C80: 10110000 - 1.5V
B81: 10110001 | C81: 10110001 - 1.8V
A82: VB1INDOPT[1:0] | C82: BUCK1 inductor selection | D82: Scale the slope compensation and the Zero Cross Detection according to inductor value
B83: 00 | C83: 00 - 1µH
B84: 01 | C84: 01 - 0.47µH
B85: 10 | C85: 10 - 1.5µH
A86: VB1SWILIM[1:0] | C86: VBUCK1 current limitation
B87: 01 | C87: 01 - 2.6A
B88: 11 | C88: 11 - 4.5A
A89: VB3_CTRL_RC | C89: BUCK3 Compensation Resistor
B90: 0 | C90: 0 - Default | D90: Only "Default" configuration to use with L value in the spec (from 0.47µH to 1.5µH)
A91: VB3_CTRL_GM | C91: BUCK3 Gain control
B92: 0 | C92: 0 - Default | D92: Only "Default" configuration to use with L value in the spec (from 0.47µH to 1.5µH)
A93: BUCK3EN | C93: BUCK3 enable
B94: 0 | C94: 0 - Disabled
B95: 1 | C95: 1 - Enabled
A96: VB3INDOPT[1:0] | C96: BUCK3 inductor selection | D96: Scale the slope compensation and the Zero Cross Detection according to inductor value
B97: 00 | C97: 00 - 1µH
B98: 01 | C98: 01 - 0.47µH
B99: 10 | C99: 10 - 1.5µH
A100: VB3V[4:0] | C100: VBUCK3 output voltage
B101: 00000 | C101: 00000 - 1.0V
B102: 00001 | C102: 00001 - 1.1V
B103: 00010 | C103: 00010 - 1.2V
B104: 00011 | C104: 00011 - 1.25V
B105: 00100 | C105: 00100 - 1.3V
B106: 00101 | C106: 00101 - 1.35V
B107: 00110 | C107: 00110 - 1.5V
B108: 00111 | C108: 00111 - 1.6V
B109: 01000 | C109: 01000 - 1.8V
B110: =LEFT(C110,LEN(C110)-(LEN(C110)-FIND("-",C110,1))-2) -> 01110 | C110: 01110 - 2.3V
B111: 10000 | C111: 10000 - 2.5V
B112: 10001 | C112: 10001 - 2.8V
B113: 10101 | C113: 10101 - 3.3V
A114: VB1GMCOMP[2:0] | C114: BUCK1 Compensation Network
B115: 001 | C115: 001 - 16.25 GM | D115: Decrease GM to reduce the regulation bandwidth and increase the Phase and Gain margin but transient performance may be degraded.
B116: 010 | C116: 010 - 32.5 GM
B117: 011 | C117: 011 - 48.75 GM | D117: Defaut GM to use. Will be stable and will cover most of the use cases with typical output capacitor.
B118: 100 | C118: 100 - 65 GM | D118: Increase GM to enlarge the regulation bandwidth and improve transient performance but the Phase and Gain margin may be degraded with typical output capacitor. High output capacitor value reduces the regulation loop bandwidth. Since the compensation network is integrated, increasing the GM helps to improve the Phase Margin by enlarging the bandwidth.
B119: 101 | C119: 101 - 81.25 GM
B120: 110 | C120: 110 - 97.5 GM
A121: VB3SWILIM[1:0] | C121: VBUCK3 current limitation
B122: 01 | C122: 01 - 2.6A
B123: 11 | C123: 11 - 4.5A
A124: LDO2ILIM | C124: VLDO2 current limitation
B125: 0 | C125: 0 - 400mA | D125: Need a drop out(Vin - Vout) > 1V
B126: 1 | C126: 1 - 150mA | D126: Need a drop out (Vin - Vout) > 0.5V
A127: LDO2V[2:0] | C127: VLDO2 output voltage
B128: 000 | C128: 000 - 1.1V
B129: 001 | C129: 001 - 1.2V
B130: 010 | C130: 010 - 1.6V
B131: 011 | C131: 011 - 1.8V
B132: 100 | C132: 100 - 2.5V
B133: 101 | C133: 101 - 2.8V
B134: 110 | C134: 110 - 3.3V
B135: 111 | C135: 111 - 5.0V
A136: LDO1ILIM | C136: VLDO1 current limitation
B137: 0 | C137: 0 - 400mA | D137: Need a drop out >1V
B138: 1 | C138: 1 - 150mA | D138: Need a drop out >0.5V
A139: LDO1V[2:0] | C139: VLDO1 output voltage
B140: 000 | C140: 000 - 1.1V
B141: 001 | C141: 001 - 1.2V
B142: 010 | C142: 010 - 1.6V
B143: 011 | C143: 011 - 1.8V
B144: 100 | C144: 100 - 2.5V
B145: 101 | C145: 101 - 2.8V
B146: 110 | C146: 110 - 3.3V
B147: 111 | C147: 111 - 5.0V
A148: VB1S[2:0] | C148: BUCK1 sequencing slot
B149: 000 | C149: 000 - Regulator Start and Stop in Slot 0
B150: 001 | C150: 001 - Regulator Start and Stop in Slot 1
B151: 010 | C151: 010 - Regulator Start and Stop in Slot 2
B152: 011 | C152: 011 - Regulator Start and Stop in Slot 3
B153: 100 | C153: 100 - Regulator Start and Stop in Slot 4
B154: 101 | C154: 101 - Regulator Start and Stop in Slot 5
B155: 110 | C155: 110 - Regulator Start and Stop in Slot 6
B156: 111 | C156: 111 - Regulator does not Start (Enabled by SPI)
A157: LDO2S[2:0] | C157: LDO2 sequencing slot
B158: =LEFT(C158,LEN(C158)-(LEN(C158)-FIND("-",C158,1))-2) -> 000 | C158: 000 - Regulator Start and Stop in Slot 0
B159: 001 | C159: 001 - Regulator Start and Stop in Slot 1
B160: 010 | C160: 010 - Regulator Start and Stop in Slot 2
B161: 011 | C161: 011 - Regulator Start and Stop in Slot 3
B162: 100 | C162: 100 - Regulator Start and Stop in Slot 4
B163: 101 | C163: 101 - Regulator Start and Stop in Slot 5
B164: 110 | C164: 110 - Regulator Start and Stop in Slot 6
B165: 111 | C165: 111 - Regulator does not Start (Enabled by SPI)
A166: LDO1S[2:0] | C166: LDO1 sequencing slot
B167: 000 | C167: 000 - Regulator Start and Stop in Slot 0
B168: 001 | C168: 001 - Regulator Start and Stop in Slot 1
B169: 010 | C169: 010 - Regulator Start and Stop in Slot 2
B170: 011 | C170: 011 - Regulator Start and Stop in Slot 3
B171: 100 | C171: 100 - Regulator Start and Stop in Slot 4
B172: 101 | C172: 101 - Regulator Start and Stop in Slot 5
B173: 110 | C173: 110 - Regulator Start and Stop in Slot 6
B174: 111 | C174: 111 - Regulator does not Start (Enabled by SPI)
A175: VB3S[2:0] | C175: BUCK3 sequencing slot
B176: 000 | C176: 000 - Regulator Start and Stop in Slot 0
B177: 001 | C177: 001 - Regulator Start and Stop in Slot 1
B178: 010 | C178: 010 - Regulator Start and Stop in Slot 2
B179: 011 | C179: 011 - Regulator Start and Stop in Slot 3
B180: 100 | C180: 100 - Regulator Start and Stop in Slot 4
B181: 101 | C181: 101 - Regulator Start and Stop in Slot 5
B182: 110 | C182: 110 - Regulator Start and Stop in Slot 6
B183: 111 | C183: 111 - Regulator does not Start (Enabled by SPI)
A184: DVS_BUCK1[1:0] | C184: BUCK1 soft start/stop configurability
B185: =LEFT(C185,LEN(C185)-(LEN(C185)-FIND("-",C185,1))-2) -> 00 | C185: 00 - 7.81mV/µs
B186: 01 | C186: 01 - 3.13mV/µs
B187: 10 | C187: 10 - 2.60mV/µs
B188: 11 | C188: 11 - 2.23mV/µs
A189: DVS_BUCK3[1:0] | C189: BUCK3 soft start/stop configurability
B190: =LEFT(C190,LEN(C190)-(LEN(C190)-FIND("-",C190,1))-2) -> 00 | C190: 00 - 10.4mV/µs
B191: 01 | C191: 01 - 3.47mV/µs
B192: 10 | C192: 10 - 2.60mV/µs
B193: 11 | C193: 11 - 2.08mV/µs
A194: Tslot | C194: Power up/down slot duration
B195: =LEFT(C195,LEN(C195)-(LEN(C195)-FIND("-",C195,1))-2) -> 0 | C195: 0 - 250µs
B196: 1 | C196: 1 - 1000µs
A197: VPRE_ph[2:0] | C197: VPRE phase (delay) selection
B198: 000 | C198: 000 - delay 0
B199: 001 | C199: 001 - delay 1
B200: 010 | C200: 010 - delay 2
... 100 more rows

Sheet OTP_conf_failsafe_reg
A2: FAIL-SAFE OTP_REGISTERS
A3: Register Name | B3: ADDRESS | C3: R/W | D3: Default | E3: BIT7 | F3: BIT6 | G3: BIT5 | H3: BIT4 | I3: BIT3 | J3: BIT2 | K3: BIT1 | L3: BIT0 | M3: Data_Bin | N3: Data_Hex | P3: in red font, don't touch
A4: OTP_CFG_UVOV_1 | B4: 0A | C4: R/W | D4: 0000_0000 | E4: VCORE_V[7:0]
E5: =OTP_conf_main_reg!E17 -> 01000100 - 0.825V | M5: =LEFT(E5,8) -> 01000100 | N5: ="0x"&BIN2HEX(M5,2) -> 0x44
A6: OTP_CFG_UVOV_2 | B6: 0B | C6: R/W | D6: 0000_0000 | E6: VDDIOOVTH[3:0] | I6: VCOREOVTH[3:0]
E7: 0000 - 104.5% | I7: 0000 - 104.5% | M7: =CONCATENATE(LEFT(E7,4),LEFT(I7,4)) -> 00000000 | N7: ="0x"&BIN2HEX(M7,2) -> 0x00
A8: OTP_CFG_UVOV_3 | B8: 0C | C8: R/W | D8: 0000_0000 | E8: - | F8: - | G8: VDDIO_V | H8: VCORE_SVS_CLAMP[4:0]
E9: 0 | F9: 0 | G9: 0 - 3.3V | H9: 00000 - No SVS | M9: =CONCATENATE(E9,F9,LEFT(G9,1),LEFT(H9,5)) -> 00000000 | N9: ="0x"&BIN2HEX(M9,2) -> 0x00
A10: OTP_CFG_UVOV_4 | B10: 0D | C10: R/W | D10: 0000_0000 | E10: VMON2OVTH[3:0] | I10: VMON1OVTH[3:0]
E11: 0000 - 104.5% | I11: 0001 - 105% | M11: =CONCATENATE(LEFT(E11,4),LEFT(I11,4)) -> 00000001 | N11: ="0x"&BIN2HEX(M11,2) -> 0x01
A12: OTP_CFG_UVOV_5 | B12: 0E | C12: R/W | D12: 0000_0000 | E12: VMON4OVTH[3:0] | I12: VMON3OVTH[3:0]
E13: 0000 - 104.5% | I13: 0000 - 104.5% | M13: =CONCATENATE(LEFT(E13,4),LEFT(I13,4)) -> 00000000 | N13: ="0x"&BIN2HEX(M13,2) -> 0x00
A14: OTP_CFG_UVOV_6 | B14: 0F | C14: R/W | D14: 0000_0000 | E14: VDDIOUVTH[3:0] | I14: VCOREUVTH[3:0]
E15: 0000 - 95.5% | I15: 0000 - 95.5% | M15: =CONCATENATE(LEFT(E15,4),LEFT(I15,4)) -> 00000000 | N15: ="0x"&BIN2HEX(M15,2) -> 0x00
A16: OTP_CFG_UVOV_7 | B16: 10 | C16: R/W | D16: 0000_0000 | E16: VMON2UVTH[3:0] | I16: VMON1UVTH[3:0]
E17: 0000 - 95.5% | I17: 0001 - 95% | M17: =CONCATENATE(LEFT(E17,4),LEFT(I17,4)) -> 00000001 | N17: ="0x"&BIN2HEX(M17,2) -> 0x01
A18: OTP_CFG_UVOV_8 | B18: 11 | C18: R/W | D18: 0000_0000 | E18: VMON4UVTH[3:0] | I18: VMON3UVTH[3:0]
E19: 0000 - 95.5% | I19: 0000 - 95.5% | M19: =CONCATENATE(LEFT(E19,4),LEFT(I19,4)) -> 00000000 | N19: ="0x"&BIN2HEX(M19,2) -> 0x00
A20: OTP_CFG_PGOOD | B20: 12 | C20: R/W | D20: 0000_0000 | E20: - | F20: PGOOD_RSTB | G20: PGOOD_VMON4 | H20: PGOOD_VMON3 | I20: PGOOD_VMON2 | J20: PGOOD_VMON1 | K20: PGOOD_VDDIO | L20: PGOOD_VCORE
E21: 0 | F21: 0 - Not assigned | G21: 1 - Assigned | H21: 1 - Assigned | I21: 1 - Assigned | J21: 1 - Assigned | K21: 1 - Assigned | L21: 1 - Assigned | M21: =CONCATENATE(E21,LEFT(F21,1),LEFT(G21,1),LEFT(H21,1),LEFT(I21,1),LEFT(J21,1),LEFT(K21,1),LEFT(L21,1),) -> 00111111 | N21: ="0x"&BIN2HEX(M21,2) -> 0x3F
A22: OTP_CFG_ABIST1 | B22: 13 | C22: R/W | D22: 0000_0000 | E22: otp_SPARE0[1:0] | G22: ABIST1_VMON4 | H22: ABIST1_VMON3 | I22: ABIST1_VMON2 | J22: ABIST1_VMON1 | K22: ABIST1_VDDIO | L22: ABIST1_VCORE
E23: 00 | G23: 1 - Assigned | H23: 1 - Assigned | I23: 1 - Assigned | J23: 1 - Assigned | K23: 1 - Assigned | L23: 1 - Assigned | M23: =CONCATENATE(E23,LEFT(G23,1),LEFT(H23,1),LEFT(I23,1),LEFT(J23,1),LEFT(K23,1),LEFT(L23,1),) -> 00111111 | N23: ="0x"&BIN2HEX(M23,2) -> 0x3F
A24: OTP_CFG_ASIL | B24: 14 | C24: R/W | D24: 0000_0000 | E24: WD_DIS | F24: WD_Selection | G24: - | H24: FCCU_EN | I24: VMON4_EN | J24: VMON3_EN | K24: VMON2_EN | L24: VMON1_EN
E25: 0 - Enabled | F25: 0 - Simple WD | G25: 0 | H25: 1 - Enabled | I25: 1 - Enabled | J25: 1 - Enabled | K25: 1 - Enabled | L25: 1 - Enabled | M25: =CONCATENATE(LEFT(E25,1),LEFT(F25,1),LEFT(G25,1),LEFT(H25,1),LEFT(I25,1),LEFT(J25,1),LEFT(K25,1),LEFT(L25,1),) -> 00011111 | N25: ="0x"&BIN2HEX(M25,2) -> 0x1F
A26: OTP_CFG_I2C | B26: 15 | C26: R/W | D26: 0000_0000 | E26: otp_SPARE1[2:0] | H26: FLT_RECOVERY_EN | I26: -
E27: 000 | H27: 1 - Enabled | I27: 0000 | M27: =CONCATENATE(E27,LEFT(H27,1),LEFT(I27,4)) -> 00010000 | N27: ="0x"&BIN2HEX(M27,2) -> 0x10
A28: OTP_CFG_DGLT_DUR_1 | B28: 16 | E28: otp_SPARE2[1:0] | G28: VCORE_UV_DGLT[1:0] | I28: VCORE_OV_DGLT | J28: VDDIO_UV_DGLT[1:0] | L28: VDDIO_OV_DGLT
E29: 00 | G29: 10 - 25µs | I29: 0 - 25µs | J29: 10 - 25µs | L29: 0 - 25µs | M29: =CONCATENATE(E29,LEFT(G29,2),LEFT(I29,1),LEFT(J29,2),LEFT(L29,1)) -> 00100100 | N29: ="0x"&BIN2HEX(M29,2) -> 0x24
A30: OTP_CFG_DGLT_DUR_2 | B30: 17 | E30: otp_SPARE3[4:0] | J30: VMONx_UV_DGLT[1:0] | L30: VMONx_OV_DGLT
E31: 00000 | J31: 10 - 25µs | L31: 0 - 25µs | M31: =CONCATENATE(E31,LEFT(J31,2),LEFT(L31,1)) -> 00000100 | N31: ="0x"&BIN2HEX(M31,2) -> 0x04
A32: OTP_FS_S1_CRC_LSB | B32: 18 | C32: R/W | D32: 0000_0000 | E32: OTP_FS_S1_CRC_LSB[7:0]
E33: Automatically filled in by Sidence IP | M33: 00000000 | N33: ="0x"&BIN2HEX(M33,2) -> 0x00
A34: OTP_FS_S1_CRC_MSB | B34: 19 | C34: R/W | D34: 0000_0000 | E34: OTP_FS_S1_CRC_MSB[7:0]
E35: Automatically filled in by Sidence IP | M35: 00000000 | N35: ="0x"&BIN2HEX(M35,2) -> 0x00

Sheet OTP_conf_failsafe_bits
A1: Bit name | C1: Bit description | D1: Comments
A2: VDDIOOVTH[3:0] | C2: VDDIO overvoltage threshold configuration
B3: =LEFT(C3,LEN(C3)-(LEN(C3)-FIND("-",C3,1))-2) -> 0000 | C3: 0000 - 104.5%
B4: 0001 | C4: 0001 - 105%
B5: 0010 | C5: 0010 - 105.5%
B6: 0011 | C6: 0011 - 106%
B7: 0100 | C7: 0100 - 106.5%
B8: 0101 | C8: 0101 - 107%
B9: 0110 | C9: 0110 - 107.5%
B10: 0111 | C10: 0111 - 108%
B11: 1000 | C11: 1000 - 108.5%
B12: 1001 | C12: 1001 - 109%
B13: 1010 | C13: 1010 - 109.5%
B14: 1011 | C14: 1011 - 110%
B15: 1100 | C15: 1100 - 110.5%
B16: 1101 | C16: 1101 - 111%
B17: 1110 | C17: 1110 - 111.5%
B18: 1111 | C18: 1111 - 112%
A19: VCOREOVTH[3:0] | C19: VCORE (BUCK1) overvoltage threshold configuration
B20: 0000 | C20: 0000 - 104.5%
B21: 0001 | C21: 0001 - 105%
B22: 0010 | C22: 0010 - 105.5%
B23: 0011 | C23: 0011 - 106%
B24: 0100 | C24: 0100 - 106.5%
B25: 0101 | C25: 0101 - 107%
B26: 0110 | C26: 0110 - 107.5%
B27: 0111 | C27: 0111 - 108%
B28: 1000 | C28: 1000 - 108.5%
B29: 1001 | C29: 1001 - 109%
B30: 1010 | C30: 1010 - 109.5%
B31: 1011 | C31: 1011 - 110%
B32: 1100 | C32: 1100 - 110.5%
B33: 1101 | C33: 1101 - 111%
B34: 1110 | C34: 1110 - 111.5%
B35: 1111 | C35: 1111 - 112%
A36: VDDIO_V | C36: VDDIO voltage selection
B37: 0 | C37: 0 - 3.3V
B38: 1 | C38: 1 - 5.0V
A39: VCORE_SVS_CLAMP[4:0] | C39: SVS max value allowed (mask)
B40: 00000 | C40: 00000 - No SVS
B41: 00001 | C41: 00001 - 2 steps available | D41: -12.5mV
B42: 00011 | C42: 00011 - 4 steps available | D42: -25mV
B43: 00111 | C43: 00111 - 8 steps available | D43: -50mV
B44: 01111 | C44: 01111 - 16 steps available | D44: -100mV
A45: VMON2OVTH[3:0] | C45: VMON2 overvoltage threshold configuration
B46: 0000 | C46: 0000 - 104.5%
B47: 0001 | C47: 0001 - 105%
B48: 0010 | C48: 0010 - 105.5%
B49: 0011 | C49: 0011 - 106%
B50: 0100 | C50: 0100 - 106.5%
B51: 0101 | C51: 0101 - 107%
B52: =LEFT(C52,LEN(C52)-(LEN(C52)-FIND("-",C52,1))-2) -> 0110 | C52: 0110 - 107.5%
B53: 0111 | C53: 0111 - 108%
B54: 1000 | C54: 1000 - 108.5%
B55: 1001 | C55: 1001 - 109%
B56: 1010 | C56: 1010 - 109.5%
B57: 1011 | C57: 1011 - 110%
B58: 1100 | C58: 1100 - 110.5%
B59: 1101 | C59: 1101 - 111%
B60: 1110 | C60: 1110 - 111.5%
B61: 1111 | C61: 1111 - 112%
A62: VMON1OVTH[3:0] | C62: VMON1 overvoltage threshold configuration
B63: 0000 | C63: 0000 - 104.5%
B64: 0001 | C64: 0001 - 105%
B65: 0010 | C65: 0010 - 105.5%
B66: 0011 | C66: 0011 - 106%
B67: 0100 | C67: 0100 - 106.5%
B68: 0101 | C68: 0101 - 107%
B69: 0110 | C69: 0110 - 107.5%
B70: 0111 | C70: 0111 - 108%
B71: 1000 | C71: 1000 - 108.5%
B72: 1001 | C72: 1001 - 109%
B73: 1010 | C73: 1010 - 109.5%
B74: 1011 | C74: 1011 - 110%
B75: 1100 | C75: 1100 - 110.5%
B76: 1101 | C76: 1101 - 111%
B77: 1110 | C77: 1110 - 111.5%
B78: 1111 | C78: 1111 - 112%
A79: VMON4OVTH[3:0] | C79: VMON4 overvoltage threshold configuration
B80: 0000 | C80: 0000 - 104.5%
B81: 0001 | C81: 0001 - 105%
B82: 0010 | C82: 0010 - 105.5%
B83: 0011 | C83: 0011 - 106%
B84: 0100 | C84: 0100 - 106.5%
B85: 0101 | C85: 0101 - 107%
B86: 0110 | C86: 0110 - 107.5%
B87: 0111 | C87: 0111 - 108%
B88: 1000 | C88: 1000 - 108.5%
B89: 1001 | C89: 1001 - 109%
B90: 1010 | C90: 1010 - 109.5%
B91: 1011 | C91: 1011 - 110%
B92: 1100 | C92: 1100 - 110.5%
B93: 1101 | C93: 1101 - 111%
B94: 1110 | C94: 1110 - 111.5%
B95: 1111 | C95: 1111 - 112%
A96: VMON3OVTH[3:0] | C96: VMON3 overvoltage threshold configuration
B97: 0000 | C97: 0000 - 104.5%
B98: 0001 | C98: 0001 - 105%
B99: 0010 | C99: 0010 - 105.5%
B100: 0011 | C100: 0011 - 106%
B101: 0100 | C101: 0100 - 106.5%
B102: 0101 | C102: 0101 - 107%
B103: 0110 | C103: 0110 - 107.5%
B104: 0111 | C104: 0111 - 108%
B105: 1000 | C105: 1000 - 108.5%
B106: 1001 | C106: 1001 - 109%
B107: 1010 | C107: 1010 - 109.5%
B108: 1011 | C108: 1011 - 110%
B109: 1100 | C109: 1100 - 110.5%
B110: 1101 | C110: 1101 - 111%
B111: 1110 | C111: 1110 - 111.5%
B112: 1111 | C112: 1111 - 112%
A113: VDDIOUVTH[3:0] | C113: VDDIO undervoltage threshold configuration
B114: 0000 | C114: 0000 - 95.5%
B115: 0001 | C115: 0001 - 95%
B116: =LEFT(C116,LEN(C116)-(LEN(C116)-FIND("-",C116,1))-2) -> 0010 | C116: 0010 - 94.5%
B117: 0011 | C117: 0011 - 94%
B118: 0100 | C118: 0100 - 93.5%
B119: 0101 | C119: 0101 - 93%
B120: 0110 | C120: 0110 - 92.5%
B121: 0111 | C121: 0111 - 92%
B122: 1000 | C122: 1000 - 91.5%
B123: 1001 | C123: 1001 - 91%
B124: 1010 | C124: 1010 - 90.5%
B125: 1011 | C125: 1011 - 90%
B126: 1100 | C126: 1100 - 89.5%
B127: 1101 | C127: 1101 - 89%
B128: 1110 | C128: 1110 - 88.5%
B129: 1111 | C129: 1111 - 88%
A130: VCOREUVTH[3:0] | C130: VCORE undervoltage threshold configuration
B131: 0000 | C131: 0000 - 95.5%
B132: 0001 | C132: 0001 - 95%
B133: 0010 | C133: 0010 - 94.5%
B134: 0011 | C134: 0011 - 94%
B135: 0100 | C135: 0100 - 93.5%
B136: 0101 | C136: 0101 - 93%
B137: 0110 | C137: 0110 - 92.5%
B138: 0111 | C138: 0111 - 92%
B139: 1000 | C139: 1000 - 91.5%
B140: 1001 | C140: 1001 - 91%
B141: 1010 | C141: 1010 - 90.5%
B142: 1011 | C142: 1011 - 90%
B143: 1100 | C143: 1100 - 89.5%
B144: 1101 | C144: 1101 - 89%
B145: 1110 | C145: 1110 - 88.5%
B146: 1111 | C146: 1111 - 88%
A147: VMON2UVTH[3:0] | C147: VMON2 undervoltage threshold configuration
B148: 0000 | C148: 0000 - 95.5%
B149: 0001 | C149: 0001 - 95%
B150: 0010 | C150: 0010 - 94.5%
B151: 0011 | C151: 0011 - 94%
B152: 0100 | C152: 0100 - 93.5%
B153: 0101 | C153: 0101 - 93%
B154: 0110 | C154: 0110 - 92.5%
B155: 0111 | C155: 0111 - 92%
B156: 1000 | C156: 1000 - 91.5%
B157: 1001 | C157: 1001 - 91%
B158: 1010 | C158: 1010 - 90.5%
B159: 1011 | C159: 1011 - 90%
B160: 1100 | C160: 1100 - 89.5%
B161: 1101 | C161: 1101 - 89%
B162: 1110 | C162: 1110 - 88.5%
B163: 1111 | C163: 1111 - 88%
A164: VMON1UVTH[3:0] | C164: VMON1 undervoltage threshold configuration
B165: 0000 | C165: 0000 - 95.5%
B166: 0001 | C166: 0001 - 95%
B167: 0010 | C167: 0010 - 94.5%
B168: 0011 | C168: 0011 - 94%
B169: 0100 | C169: 0100 - 93.5%
B170: 0101 | C170: 0101 - 93%
B171: 0110 | C171: 0110 - 92.5%
B172: 0111 | C172: 0111 - 92%
B173: 1000 | C173: 1000 - 91.5%
B174: 1001 | C174: 1001 - 91%
B175: 1010 | C175: 1010 - 90.5%
B176: 1011 | C176: 1011 - 90%
B177: 1100 | C177: 1100 - 89.5%
B178: 1101 | C178: 1101 - 89%
B179: 1110 | C179: 1110 - 88.5%
B180: =LEFT(C180,LEN(C180)-(LEN(C180)-FIND("-",C180,1))-2) -> 1111 | C180: 1111 - 88%
A181: VMON4UVTH[3:0] | C181: VMON4 undervoltage threshold configuration
B182: 0000 | C182: 0000 - 95.5%
B183: 0001 | C183: 0001 - 95%
B184: 0010 | C184: 0010 - 94.5%
B185: 0011 | C185: 0011 - 94%
B186: 0100 | C186: 0100 - 93.5%
B187: 0101 | C187: 0101 - 93%
B188: 0110 | C188: 0110 - 92.5%
B189: 0111 | C189: 0111 - 92%
B190: 1000 | C190: 1000 - 91.5%
B191: 1001 | C191: 1001 - 91%
B192: 1010 | C192: 1010 - 90.5%
B193: 1011 | C193: 1011 - 90%
B194: 1100 | C194: 1100 - 89.5%
B195: 1101 | C195: 1101 - 89%
B196: 1110 | C196: 1110 - 88.5%
B197: 1111 | C197: 1111 - 88%
A198: VMON3UVTH[3:0] | C198: VMON3 undervoltage threshold configuration
B199: 0000 | C199: 0000 - 95.5%
B200: 0001 | C200: 0001 - 95%
... 101 more rows

Sheet FS84_VPRE_VBOOST_Components
B2: Inputs | F2: Inputs | J2: Inputs
B3: Outputs | F3: Outputs | J3: Outputs
B4: Normalized values | F4: Normalized values | J4: Normalized values | P4: Current mode regulation loop principle
B6: PI Filter | F6: PI Filter
B7: Fpi = Fsw / 10 | C7: =1000*C21/10 -> 45500 | D7: Hz | F7: Fpi = Fsw / 10 | G7: =1000000*G21/10 -> 222000 | H7: Hz
B8: Lpi | C8: 1 | D8: uH | F8: Lpi | G8: 0.1 | H8: uH
B9: Cpi1_Vbat_Calculated | C9: =1000000/(2*2*3.14156*3.14156*C7*C7*C8/1000000) -> 12.23563458 | D9: uF | F9: Cpi1_Vbat_Calculated | G9: =1000000/(2*2*3.14156*3.14156*G7*G7*G8/1000000) -> 5.139765945 | H9: uF
B10: Cpi1_Vbat_Selected | C10: 10 | D10: uF | F10: Cpi1_Vbat_Selected | G10: 2.2 | H10: uF
B11: Cpi2_Vsup_Selected | C11: 20 | D11: uF | F11: Cpi2_Vsup_Selected | G11: 20 | H11: uF
B12: Cpi2_Vripple_Calculated | C12: =C22*C20*(1-C20)/(C11/1000000*C7) -> 1.161910792 | D12: V | F12: Cpi2_Vripple_Calculated | G12: =G22*G20*(1-G20)/(G11/1000000*G7) -> 0.1428836244 | H12: V
B13: Fc_cutoff_frequency_Cpi2_Lpi_Calculated | C13: =1000/(2*PI()*SQRT(C8*C11)) -> 35.58812717 | D13: kHz | F13: Fc_cutoff_frequency_Cpi2_Lpi_Calculated | G13: =1000/(2*PI()*SQRT(G8*G11)) -> 112.5395395 | H13: kHz
B14: Zin_PRE_Calculated (Eff=1) | C14: =C18^2/(C19*C22) -> 8.890243902 | D14: Ω | F14: Zin_PRE_Calculated (Eff=1) | G14: =G18^2/(G19*G22) -> 14.81707317 | H14: Ω
B15: Zout_PI_filter_Calculated (Eff=1) | C15: =SQRT(C8/C11) -> 0.2236067977 | D15: Ω | F15: Zout_PI_filter_Calculated (Eff=1) | G15: =SQRT(G8/G11) -> 0.07071067812 | H15: Ω
B17: VPRE - 455KHz | F17: VPRE - 2.22MHz | J17: BOOST - 2.22MHz
B18: Vin (VSUP) | C18: 13.5 | D18: V | F18: Vin (VSUP) | G18: 13.5 | H18: V | J18: Vin (VPRE) | K18: =C19 -> 4.1 | L18: V
B19: Vout (3.3 or 4.1 or 5.0V) | C19: 4.1 | D19: V | F19: Vout (3.3 or 4.1 or 5.0V) | G19: =C19 -> 4.1 | H19: V | J19: Vout | K19: 5.0 | L19: V
B20: Duty Cycle (Eff=1) | C20: =C19/C18 -> 0.3037037037 | F20: Duty Cycle (Eff=1) | G20: =G19/G18 -> 0.3037037037 | J20: Vd (diode foward voltage) | K20: 0.4 | L20: V
B21: Fsw (455KHz or 2.22MHz) | C21: 455 | D21: Hz | F21: Fsw (455KHz or 2.22MHz) | G21: 2.22 | H21: MHz | J21: Duty Cycle (Eff=1) | K21: =1-(K18/(K19+K20)) -> 0.2407407407
B22: I_PRE_average | C22: 5 | D22: A | F22: I_PRE_average | G22: 3 | H22: A | J22: Fsw | K22: 2.22 | L22: MHz
B23: I_PRE_peak (in the inductor) | C23: =C22+(C22*C30/2/100) -> 5.667480667 | D23: A | F23: I_PRE_peak (in the inductor) | G23: =G22+(G22*G30/2/100) -> 3.292261959 | H23: A | J23: I_BOOST | K23: 1 | L23: A
B24: Inductor Current Ripple desired | C24: 30 | D24: % | F24: Inductor Current Ripple desired | G24: 30 | H24: % | J24: Ilim min | K24: =(1+K25/2/100)*K23/(1-K21) -> 1.415853659 | L24: A
B25: Output Voltage Ripple desired | C25: 20 | D25: mV | F25: Output Voltage Ripple desired | G25: 20 | H25: mV | J25: Inductor Current Ripple desired | K25: 15 | L25: %
B26: Max load transient dV (under/over voltage) | C26: 100 | D26: mV | F26: Max load transient dV (under/over voltage) | G26: 100 | H26: mV | J26: Output Voltage Ripple desired | K26: 20 | L26: mV
B27: Max load transient dI requirement | C27: 1.5 | D27: A | F27: Max load transient dI requirement | G27: 1.5 | H27: A | J27: Max load transient dV (under/over voltage) | K27: 250 | L27: mV
B28: L_PRE_calculated | C28: =1000*((C19*(C18-C19))/(C24/100*C18*C22*C21)) -> 4.18287885 | D28: uH | F28: L_PRE_calculated | G28: =((G19*(G18-G19))/(G24/100*G18*G22*G21)) -> 1.428836244 | H28: uH | J28: Max load transient dI requirement | K28: 0.4 | L28: A
B29: L_PRE_selected from (4.7uH - 10uH @450KHz) | C29: 4.7 | D29: uH | F29: L_PRE_selected from (1.5uH - 4.7uH @2.22MHz) | G29: 2.2 | H29: uH | J29: L_BOOST | K29: =(K18*K18*(K19-K18))/(K25/100*K19*K19*K23*K22) -> 1.817297297 | L29: uH
B30: Inductor Current Ripple Calculated | C30: =100*(C19*(C18-C19))/(C29/1000*C18*C22*C21) -> 26.6992267 | D30: % | F30: Inductor Current Ripple Calculated | G30: =100*(G19*(G18-G19))/(G29*G18*G22*G21) -> 19.4841306 | H30: % | J30: L_BOOST_selected from (2.2uH - 6.8uH @2.22MHz) | K30: 2.2 | L30: uH
B31: Cout_PRE_min (for ripple) | C31: =1000*(C22*C24/100)/(C25/1000*8*C21) -> 20.6043956 | D31: uF | F31: Cout_PRE_min (for ripple) | G31: =(G22*G24/100)/(G25/1000*8*G21) -> 2.533783784 | H31: uF | J31: Inductor Current Ripple Calculated | K31: =100*(K18*K18*(K19-K18))/(K30*K19*K19*K23*K22) -> 12.39066339 | L31: %
B32: Cout_PRE_min (for transient) Cout = dI / (2π x Fbw x dV) | C32: =1000000*C27/(2*PI()*C38*C26) -> 52.46866256 | D32: uF | F32: Cout_PRE_min (for transient) Cout = dI / (2π x Fbw x dV) | G32: =1000000*G27/(2*PI()*G38*G26) -> 16.13056856 | H32: uF | J32: C_BOOST_min (for ripple) | K32: =((1-K18/K19)*K23)/(K22*K26/1000) -> 4.054054054 | L32: uF
B33: Cout_PRE_selected | C33: 88 | D33: uF | F33: Cout_PRE_selected | G33: 22 | H33: uF | J33: Cout_BOOST_min (for transient) Cout = DI / (2π x Fbw x DV) | K33: =1000000*K28/(2*3.14156*12000*K27/1000) -> 21.22087965 | L33: uF
B34: Max dV Calculated | C34: =1000*C27/(2*3.14156*C33/1000*C38) -> 59.62409991 | D34: mV | F34: Max dV Calculated | G34: =1000*G27/(2*3.14156*G33*G38) -> 0.07332152827 | H34: mV | J34: Cout_BOOST_selected | K34: 22 | L34: uF
B35: Cout_PRE_ESR | C35: 10 | D35: mΩ | F35: Cout_PRE_ESR | G35: 20 | H35: mΩ | J35: Max load transient DV Calculated | K35: =1000*K28/(2*3.14156*K34/1000000*1000*K41) -> 131.6520241 | L35: mV
B36: Output Voltage Ripple Calculated | C36: =((C22*C30/100)/(C33/1000000*8*C21)+(C35/1000*C22*C30/100)) -> 4.180936199 | D36: mV | F36: Output Voltage Ripple Calculated | G36: =1000*((G22*G30/100)/(G33*8*G21)+(G35/1000*G22*G30/100)) -> 13.18649576 | H36: mV | J36: Voltage/Current Ratio (Kcs) Kcs = 0.466/ILIM | K36: =0.466/K24 -> 0.3291300603 | L36: V/A
B37: Rsense (10 - 20) | C37: 20 | D37: mΩ | F37: Rsense (10 - 20) | G37: 10 | H37: mΩ | J37: Bandwidth (Fbw ~12KHz) | K37: 12 | L37: kHz
B38: Bandwidth target (Fbw ~Fsw/10) | C38: =C21/10 -> 45.5 | D38: kHz | F38: Bandwidth target (Fbw ~Fsw/15) | G38: =1000*G21/15 -> 148 | H38: kHz | J38: Fz = 1/(2π x Rcomp x Ccomp) | K38: =1/(2*3.14156*K43*K44/1000000) -> 1.697670372 | L38: kHz
B39: Fz = Fbw/10 = 1/(2π x Rcomp x Ccomp) | C39: =C38/10 -> 4.55 | D39: kHz | F39: Fz = Fbw/10 = 1/(2π x Rcomp x Ccomp) | G39: =G38/10 -> 14.8 | H39: kHz | J39: Fp = 1/(2π x Rcomp x Chf) | K39: =1/(2*3.14156*K43*K45/1000000) -> 106.1043982 | L39: kHz
B40: Fp = Fsw/2 = 1/(2π x Rcomp x Chf) | C40: =C21/2 -> 227.5 | D40: kHz | F40: Fp = Fsw/4 = 1/(2π x Rcomp x Chf) | G40: =1000*G21/4 -> 555 | H40: kHz | J40: EA transconductance (gmEA_BOOST) | K40: 7 | L40: uS
B41: EA transconductance (gmEA_PRE) | C41: 1.5 | D41: mS | F41: EA transconductance (gmEA_PRE) | G41: 1.5 | H41: mS | J41: Fgbw = 1/(Kcs x 2π x Cout) | K41: =1/(2*3.14156*K34/1000*K36) -> 21.98034048 | L41: kHz
B42: Fgbw = 1/(Rsense x Acs x 2π x Cout) | C42: =1/(C37/1000*5*2*3.14156*C33/1000) -> 18.08597697 | D42: kHz | F42: Fgbw = 1/(Rsense x Acs x 2π x Cout) | G42: =1/(G37/1000*5*2*3.14156*G33/1000) -> 144.6878158 | H42: kHz | J42: EA gain = (Vref/Vout) x gmEA x Rcomp | K42: =K37/K41 -> 0.5459424074
B43: EA gain = (Vref/Vout) x gmEA x Rcomp | C43: =10^LOG10(C38/C42) -> 2.515761248 | F43: EA gain = (Vref/Vout) x gmEA x Rcomp | G43: =10^LOG10(G38/G42) -> 1.022891936 | J43: Rcomp_selected from OTP | K43: 750 | L43: KΩ
B44: Rcomp_Calculated | C44: =C19*C43/C41 -> 6.876414078 | D44: KΩ | F44: Rcomp_Calculated | G44: =G19*G43/G41 -> 2.795904625 | H44: KΩ | J44: Ccomp_selected from OTP | K44: 125 | L44: pF
B45: Rcomp_selected | C45: 6.81 | D45: KΩ | F45: Rcomp_selected | G45: 4.3 | H45: KΩ | J45: Chf_integrated (fixed) | K45: 2 | L45: pF
B46: Ccomp_calculated (min) | C46: =1000000/(2*3.14156*C45*1000*C39) -> 5.136486336 | D46: nF | F46: Ccomp_calculated (min) | G46: =1000000/(2*3.14156*G45*1000*G39) -> 2.500889336 | H46: nF | J46: Discharge slope m=(Vout+Vd-Vin)/L | K46: =1000*(K19+0.6-K18)/K30 -> 681.8181818 | L46: mA/us
B47: Ccomp_selected | C47: 4.7 | D47: nF | F47: Ccomp_selected | G47: 2.7 | H47: nF | J47: Slope compensation to select SC > m x Kcs | K47: =K46*K36 -> 224.4068593 | L47: mV/us
B48: Chf_calculated | C48: =1000000000/(2*3.14156*C45*1000*C40) -> 102.7297267 | D48: pF | F48: Chf_calculated | G48: =1000000000/(2*3.14156*G45*1000*G40) -> 66.6903823 | H48: pF
B49: Chf_selected | C49: 100 | D49: pF | F49: Chf_selected | G49: 68 | H49: pF
B50: Discharge slope m=(Vout/L) | C50: =1000*C19/C29 -> 872.3404255 | D50: mA/us | F50: Discharge slope m=(Vout/L) | G50: =1000*G19/G29 -> 1863.636364 | H50: mA/us
B51: Slope compensation to select SC > m x Rsense x Acs | C51: =C50*C37/1000*5 -> 87.23404255 | D51: mV/us | F51: Slope compensation to select SC > m x Rsense x Acs | G51: =G50*G37/1000*5 -> 93.18181818 | H51: mV/us
B52: Current Limit to select must be > | C52: =C37*C23 -> 113.3496133 | D52: mV | F52: Current Limit to select must be > | G52: =G37*G23 -> 32.92261959 | H52: mV

Sheet Normalized_R_C_Values
B2: Resistors | O2: Capacitors
B4: E12 10% tolerance
B5: E24 5% tolerance
B6: E48 2% tolerance
B7: E96 1% tolerance
B8: E192 0.5, 0.25, 0.1% and higher tolerances
B10: E24 | C10: E48 | D10: E96 | E10: E192 | F10: E24 | G10: E48 | H10: E96 | I10: E192 | J10: E24 | K10: E48 | L10: E96 | M10: E192
B11: 100 | C11: 100 | D11: 100 | E11: 100 | F11: 220 | G11: 215 | H11: 215 | I11: 215 | J11: 470 | K11: 464 | L11: 464 | M11: 464
E12: 101 | I12: 218 | M12: 470
D13: 102 | E13: 102 | H13: 221 | I13: 221 | L13: 475 | M13: 475
E14: 104 | I14: 223 | M14: 481
C15: 105 | D15: 105 | E15: 105 | G15: 226 | H15: 226 | I15: 226 | K15: 487 | L15: 487 | M15: 487
E16: 106 | I16: 229 | M16: 493
D17: 107 | E17: 107 | H17: 232 | I17: 232 | L17: 499 | M17: 499
E18: 109 | I18: 234 | M18: 505
B19: 110 | C19: 110 | D19: 110 | E19: 110 | F19: 240 | G19: 237 | H19: 237 | I19: 237 | J19: 510 | K19: 511 | L19: 511 | M19: 511
E20: 111 | I20: 240 | M20: 517
D21: 113 | E21: 113 | H21: 243 | I21: 243 | L21: 523 | M21: 523
E22: 114 | I22: 246 | M22: 530
C23: 115 | D23: 115 | E23: 115 | G23: 249 | H23: 249 | I23: 249 | K23: 536 | L23: 536 | M23: 536
E24: 117 | I24: 252 | M24: 542
D25: 118 | E25: 118 | H25: 255 | I25: 255 | L25: 549 | M25: 549
E26: 120 | I26: 258 | M26: 556
B27: 120 | C27: 121 | D27: 121 | E27: 121 | F27: 270 | G27: 261 | H27: 261 | I27: 261 | J27: 560 | K27: 562 | L27: 562 | M27: 562
E28: 123 | I28: 264 | M28: 569
D29: 124 | E29: 124 | H29: 267 | I29: 267 | L29: 576 | M29: 576
E30: 126 | I30: 271 | M30: 583
C31: 127 | D31: 127 | E31: 127 | G31: 274 | H31: 274 | I31: 274 | K31: 590 | L31: 590 | M31: 590
E32: 129 | I32: 277 | M32: 597
D33: 130 | E33: 130 | H33: 280 | I33: 280 | L33: 604 | M33: 604
E34: 132 | I34: 284 | M34: 612
B35: 130 | C35: 133 | D35: 133 | E35: 133 | F35: 300 | G35: 287 | H35: 287 | I35: 287 | J35: 620 | K35: 619 | L35: 619 | M35: 619
E36: 135 | I36: 291 | M36: 626
D37: 137 | E37: 137 | H37: 294 | I37: 294 | L37: 634 | M37: 634
E38: 138 | I38: 298 | M38: 642
C39: 140 | D39: 140 | E39: 140 | G39: 301 | H39: 301 | I39: 301 | K39: 649 | L39: 649 | M39: 649
E40: 142 | I40: 305 | M40: 657
D41: 143 | E41: 143 | H41: 309 | I41: 309 | L41: 665 | M41: 665
E42: 145 | I42: 312 | M42: 673
B43: 150 | C43: 147 | D43: 147 | E43: 147 | F43: 330 | G43: 316 | H43: 316 | I43: 316 | J43: 680 | K43: 681 | L43: 681 | M43: 681
E44: 149 | I44: 320 | M44: 690
D45: 150 | E45: 150 | H45: 324 | I45: 324 | L45: 698 | M45: 698
E46: 152 | I46: 328 | M46: 706
C47: 154 | D47: 154 | E47: 154 | G47: 332 | H47: 332 | I47: 332 | K47: 715 | L47: 715 | M47: 715
E48: 156 | I48: 336 | M48: 723
D49: 158 | E49: 158 | H49: 340 | I49: 340 | L49: 732 | M49: 732
E50: 160 | I50: 344 | M50: 741
B51: 160 | C51: 162 | D51: 162 | E51: 162 | F51: 360 | G51: 348 | H51: 348 | I51: 348 | J51: 750 | K51: 750 | L51: 750 | M51: 750
E52: 164 | I52: 352 | M52: 759
D53: 165 | E53: 165 | H53: 357 | I53: 357 | L53: 768 | M53: 768
E54: 167 | I54: 361 | M54: 777
C55: 169 | D55: 169 | E55: 169 | G55: 365 | H55: 365 | I55: 365 | K55: 787 | L55: 787 | M55: 787
E56: 172 | I56: 370 | M56: 796
D57: 174 | E57: 174 | H57: 374 | I57: 374 | L57: 806 | M57: 806
E58: 176 | I58: 379 | M58: 816
B59: 180 | C59: 178 | D59: 178 | E59: 178 | F59: 390 | G59: 383 | H59: 383 | I59: 383 | J59: 820 | K59: 825 | L59: 825 | M59: 825
E60: 180 | I60: 388 | M60: 835
D61: 182 | E61: 182 | H61: 392 | I61: 392 | L61: 845 | M61: 845
E62: 184 | I62: 397 | M62: 856
C63: 187 | D63: 187 | E63: 187 | G63: 402 | H63: 402 | I63: 402 | K63: 866 | L63: 866 | M63: 866
E64: 189 | I64: 407 | M64: 876
D65: 191 | E65: 191 | H65: 412 | I65: 412 | L65: 887 | M65: 887
E66: 193 | I66: 417 | M66: 898
B67: 200 | C67: 196 | D67: 196 | E67: 196 | F67: 430 | G67: 422 | H67: 422 | I67: 422 | J67: 910 | K67: 909 | L67: 909 | M67: 909
E68: 198 | I68: 427 | M68: 920
D69: 200 | E69: 200 | H69: 432 | I69: 432 | L69: 931 | M69: 931
E70: 203 | I70: 437 | M70: 942
C71: 205 | D71: 205 | E71: 205 | G71: 442 | H71: 442 | I71: 442 | K71: 953 | L71: 953 | M71: 953
E72: 208 | I72: 448 | M72: 965
D73: 210 | E73: 210 | H73: 453 | I73: 453 | L73: 976 | M73: 976
E74: 213 | I74: 459 | M74: 988
